Workbook

Sheet P9_Resultater
D3: Køn | E3: Alder
D4: P | E4: 9 | G4: år | I4: =CONCATENATE("DAF_",D4,E4) -> DAF_P9
E5: Res. | G5: Point
D6: 40m | G6: =IF(OR(ISBLANK(E6),E6>VLOOKUP($D6,INDIRECT($I$4),6,FALSE)),0,INT(VLOOKUP($D6,INDIRECT($I$4),2,FALSE)+VLOOKUP($D6,INDIRECT($I$4),3,FALSE)*I6+VLOOKUP($D6,INDIRECT($I$4),4,FALSE)*I6*I6)) -> 0 | I6: =IF(F6="[Man]",ROUND(E6,1)+VLOOKUP($D6,INDIRECT($I$4),5,FALSE)/100,E6) -> 0 | M6: =VLOOKUP($D6,INDIRECT($I$4),7,FALSE) -> 6.3
D7: 400m | G7: =IF(OR(ISBLANK(E7),E7>VLOOKUP($D7,INDIRECT($I$4),6,FALSE)),0,INT(VLOOKUP($D7,INDIRECT($I$4),2,FALSE)+VLOOKUP($D7,INDIRECT($I$4),3,FALSE)*I7+VLOOKUP($D7,INDIRECT($I$4),4,FALSE)*I7*I7)) -> 0 | I7: =IF(F7="[Man]",ROUND(E7,1)+VLOOKUP($D7,INDIRECT($I$4),5,FALSE)/100,E7) -> 0 | M7: =VLOOKUP($D7,INDIRECT($I$4),7,FALSE) -> 72.5
D8: 800m | G8: =IF(OR(ISBLANK(E8), E8>VLOOKUP($D8,INDIRECT($I$4),6,FALSE)),0,INT(VLOOKUP($D8,INDIRECT($I$4),2,FALSE)+VLOOKUP($D8,INDIRECT($I$4),3,FALSE)*E8*86400+VLOOKUP($D8,INDIRECT($I$4),4,FALSE)*E8*86400*E8*86400)) -> 0 | J8: Navn: | M8: 00:02:32.610
D9: 4x40m | G9: =IF(OR(ISBLANK(E9),E9>VLOOKUP($D9,INDIRECT($I$4),6,FALSE)),0,INT(VLOOKUP($D9,INDIRECT($I$4),2,FALSE)+VLOOKUP($D9,INDIRECT($I$4),3,FALSE)*I9+VLOOKUP($D9,INDIRECT($I$4),4,FALSE)*I9*I9)) -> 0 | I9: =IF(F9="[Man]",ROUND(E9,1)+VLOOKUP($D9,INDIRECT($I$4),5,FALSE)/100,E9) -> 0 | J9: Klub: | K9: =IF(Info!D29=0," ",Info!D29) -> Vejle IF | M9: 24.91
D10: højde | G10: =IF(OR(ISBLANK(E10), E10<VLOOKUP($D10,INDIRECT($I$4),6,FALSE)),0,INT(VLOOKUP($D10,INDIRECT($I$4),2,FALSE)+VLOOKUP($D10,INDIRECT($I$4),3,FALSE)*E10+VLOOKUP($D10,INDIRECT($I$4),4,FALSE)*E10*E10)) -> 0 | J10: (klub indtastes i Info skemaet) | M10: 1.25
D11: længde | G11: =IF(OR(ISBLANK(E11), E11<VLOOKUP($D11,INDIRECT($I$4),6,FALSE)),0,INT(VLOOKUP($D11,INDIRECT($I$4),2,FALSE)+VLOOKUP($D11,INDIRECT($I$4),3,FALSE)*E11+VLOOKUP($D11,INDIRECT($I$4),4,FALSE)*E11*E11)) -> 0 | K11: =Info!G28 -> På diplom | M11: 4.01
D12: kugle | G12: =IF(OR(ISBLANK(E12), E12<VLOOKUP($D12,INDIRECT($I$4),6,FALSE)),0,INT(VLOOKUP($D12,INDIRECT($I$4),2,FALSE)+VLOOKUP($D12,INDIRECT($I$4),3,FALSE)*E12+VLOOKUP($D12,INDIRECT($I$4),4,FALSE)*E12*E12)) -> 0 | M12: 8.12
D13: bold | G13: 0 | M13: 44.89
D14: Point | G14: =LARGE(G6:G9,1)+LARGE(G10:G11,1)+LARGE(G12:G13,1)+LARGE(I14:I16,1) -> 0 | I14: =LARGE(G6:G9,2) -> 0
D15: Mærke | G15: =IF(G14>=G18,D18,IF(G14>=G17,D17,IF(G14>=G16,D16,"ingen"))) -> ingen | I15: =LARGE(G10:G11,2) -> 0
D16: Bronze | G16: 1000 | I16: =LARGE(G12:G13,2) -> 0
D17: Sølv | G17: 2400
D18: Guld | G18: 3600

Sheet D9_Resultater
D3: Køn | E3: Alder
D4: D | E4: 9 | G4: år | I4: =CONCATENATE("DAF_",D4,E4) -> DAF_D9
E5: Res. | G5: Point
D6: 40m | G6: =IF(OR(ISBLANK(E6),E6>VLOOKUP($D6,INDIRECT($I$4),6,FALSE)),0,INT(VLOOKUP($D6,INDIRECT($I$4),2,FALSE)+VLOOKUP($D6,INDIRECT($I$4),3,FALSE)*I6+VLOOKUP($D6,INDIRECT($I$4),4,FALSE)*I6*I6)) -> 0 | I6: =IF(F6="[Man]",ROUND(E6,1)+VLOOKUP($D6,INDIRECT($I$4),5,FALSE)/100,E6) -> 0 | M6: =VLOOKUP($D6,INDIRECT($I$4),7,FALSE) -> 6.3
D7: 400m | G7: =IF(OR(ISBLANK(E7),E7>VLOOKUP($D7,INDIRECT($I$4),6,FALSE)),0,INT(VLOOKUP($D7,INDIRECT($I$4),2,FALSE)+VLOOKUP($D7,INDIRECT($I$4),3,FALSE)*I7+VLOOKUP($D7,INDIRECT($I$4),4,FALSE)*I7*I7)) -> 0 | I7: =IF(F7="[Man]",ROUND(E7,1)+VLOOKUP($D7,INDIRECT($I$4),5,FALSE)/100,E7) -> 0 | M7: =VLOOKUP($D7,INDIRECT($I$4),7,FALSE) -> 72.5
D8: 800m | G8: =IF(OR(ISBLANK(E8), E8>VLOOKUP($D8,INDIRECT($I$4),6,FALSE)),0,INT(VLOOKUP($D8,INDIRECT($I$4),2,FALSE)+VLOOKUP($D8,INDIRECT($I$4),3,FALSE)*E8*86400+VLOOKUP($D8,INDIRECT($I$4),4,FALSE)*E8*86400*E8*86400)) -> 0 | J8: Navn: | M8: 00:02:32.610
D9: 4x40m | G9: =IF(OR(ISBLANK(E9),E9>VLOOKUP($D9,INDIRECT($I$4),6,FALSE)),0,INT(VLOOKUP($D9,INDIRECT($I$4),2,FALSE)+VLOOKUP($D9,INDIRECT($I$4),3,FALSE)*I9+VLOOKUP($D9,INDIRECT($I$4),4,FALSE)*I9*I9)) -> 0 | I9: =IF(F9="[Man]",ROUND(E9,1)+VLOOKUP($D9,INDIRECT($I$4),5,FALSE)/100,E9) -> 0 | J9: Klub: | K9: =IF(Info!D29=0," ",Info!D29) -> Vejle IF | M9: 24.91
D10: højde | G10: =IF(OR(ISBLANK(E10), E10<VLOOKUP($D10,INDIRECT($I$4),6,FALSE)),0,INT(VLOOKUP($D10,INDIRECT($I$4),2,FALSE)+VLOOKUP($D10,INDIRECT($I$4),3,FALSE)*E10+VLOOKUP($D10,INDIRECT($I$4),4,FALSE)*E10*E10)) -> 0 | J10: (klub indtastes i Info skemaet) | M10: 1.25
D11: længde | G11: =IF(OR(ISBLANK(E11), E11<VLOOKUP($D11,INDIRECT($I$4),6,FALSE)),0,INT(VLOOKUP($D11,INDIRECT($I$4),2,FALSE)+VLOOKUP($D11,INDIRECT($I$4),3,FALSE)*E11+VLOOKUP($D11,INDIRECT($I$4),4,FALSE)*E11*E11)) -> 0 | K11: =Info!G28 -> På diplom | M11: 4.01
D12: kugle | G12: =IF(OR(ISBLANK(E12), E12<VLOOKUP($D12,INDIRECT($I$4),6,FALSE)),0,INT(VLOOKUP($D12,INDIRECT($I$4),2,FALSE)+VLOOKUP($D12,INDIRECT($I$4),3,FALSE)*E12+VLOOKUP($D12,INDIRECT($I$4),4,FALSE)*E12*E12)) -> 0 | M12: 9.81
D13: bold | G13: 0 | M13: 52.21
D14: Point | G14: =LARGE(G6:G9,1)+LARGE(G10:G11,1)+LARGE(G12:G13,1)+LARGE(I14:I16,1) -> 0 | I14: =LARGE(G6:G9,2) -> 0
D15: Mærke | G15: =IF(G14>=G18,D18,IF(G14>=G17,D17,IF(G14>=G16,D16,"ingen"))) -> ingen | I15: =LARGE(G10:G11,2) -> 0
D16: Bronze | G16: 1000 | I16: =LARGE(G12:G13,2) -> 0
D17: Sølv | G17: 2400
D18: Guld | G18: 3600

Sheet P10_Resultater
D3: Køn | E3: Alder
D4: P | E4: 10 | G4: år | I4: =CONCATENATE("DAF_",D4,E4) -> DAF_P10
E5: Res. | G5: Point
D6: 60m | E6: 10.04 | G6: =IF(OR(ISBLANK(E6),E6>VLOOKUP($D6,INDIRECT($I$4),6,FALSE)),0,INT(VLOOKUP($D6,INDIRECT($I$4),2,FALSE)+VLOOKUP($D6,INDIRECT($I$4),3,FALSE)*I6+VLOOKUP($D6,INDIRECT($I$4),4,FALSE)*I6*I6)) -> 816 | I6: =IF(F6="[Man]",ROUND(E6,1)+VLOOKUP($D6,INDIRECT($I$4),5,FALSE)/100,E6) -> 10.04 | M6: =VLOOKUP($D6,INDIRECT($I$4),7,FALSE) -> 8.86
D7: 400m | G7: =IF(OR(ISBLANK(E7),E7>VLOOKUP($D7,INDIRECT($I$4),6,FALSE)),0,INT(VLOOKUP($D7,INDIRECT($I$4),2,FALSE)+VLOOKUP($D7,INDIRECT($I$4),3,FALSE)*I7+VLOOKUP($D7,INDIRECT($I$4),4,FALSE)*I7*I7)) -> 0 | I7: =IF(F7="[Man]",ROUND(E7,1)+VLOOKUP($D7,INDIRECT($I$4),5,FALSE)/100,E7) -> 0 | M7: =VLOOKUP($D7,INDIRECT($I$4),7,FALSE) -> 63.1
D8: 1000m | E8: 00:04:05.670 | G8: =IF(OR(ISBLANK(E8), E8>VLOOKUP($D8,INDIRECT($I$4),6,FALSE)),0,INT(VLOOKUP($D8,INDIRECT($I$4),2,FALSE)+VLOOKUP($D8,INDIRECT($I$4),3,FALSE)*E8*86400+VLOOKUP($D8,INDIRECT($I$4),4,FALSE)*E8*86400*E8*86400)) -> 620 | J8: Navn: | M8: 00:03:13.520
D9: 60mH | G9: =IF(OR(ISBLANK(E9),E9>VLOOKUP($D9,INDIRECT($I$4),6,FALSE)),0,INT(VLOOKUP($D9,INDIRECT($I$4),2,FALSE)+VLOOKUP($D9,INDIRECT($I$4),3,FALSE)*I9+VLOOKUP($D9,INDIRECT($I$4),4,FALSE)*I9*I9)) -> 0 | I9: =IF(F9="[Man]",ROUND(E9,1)+VLOOKUP($D9,INDIRECT($I$4),5,FALSE)/100,E9) -> 0 | J9: Klub: | K9: =IF(Info!D29=0," ",Info!D29) -> Vejle IF | M9: 11.15
D10: 4x60m | E10: 39.07 | G10: =IF(OR(ISBLANK(E10),E10>VLOOKUP($D10,INDIRECT($I$4),6,FALSE)),0,INT(VLOOKUP($D10,INDIRECT($I$4),2,FALSE)+VLOOKUP($D10,INDIRECT($I$4),3,FALSE)*I10+VLOOKUP($D10,INDIRECT($I$4),4,FALSE)*I10*I10)) -> 844 | I10: =IF(F10="[Man]",ROUND(E10,1)+VLOOKUP($D10,INDIRECT($I$4),5,FALSE)/100,E10) -> 39.07 | J10: (klub indtastes i Info skemaet) | M10: 34.7
D11: højde | E11: 1.05 | G11: =IF(OR(ISBLANK(E11), E11<VLOOKUP($D11,INDIRECT($I$4),6,FALSE)),0,INT(VLOOKUP($D11,INDIRECT($I$4),2,FALSE)+VLOOKUP($D11,INDIRECT($I$4),3,FALSE)*E11+VLOOKUP($D11,INDIRECT($I$4),4,FALSE)*E11*E11)) -> 599 | K11: =Info!G28 -> På diplom | M11: 1.46
D12: længde | E12: 3.62 | G12: =IF(OR(ISBLANK(E12), E12<VLOOKUP($D12,INDIRECT($I$4),6,FALSE)),0,INT(VLOOKUP($D12,INDIRECT($I$4),2,FALSE)+VLOOKUP($D12,INDIRECT($I$4),3,FALSE)*E12+VLOOKUP($D12,INDIRECT($I$4),4,FALSE)*E12*E12)) -> 768 | M12: 4.85
D13: kugle | E13: 4.69 | G13: =IF(OR(ISBLANK(E13), E13<VLOOKUP($D13,INDIRECT($I$4),6,FALSE)),0,INT(VLOOKUP($D13,INDIRECT($I$4),2,FALSE)+VLOOKUP($D13,INDIRECT($I$4),3,FALSE)*E13+VLOOKUP($D13,INDIRECT($I$4),4,FALSE)*E13*E13)) -> 533 | M13: 10.45
D14: bold | G14: =IF(OR(ISBLANK(E14), E14<VLOOKUP($D14,INDIRECT($I$4),6,FALSE)),0,INT(VLOOKUP($D14,INDIRECT($I$4),2,FALSE)+VLOOKUP($D14,INDIRECT($I$4),3,FALSE)*E14+VLOOKUP($D14,INDIRECT($I$4),4,FALSE)*E14*E14)) -> 0 | M14: 57.97
D15: Point | G15: =LARGE(G6:G10,1)+LARGE(G11:G12,1)+LARGE(G13:G14,1)+LARGE(I15:I17,1) -> 2961 | I15: =LARGE(G6:G10,2) -> 816
D16: Mærke | G16: =IF(G15>=G19,D19,IF(G15>=G18,D18,IF(G15>=G17,D17,"ingen"))) -> Sølv | I16: =LARGE(G11:G12,2) -> 599
D17: Bronze | G17: 1000 | I17: =LARGE(G13:G14,2) -> 0
D18: Sølv | G18: 2300
D19: Guld | G19: 3500

Sheet D10_Resultater
D3: Køn | E3: Alder
D4: D | E4: 10 | G4: år | I4: =CONCATENATE("DAF_",D4,E4) -> DAF_D10
E5: Res. | G5: Point
D6: 60m | E6: 10.41 | G6: =IF(OR(ISBLANK(E6),E6>VLOOKUP($D6,INDIRECT($I$4),6,FALSE)),0,INT(VLOOKUP($D6,INDIRECT($I$4),2,FALSE)+VLOOKUP($D6,INDIRECT($I$4),3,FALSE)*I6+VLOOKUP($D6,INDIRECT($I$4),4,FALSE)*I6*I6)) -> 577 | I6: =IF(F6="[Man]",ROUND(E6,1)+VLOOKUP($D6,INDIRECT($I$4),5,FALSE)/100,E6) -> 10.41 | M6: =VLOOKUP($D6,INDIRECT($I$4),7,FALSE) -> 8.59
D7: 400m | G7: =IF(OR(ISBLANK(E7),E7>VLOOKUP($D7,INDIRECT($I$4),6,FALSE)),0,INT(VLOOKUP($D7,INDIRECT($I$4),2,FALSE)+VLOOKUP($D7,INDIRECT($I$4),3,FALSE)*I7+VLOOKUP($D7,INDIRECT($I$4),4,FALSE)*I7*I7)) -> 0 | I7: =IF(F7="[Man]",ROUND(E7,1)+VLOOKUP($D7,INDIRECT($I$4),5,FALSE)/100,E7) -> 0 | M7: =VLOOKUP($D7,INDIRECT($I$4),7,FALSE) -> 60.79
D8: 1000m | E8: 00:04:06.480 | G8: =IF(OR(ISBLANK(E8), E8>VLOOKUP($D8,INDIRECT($I$4),6,FALSE)),0,INT(VLOOKUP($D8,INDIRECT($I$4),2,FALSE)+VLOOKUP($D8,INDIRECT($I$4),3,FALSE)*E8*86400+VLOOKUP($D8,INDIRECT($I$4),4,FALSE)*E8*86400*E8*86400)) -> 459 | J8: Navn: | M8: 00:03:04.930
D9: 60mH | E9: 14.05 | G9: =IF(OR(ISBLANK(E9),E9>VLOOKUP($D9,INDIRECT($I$4),6,FALSE)),0,INT(VLOOKUP($D9,INDIRECT($I$4),2,FALSE)+VLOOKUP($D9,INDIRECT($I$4),3,FALSE)*I9+VLOOKUP($D9,INDIRECT($I$4),4,FALSE)*I9*I9)) -> 599 | I9: =IF(F9="[Man]",ROUND(E9,1)+VLOOKUP($D9,INDIRECT($I$4),5,FALSE)/100,E9) -> 14.05 | J9: Klub: | K9: =IF(Info!D29=0," ",Info!D29) -> Vejle IF | M9: 10.74
D10: 4x60m | G10: =IF(OR(ISBLANK(E10),E10>VLOOKUP($D10,INDIRECT($I$4),6,FALSE)),0,INT(VLOOKUP($D10,INDIRECT($I$4),2,FALSE)+VLOOKUP($D10,INDIRECT($I$4),3,FALSE)*I10+VLOOKUP($D10,INDIRECT($I$4),4,FALSE)*I10*I10)) -> 0 | I10: =IF(F10="[Man]",ROUND(E10,1)+VLOOKUP($D10,INDIRECT($I$4),5,FALSE)/100,E10) -> 0 | J10: (klub indtastes i Info skemaet) | M10: 33.64
D11: højde | E11: 0.95 | G11: =IF(OR(ISBLANK(E11), E11<VLOOKUP($D11,INDIRECT($I$4),6,FALSE)),0,INT(VLOOKUP($D11,INDIRECT($I$4),2,FALSE)+VLOOKUP($D11,INDIRECT($I$4),3,FALSE)*E11+VLOOKUP($D11,INDIRECT($I$4),4,FALSE)*E11*E11)) -> 277 | K11: =Info!G28 -> På diplom | M11: 1.52
D12: længde | E12: 3.25 | G12: =IF(OR(ISBLANK(E12), E12<VLOOKUP($D12,INDIRECT($I$4),6,FALSE)),0,INT(VLOOKUP($D12,INDIRECT($I$4),2,FALSE)+VLOOKUP($D12,INDIRECT($I$4),3,FALSE)*E12+VLOOKUP($D12,INDIRECT($I$4),4,FALSE)*E12*E12)) -> 465 | M12: 5.05
D13: kugle | E13: 4.66 | G13: =IF(OR(ISBLANK(E13), E13<VLOOKUP($D13,INDIRECT($I$4),6,FALSE)),0,INT(VLOOKUP($D13,INDIRECT($I$4),2,FALSE)+VLOOKUP($D13,INDIRECT($I$4),3,FALSE)*E13+VLOOKUP($D13,INDIRECT($I$4),4,FALSE)*E13*E13)) -> 408 | M13: 10.61
D14: bold | E14: 16.31 | G14: =IF(OR(ISBLANK(E14), E14<VLOOKUP($D14,INDIRECT($I$4),6,FALSE)),0,INT(VLOOKUP($D14,INDIRECT($I$4),2,FALSE)+VLOOKUP($D14,INDIRECT($I$4),3,FALSE)*E14+VLOOKUP($D14,INDIRECT($I$4),4,FALSE)*E14*E14)) -> 22 | M14: 59.98
D15: Point | G15: =LARGE(G6:G10,1)+LARGE(G11:G12,1)+LARGE(G13:G14,1)+LARGE(I15:I17,1) -> 2049 | I15: =LARGE(G6:G10,2) -> 577
D16: Mærke | G16: =IF(G15>=G19,D19,IF(G15>=G18,D18,IF(G15>=G17,D17,"ingen"))) -> Bronze | I16: =LARGE(G11:G12,2) -> 277
D17: Bronze | G17: 1000 | I17: =LARGE(G13:G14,2) -> 22
D18: Sølv | G18: 2300
D19: Guld | G19: 3500

Sheet P11_Resultater
D3: Køn | E3: Alder
D4: P | E4: 11 | G4: år | I4: =CONCATENATE("DAF_",D4,E4) -> DAF_P11
E5: Res. | G5: Point
D6: 60m | G6: =IF(OR(ISBLANK(E6),E6>VLOOKUP($D6,INDIRECT($I$4),6,FALSE)),0,INT(VLOOKUP($D6,INDIRECT($I$4),2,FALSE)+VLOOKUP($D6,INDIRECT($I$4),3,FALSE)*I6+VLOOKUP($D6,INDIRECT($I$4),4,FALSE)*I6*I6)) -> 0 | I6: =IF(F6="[Man]",ROUND(E6,1)+VLOOKUP($D6,INDIRECT($I$4),5,FALSE)/100,E6) -> 0 | M6: =VLOOKUP($D6,INDIRECT($I$4),7,FALSE) -> 8.86
D7: 400m | G7: =IF(OR(ISBLANK(E7),E7>VLOOKUP($D7,INDIRECT($I$4),6,FALSE)),0,INT(VLOOKUP($D7,INDIRECT($I$4),2,FALSE)+VLOOKUP($D7,INDIRECT($I$4),3,FALSE)*I7+VLOOKUP($D7,INDIRECT($I$4),4,FALSE)*I7*I7)) -> 0 | I7: =IF(F7="[Man]",ROUND(E7,1)+VLOOKUP($D7,INDIRECT($I$4),5,FALSE)/100,E7) -> 0 | M7: =VLOOKUP($D7,INDIRECT($I$4),7,FALSE) -> 63.1
D8: 1000m | E8: 00:03:58.330 | G8: =IF(OR(ISBLANK(E8), E8>VLOOKUP($D8,INDIRECT($I$4),6,FALSE)),0,INT(VLOOKUP($D8,INDIRECT($I$4),2,FALSE)+VLOOKUP($D8,INDIRECT($I$4),3,FALSE)*E8*86400+VLOOKUP($D8,INDIRECT($I$4),4,FALSE)*E8*86400*E8*86400)) -> 692 | J8: Navn: | K8: Sarah Sækmose Bertelsen | M8: 00:03:13.520
D9: 60mH | G9: =IF(OR(ISBLANK(E9),E9>VLOOKUP($D9,INDIRECT($I$4),6,FALSE)),0,INT(VLOOKUP($D9,INDIRECT($I$4),2,FALSE)+VLOOKUP($D9,INDIRECT($I$4),3,FALSE)*I9+VLOOKUP($D9,INDIRECT($I$4),4,FALSE)*I9*I9)) -> 0 | I9: =IF(F9="[Man]",ROUND(E9,1)+VLOOKUP($D9,INDIRECT($I$4),5,FALSE)/100,E9) -> 0 | J9: Klub: | K9: =IF(Info!D29=0," ",Info!D29) -> Vejle IF | M9: 11.15
D10: 4x60m | E10: 39.07 | G10: =IF(OR(ISBLANK(E10),E10>VLOOKUP($D10,INDIRECT($I$4),6,FALSE)),0,INT(VLOOKUP($D10,INDIRECT($I$4),2,FALSE)+VLOOKUP($D10,INDIRECT($I$4),3,FALSE)*I10+VLOOKUP($D10,INDIRECT($I$4),4,FALSE)*I10*I10)) -> 844 | I10: =IF(F10="[Man]",ROUND(E10,1)+VLOOKUP($D10,INDIRECT($I$4),5,FALSE)/100,E10) -> 39.07 | J10: (klub indtastes i Info skemaet) | M10: 34.7
D11: højde | E11: 1.1 | G11: =IF(OR(ISBLANK(E11), E11<VLOOKUP($D11,INDIRECT($I$4),6,FALSE)),0,INT(VLOOKUP($D11,INDIRECT($I$4),2,FALSE)+VLOOKUP($D11,INDIRECT($I$4),3,FALSE)*E11+VLOOKUP($D11,INDIRECT($I$4),4,FALSE)*E11*E11)) -> 681 | K11: =Info!G28 -> På diplom | M11: 1.46
D12: længde | G12: =IF(OR(ISBLANK(E12), E12<VLOOKUP($D12,INDIRECT($I$4),6,FALSE)),0,INT(VLOOKUP($D12,INDIRECT($I$4),2,FALSE)+VLOOKUP($D12,INDIRECT($I$4),3,FALSE)*E12+VLOOKUP($D12,INDIRECT($I$4),4,FALSE)*E12*E12)) -> 0 | M12: 4.85
D13: kugle | G13: =IF(OR(ISBLANK(E13), E13<VLOOKUP($D13,INDIRECT($I$4),6,FALSE)),0,INT(VLOOKUP($D13,INDIRECT($I$4),2,FALSE)+VLOOKUP($D13,INDIRECT($I$4),3,FALSE)*E13+VLOOKUP($D13,INDIRECT($I$4),4,FALSE)*E13*E13)) -> 0 | M13: 10.45
D14: bold | G14: =IF(OR(ISBLANK(E14), E14<VLOOKUP($D14,INDIRECT($I$4),6,FALSE)),0,INT(VLOOKUP($D14,INDIRECT($I$4),2,FALSE)+VLOOKUP($D14,INDIRECT($I$4),3,FALSE)*E14+VLOOKUP($D14,INDIRECT($I$4),4,FALSE)*E14*E14)) -> 0 | M14: 57.97
D15: Point | G15: =LARGE(G6:G10,1)+LARGE(G11:G12,1)+LARGE(G13:G14,1)+LARGE(I15:I17,1) -> 2217 | I15: =LARGE(G6:G10,2) -> 692
D16: Mærke | G16: =IF(G15>=G19,D19,IF(G15>=G18,D18,IF(G15>=G17,D17,"ingen"))) -> Bronze | I16: =LARGE(G11:G12,2) -> 0
D17: Bronze | G17: 1100 | I17: =LARGE(G13:G14,2) -> 0
D18: Sølv | G18: 2400
D19: Guld | G19: 3600

Sheet D11_Resultater
D3: Køn | E3: Alder
D4: D | E4: 11 | G4: år | I4: =CONCATENATE("DAF_",D4,E4) -> DAF_D11
E5: Res. | G5: Point
D6: 60m | G6: =IF(OR(ISBLANK(E6),E6>VLOOKUP($D6,INDIRECT($I$4),6,FALSE)),0,INT(VLOOKUP($D6,INDIRECT($I$4),2,FALSE)+VLOOKUP($D6,INDIRECT($I$4),3,FALSE)*I6+VLOOKUP($D6,INDIRECT($I$4),4,FALSE)*I6*I6)) -> 0 | I6: =IF(F6="[Man]",ROUND(E6,1)+VLOOKUP($D6,INDIRECT($I$4),5,FALSE)/100,E6) -> 0 | M6: =VLOOKUP($D6,INDIRECT($I$4),7,FALSE) -> 8.59
D7: 400m | G7: =IF(OR(ISBLANK(E7),E7>VLOOKUP($D7,INDIRECT($I$4),6,FALSE)),0,INT(VLOOKUP($D7,INDIRECT($I$4),2,FALSE)+VLOOKUP($D7,INDIRECT($I$4),3,FALSE)*I7+VLOOKUP($D7,INDIRECT($I$4),4,FALSE)*I7*I7)) -> 0 | I7: =IF(F7="[Man]",ROUND(E7,1)+VLOOKUP($D7,INDIRECT($I$4),5,FALSE)/100,E7) -> 0 | M7: =VLOOKUP($D7,INDIRECT($I$4),7,FALSE) -> 60.79
D8: 1000m | G8: =IF(OR(ISBLANK(E8), E8>VLOOKUP($D8,INDIRECT($I$4),6,FALSE)),0,INT(VLOOKUP($D8,INDIRECT($I$4),2,FALSE)+VLOOKUP($D8,INDIRECT($I$4),3,FALSE)*E8*86400+VLOOKUP($D8,INDIRECT($I$4),4,FALSE)*E8*86400*E8*86400)) -> 0 | J8: Navn: | M8: 00:03:04.930
D9: 60mH | G9: =IF(OR(ISBLANK(E9),E9>VLOOKUP($D9,INDIRECT($I$4),6,FALSE)),0,INT(VLOOKUP($D9,INDIRECT($I$4),2,FALSE)+VLOOKUP($D9,INDIRECT($I$4),3,FALSE)*I9+VLOOKUP($D9,INDIRECT($I$4),4,FALSE)*I9*I9)) -> 0 | I9: =IF(F9="[Man]",ROUND(E9,1)+VLOOKUP($D9,INDIRECT($I$4),5,FALSE)/100,E9) -> 0 | J9: Klub: | K9: =IF(Info!D29=0," ",Info!D29) -> Vejle IF | M9: 10.74
D10: 4x60m | E10: 38.18 | G10: =IF(OR(ISBLANK(E10),E10>VLOOKUP($D10,INDIRECT($I$4),6,FALSE)),0,INT(VLOOKUP($D10,INDIRECT($I$4),2,FALSE)+VLOOKUP($D10,INDIRECT($I$4),3,FALSE)*I10+VLOOKUP($D10,INDIRECT($I$4),4,FALSE)*I10*I10)) -> 791 | I10: =IF(F10="[Man]",ROUND(E10,1)+VLOOKUP($D10,INDIRECT($I$4),5,FALSE)/100,E10) -> 38.18 | J10: (klub indtastes i Info skemaet) | M10: 33.64
D11: højde | G11: =IF(OR(ISBLANK(E11), E11<VLOOKUP($D11,INDIRECT($I$4),6,FALSE)),0,INT(VLOOKUP($D11,INDIRECT($I$4),2,FALSE)+VLOOKUP($D11,INDIRECT($I$4),3,FALSE)*E11+VLOOKUP($D11,INDIRECT($I$4),4,FALSE)*E11*E11)) -> 0 | K11: =Info!G28 -> På diplom | M11: 1.52
D12: længde | G12: =IF(OR(ISBLANK(E12), E12<VLOOKUP($D12,INDIRECT($I$4),6,FALSE)),0,INT(VLOOKUP($D12,INDIRECT($I$4),2,FALSE)+VLOOKUP($D12,INDIRECT($I$4),3,FALSE)*E12+VLOOKUP($D12,INDIRECT($I$4),4,FALSE)*E12*E12)) -> 0 | M12: 5.05
D13: kugle | G13: =IF(OR(ISBLANK(E13), E13<VLOOKUP($D13,INDIRECT($I$4),6,FALSE)),0,INT(VLOOKUP($D13,INDIRECT($I$4),2,FALSE)+VLOOKUP($D13,INDIRECT($I$4),3,FALSE)*E13+VLOOKUP($D13,INDIRECT($I$4),4,FALSE)*E13*E13)) -> 0 | M13: 10.61
D14: bold | G14: =IF(OR(ISBLANK(E14), E14<VLOOKUP($D14,INDIRECT($I$4),6,FALSE)),0,INT(VLOOKUP($D14,INDIRECT($I$4),2,FALSE)+VLOOKUP($D14,INDIRECT($I$4),3,FALSE)*E14+VLOOKUP($D14,INDIRECT($I$4),4,FALSE)*E14*E14)) -> 0 | M14: 59.98
D15: Point | G15: =LARGE(G6:G10,1)+LARGE(G11:G12,1)+LARGE(G13:G14,1)+LARGE(I15:I17,1) -> 791 | I15: =LARGE(G6:G10,2) -> 0
D16: Mærke | G16: =IF(G15>=G19,D19,IF(G15>=G18,D18,IF(G15>=G17,D17,"ingen"))) -> ingen | I16: =LARGE(G11:G12,2) -> 0
D17: Bronze | G17: 1100 | I17: =LARGE(G13:G14,2) -> 0
D18: Sølv | G18: 2400
D19: Guld | G19: 3600

Sheet P12_Resultater
D3: Køn | E3: Alder
D4: P | E4: 12 | G4: år | I4: =CONCATENATE("DAF_",D4,E4) -> DAF_P12
E5: Res. | G5: Point
D6: 80m | E6: 12.72 | G6: =IF(OR(ISBLANK(E6),E6>VLOOKUP($D6,INDIRECT($I$4),6,FALSE)),0,INT(VLOOKUP($D6,INDIRECT($I$4),2,FALSE)+VLOOKUP($D6,INDIRECT($I$4),3,FALSE)*I6+VLOOKUP($D6,INDIRECT($I$4),4,FALSE)*I6*I6)) -> 364 | I6: =IF(F6="[Man]",ROUND(E6,1)+VLOOKUP($D6,INDIRECT($I$4),5,FALSE)/100,E6) -> 12.72 | M6: =VLOOKUP($D6,INDIRECT($I$4),7,FALSE) -> 9.76
D7: 200m | G7: =IF(OR(ISBLANK(E7),E7>VLOOKUP($D7,INDIRECT($I$4),6,FALSE)),0,INT(VLOOKUP($D7,INDIRECT($I$4),2,FALSE)+VLOOKUP($D7,INDIRECT($I$4),3,FALSE)*I7+VLOOKUP($D7,INDIRECT($I$4),4,FALSE)*I7*I7)) -> 0 | I7: =IF(F7="[Man]",ROUND(E7,1)+VLOOKUP($D7,INDIRECT($I$4),5,FALSE)/100,E7) -> 0 | M7: =VLOOKUP($D7,INDIRECT($I$4),7,FALSE) -> 24.43
D8: 600m | E8: 00:01:57.010 | G8: =IF(OR(ISBLANK(E8), E8>VLOOKUP($D8,INDIRECT($I$4),6,FALSE)),0,INT(VLOOKUP($D8,INDIRECT($I$4),2,FALSE)+VLOOKUP($D8,INDIRECT($I$4),3,FALSE)*E8*86400+VLOOKUP($D8,INDIRECT($I$4),4,FALSE)*E8*86400*E8*86400)) -> 844 | J8: Navn: | K8: Silje Noe | M8: 00:01:34.450
D9: 1000m | E9: 00:03:28.290 | G9: =IF(OR(ISBLANK(E9), E9>VLOOKUP($D9,INDIRECT($I$4),6,FALSE)),0,INT(VLOOKUP($D9,INDIRECT($I$4),2,FALSE)+VLOOKUP($D9,INDIRECT($I$4),3,FALSE)*E9*86400+VLOOKUP($D9,INDIRECT($I$4),4,FALSE)*E9*86400*E9*86400)) -> 481 | J9: Klub: | K9: =IF(Info!D29=0," ",Info!D29) -> Vejle IF | M9: 00:02:43.160
D10: 60mH | G10: =IF(OR(ISBLANK(E10),E10>VLOOKUP($D10,INDIRECT($I$4),6,FALSE)),0,INT(VLOOKUP($D10,INDIRECT($I$4),2,FALSE)+VLOOKUP($D10,INDIRECT($I$4),3,FALSE)*I10+VLOOKUP($D10,INDIRECT($I$4),4,FALSE)*I10*I10)) -> 0 | I10: =IF(F10="[Man]",ROUND(E10,1)+VLOOKUP($D10,INDIRECT($I$4),5,FALSE)/100,E10) -> 0 | J10: (klub indtastes i Info skemaet) | M10: 9.11
D11: 4x80m | E11: 48.24 | G11: =IF(OR(ISBLANK(E11),E11>VLOOKUP($D11,INDIRECT($I$4),6,FALSE)),0,INT(VLOOKUP($D11,INDIRECT($I$4),2,FALSE)+VLOOKUP($D11,INDIRECT($I$4),3,FALSE)*I11+VLOOKUP($D11,INDIRECT($I$4),4,FALSE)*I11*I11)) -> 765 | I11: =IF(F11="[Man]",ROUND(E11,1)+VLOOKUP($D11,INDIRECT($I$4),5,FALSE)/100,E11) -> 48.24 | K11: =Info!G28 -> På diplom | M11: 40.9
D12: højde | E12: 1.15 | G12: =IF(OR(ISBLANK(E12), E12<VLOOKUP($D12,INDIRECT($I$4),6,FALSE)),0,INT(VLOOKUP($D12,INDIRECT($I$4),2,FALSE)+VLOOKUP($D12,INDIRECT($I$4),3,FALSE)*E12+VLOOKUP($D12,INDIRECT($I$4),4,FALSE)*E12*E12)) -> 572 | M12: 1.7
D13: længde | G13: =IF(OR(ISBLANK(E13), E13<VLOOKUP($D13,INDIRECT($I$4),6,FALSE)),0,INT(VLOOKUP($D13,INDIRECT($I$4),2,FALSE)+VLOOKUP($D13,INDIRECT($I$4),3,FALSE)*E13+VLOOKUP($D13,INDIRECT($I$4),4,FALSE)*E13*E13)) -> 0 | M13: 6.09
D14: stang | G14: 0 | M14: 3.48
D15: kugle | E15: 6.82 | G15: =IF(OR(ISBLANK(E15), E15<VLOOKUP($D15,INDIRECT($I$4),6,FALSE)),0,INT(VLOOKUP($D15,INDIRECT($I$4),2,FALSE)+VLOOKUP($D15,INDIRECT($I$4),3,FALSE)*E15+VLOOKUP($D15,INDIRECT($I$4),4,FALSE)*E15*E15)) -> 507 | M15: 14.44
D16: diskos | E16: 13.59 | G16: =IF(OR(ISBLANK(E16), E16<VLOOKUP($D16,INDIRECT($I$4),6,FALSE)),0,INT(VLOOKUP($D16,INDIRECT($I$4),2,FALSE)+VLOOKUP($D16,INDIRECT($I$4),3,FALSE)*E16+VLOOKUP($D16,INDIRECT($I$4),4,FALSE)*E16*E16)) -> 243 | M16: 45.31
D17: hammer | G17: 0 | M17: 41.39
D18: spyd | G18: 0 | M18: 40.99
D19: bold | G19: 0 | M19: 68.82
D20: Point | G20: =LARGE(G6:G11,1)+LARGE(G12:G14,1)+LARGE(G15:G19,1)+LARGE(I20:I22,1) -> 2688 | I20: =LARGE(G6:G11,2) -> 765
D21: Mærke | G21: =IF(G20>=G24,D24,IF(G20>=G23,D23,IF(G20>=G22,D22,"ingen"))) -> Sølv | I21: =LARGE(G12:G14,2) -> 0
D22: Bronze | G22: 1000 | I22: =LARGE(G15:G19,2) -> 243
D23: Sølv | G23: 2000
D24: Guld | G24: 3000

Sheet D12_Resultater
D3: Køn | E3: Alder
D4: D | E4: 12 | G4: år | I4: =CONCATENATE("DAF_",D4,E4) -> DAF_D12
E5: Res. | G5: Point
D6: 80m | G6: =IF(OR(ISBLANK(E6),E6>VLOOKUP($D6,INDIRECT($I$4),6,FALSE)),0,INT(VLOOKUP($D6,INDIRECT($I$4),2,FALSE)+VLOOKUP($D6,INDIRECT($I$4),3,FALSE)*I6+VLOOKUP($D6,INDIRECT($I$4),4,FALSE)*I6*I6)) -> 0 | I6: =IF(F6="[Man]",ROUND(E6,1)+VLOOKUP($D6,INDIRECT($I$4),5,FALSE)/100,E6) -> 0 | M6: =VLOOKUP($D6,INDIRECT($I$4),7,FALSE) -> 9.22
D7: 200m | G7: =IF(OR(ISBLANK(E7),E7>VLOOKUP($D7,INDIRECT($I$4),6,FALSE)),0,INT(VLOOKUP($D7,INDIRECT($I$4),2,FALSE)+VLOOKUP($D7,INDIRECT($I$4),3,FALSE)*I7+VLOOKUP($D7,INDIRECT($I$4),4,FALSE)*I7*I7)) -> 0 | I7: =IF(F7="[Man]",ROUND(E7,1)+VLOOKUP($D7,INDIRECT($I$4),5,FALSE)/100,E7) -> 0 | M7: =VLOOKUP($D7,INDIRECT($I$4),7,FALSE) -> 22.58
D8: 600m | G8: =IF(OR(ISBLANK(E8), E8>VLOOKUP($D8,INDIRECT($I$4),6,FALSE)),0,INT(VLOOKUP($D8,INDIRECT($I$4),2,FALSE)+VLOOKUP($D8,INDIRECT($I$4),3,FALSE)*E8*86400+VLOOKUP($D8,INDIRECT($I$4),4,FALSE)*E8*86400*E8*86400)) -> 0 | J8: Navn: | M8: 00:01:31.560
D9: 1000m | G9: =IF(OR(ISBLANK(E9), E9>VLOOKUP($D9,INDIRECT($I$4),6,FALSE)),0,INT(VLOOKUP($D9,INDIRECT($I$4),2,FALSE)+VLOOKUP($D9,INDIRECT($I$4),3,FALSE)*E9*86400+VLOOKUP($D9,INDIRECT($I$4),4,FALSE)*E9*86400*E9*86400)) -> 0 | J9: Klub: | K9: =IF(Info!D29=0," ",Info!D29) -> Vejle IF | M9: 00:02:34.190
D10: 80mH | G10: =IF(OR(ISBLANK(E10),E10>VLOOKUP($D10,INDIRECT($I$4),6,FALSE)),0,INT(VLOOKUP($D10,INDIRECT($I$4),2,FALSE)+VLOOKUP($D10,INDIRECT($I$4),3,FALSE)*I10+VLOOKUP($D10,INDIRECT($I$4),4,FALSE)*I10*I10)) -> 0 | I10: =IF(F10="[Man]",ROUND(E10,1)+VLOOKUP($D10,INDIRECT($I$4),5,FALSE)/100,E10) -> 0 | J10: (klub indtastes i Info skemaet) | M10: 10.69
D11: 4x80m | G11: =IF(OR(ISBLANK(E11),E11>VLOOKUP($D11,INDIRECT($I$4),6,FALSE)),0,INT(VLOOKUP($D11,INDIRECT($I$4),2,FALSE)+VLOOKUP($D11,INDIRECT($I$4),3,FALSE)*I11+VLOOKUP($D11,INDIRECT($I$4),4,FALSE)*I11*I11)) -> 0 | I11: =IF(F11="[Man]",ROUND(E11,1)+VLOOKUP($D11,INDIRECT($I$4),5,FALSE)/100,E11) -> 0 | K11: =Info!G28 -> På diplom | M11: 38.9
D12: højde | G12: =IF(OR(ISBLANK(E12), E12<VLOOKUP($D12,INDIRECT($I$4),6,FALSE)),0,INT(VLOOKUP($D12,INDIRECT($I$4),2,FALSE)+VLOOKUP($D12,INDIRECT($I$4),3,FALSE)*E12+VLOOKUP($D12,INDIRECT($I$4),4,FALSE)*E12*E12)) -> 0 | M12: 1.89
D13: længde | G13: =IF(OR(ISBLANK(E13), E13<VLOOKUP($D13,INDIRECT($I$4),6,FALSE)),0,INT(VLOOKUP($D13,INDIRECT($I$4),2,FALSE)+VLOOKUP($D13,INDIRECT($I$4),3,FALSE)*E13+VLOOKUP($D13,INDIRECT($I$4),4,FALSE)*E13*E13)) -> 0 | M13: 6.41
D14: stang | G14: 0 | M14: 3.78
D15: kugle | G15: =IF(OR(ISBLANK(E15), E15<VLOOKUP($D15,INDIRECT($I$4),6,FALSE)),0,INT(VLOOKUP($D15,INDIRECT($I$4),2,FALSE)+VLOOKUP($D15,INDIRECT($I$4),3,FALSE)*E15+VLOOKUP($D15,INDIRECT($I$4),4,FALSE)*E15*E15)) -> 0 | M15: 16.44
D16: diskos | G16: =IF(OR(ISBLANK(E16), E16<VLOOKUP($D16,INDIRECT($I$4),6,FALSE)),0,INT(VLOOKUP($D16,INDIRECT($I$4),2,FALSE)+VLOOKUP($D16,INDIRECT($I$4),3,FALSE)*E16+VLOOKUP($D16,INDIRECT($I$4),4,FALSE)*E16*E16)) -> 0 | M16: 54.88
D17: hammer | G17: 0 | M17: 54.88
D18: spyd | G18: 0 | M18: 54.9
D19: bold | G19: 0 | M19: 84.29
D20: Point | G20: =LARGE(G6:G11,1)+LARGE(G12:G14,1)+LARGE(G15:G19,1)+LARGE(I20:I22,1) -> 0 | I20: =LARGE(G6:G11,2) -> 0
D21: Mærke | G21: =IF(G20>=G24,D24,IF(G20>=G23,D23,IF(G20>=G22,D22,"ingen"))) -> ingen | I21: =LARGE(G12:G14,2) -> 0
D22: Bronze | G22: 1000 | I22: =LARGE(G15:G19,2) -> 0
D23: Sølv | G23: 2000
D24: Guld | G24: 3000

Sheet P13_Resultater
D3: Køn | E3: Alder
D4: P | E4: 13 | G4: år | I4: =CONCATENATE("DAF_",D4,E4) -> DAF_P13
E5: Res. | G5: Point
D6: 80m | G6: =IF(OR(ISBLANK(E6),E6>VLOOKUP($D6,INDIRECT($I$4),6,FALSE)),0,INT(VLOOKUP($D6,INDIRECT($I$4),2,FALSE)+VLOOKUP($D6,INDIRECT($I$4),3,FALSE)*I6+VLOOKUP($D6,INDIRECT($I$4),4,FALSE)*I6*I6)) -> 0 | I6: =IF(F6="[Man]",ROUND(E6,1)+VLOOKUP($D6,INDIRECT($I$4),5,FALSE)/100,E6) -> 0 | M6: =VLOOKUP($D6,INDIRECT($I$4),7,FALSE) -> 9.76
D7: 200m | G7: =IF(OR(ISBLANK(E7),E7>VLOOKUP($D7,INDIRECT($I$4),6,FALSE)),0,INT(VLOOKUP($D7,INDIRECT($I$4),2,FALSE)+VLOOKUP($D7,INDIRECT($I$4),3,FALSE)*I7+VLOOKUP($D7,INDIRECT($I$4),4,FALSE)*I7*I7)) -> 0 | I7: =IF(F7="[Man]",ROUND(E7,1)+VLOOKUP($D7,INDIRECT($I$4),5,FALSE)/100,E7) -> 0 | M7: =VLOOKUP($D7,INDIRECT($I$4),7,FALSE) -> 24.43
D8: 600m | G8: =IF(OR(ISBLANK(E8), E8>VLOOKUP($D8,INDIRECT($I$4),6,FALSE)),0,INT(VLOOKUP($D8,INDIRECT($I$4),2,FALSE)+VLOOKUP($D8,INDIRECT($I$4),3,FALSE)*E8*86400+VLOOKUP($D8,INDIRECT($I$4),4,FALSE)*E8*86400*E8*86400)) -> 0 | J8: Navn: | M8: 00:01:34.450
D9: 1000m | G9: =IF(OR(ISBLANK(E9), E9>VLOOKUP($D9,INDIRECT($I$4),6,FALSE)),0,INT(VLOOKUP($D9,INDIRECT($I$4),2,FALSE)+VLOOKUP($D9,INDIRECT($I$4),3,FALSE)*E9*86400+VLOOKUP($D9,INDIRECT($I$4),4,FALSE)*E9*86400*E9*86400)) -> 0 | J9: Klub: | K9: =IF(Info!D29=0," ",Info!D29) -> Vejle IF | M9: 00:02:43.160
D10: 60mH | G10: =IF(OR(ISBLANK(E10),E10>VLOOKUP($D10,INDIRECT($I$4),6,FALSE)),0,INT(VLOOKUP($D10,INDIRECT($I$4),2,FALSE)+VLOOKUP($D10,INDIRECT($I$4),3,FALSE)*I10+VLOOKUP($D10,INDIRECT($I$4),4,FALSE)*I10*I10)) -> 0 | I10: =IF(F10="[Man]",ROUND(E10,1)+VLOOKUP($D10,INDIRECT($I$4),5,FALSE)/100,E10) -> 0 | J10: (klub indtastes i Info skemaet) | M10: 9.11
D11: 4x80m | E11: 45.81 | G11: =IF(OR(ISBLANK(E11),E11>VLOOKUP($D11,INDIRECT($I$4),6,FALSE)),0,INT(VLOOKUP($D11,INDIRECT($I$4),2,FALSE)+VLOOKUP($D11,INDIRECT($I$4),3,FALSE)*I11+VLOOKUP($D11,INDIRECT($I$4),4,FALSE)*I11*I11)) -> 899 | I11: =IF(F11="[Man]",ROUND(E11,1)+VLOOKUP($D11,INDIRECT($I$4),5,FALSE)/100,E11) -> 45.81 | K11: =Info!G28 -> På diplom | M11: 40.9
D12: højde | G12: =IF(OR(ISBLANK(E12), E12<VLOOKUP($D12,INDIRECT($I$4),6,FALSE)),0,INT(VLOOKUP($D12,INDIRECT($I$4),2,FALSE)+VLOOKUP($D12,INDIRECT($I$4),3,FALSE)*E12+VLOOKUP($D12,INDIRECT($I$4),4,FALSE)*E12*E12)) -> 0 | M12: 1.7
D13: længde | G13: =IF(OR(ISBLANK(E13), E13<VLOOKUP($D13,INDIRECT($I$4),6,FALSE)),0,INT(VLOOKUP($D13,INDIRECT($I$4),2,FALSE)+VLOOKUP($D13,INDIRECT($I$4),3,FALSE)*E13+VLOOKUP($D13,INDIRECT($I$4),4,FALSE)*E13*E13)) -> 0 | M13: 6.09
D14: stang | G14: 0 | M14: 3.48
D15: kugle | G15: =IF(OR(ISBLANK(E15), E15<VLOOKUP($D15,INDIRECT($I$4),6,FALSE)),0,INT(VLOOKUP($D15,INDIRECT($I$4),2,FALSE)+VLOOKUP($D15,INDIRECT($I$4),3,FALSE)*E15+VLOOKUP($D15,INDIRECT($I$4),4,FALSE)*E15*E15)) -> 0 | M15: 14.44
D16: diskos | G16: =IF(OR(ISBLANK(E16), E16<VLOOKUP($D16,INDIRECT($I$4),6,FALSE)),0,INT(VLOOKUP($D16,INDIRECT($I$4),2,FALSE)+VLOOKUP($D16,INDIRECT($I$4),3,FALSE)*E16+VLOOKUP($D16,INDIRECT($I$4),4,FALSE)*E16*E16)) -> 0 | M16: 45.31
D17: hammer | G17: 0 | M17: 41.39
D18: spyd | G18: 0 | M18: 40.99
D19: bold | G19: 0 | M19: 68.82
D20: Point | G20: =LARGE(G6:G11,1)+LARGE(G12:G14,1)+LARGE(G15:G19,1)+LARGE(I20:I22,1) -> 899 | I20: =LARGE(G6:G11,2) -> 0
D21: Mærke | G21: =IF(G20>=G24,D24,IF(G20>=G23,D23,IF(G20>=G22,D22,"ingen"))) -> ingen | I21: =LARGE(G12:G14,2) -> 0
D22: Bronze | G22: 1100 | I22: =LARGE(G15:G19,2) -> 0
D23: Sølv | G23: 2200
D24: Guld | G24: 3200

Sheet D13_Resultater
D3: Køn | E3: Alder
D4: D | E4: 13 | G4: år | I4: =CONCATENATE("DAF_",D4,E4) -> DAF_D13
E5: Res. | G5: Point
D6: 80m | G6: =IF(OR(ISBLANK(E6),E6>VLOOKUP($D6,INDIRECT($I$4),6,FALSE)),0,INT(VLOOKUP($D6,INDIRECT($I$4),2,FALSE)+VLOOKUP($D6,INDIRECT($I$4),3,FALSE)*I6+VLOOKUP($D6,INDIRECT($I$4),4,FALSE)*I6*I6)) -> 0 | I6: =IF(F6="[Man]",ROUND(E6,1)+VLOOKUP($D6,INDIRECT($I$4),5,FALSE)/100,E6) -> 0 | M6: =VLOOKUP($D6,INDIRECT($I$4),7,FALSE) -> 9.22
D7: 200m | G7: =IF(OR(ISBLANK(E7),E7>VLOOKUP($D7,INDIRECT($I$4),6,FALSE)),0,INT(VLOOKUP($D7,INDIRECT($I$4),2,FALSE)+VLOOKUP($D7,INDIRECT($I$4),3,FALSE)*I7+VLOOKUP($D7,INDIRECT($I$4),4,FALSE)*I7*I7)) -> 0 | I7: =IF(F7="[Man]",ROUND(E7,1)+VLOOKUP($D7,INDIRECT($I$4),5,FALSE)/100,E7) -> 0 | M7: =VLOOKUP($D7,INDIRECT($I$4),7,FALSE) -> 22.58
D8: 600m | G8: =IF(OR(ISBLANK(E8), E8>VLOOKUP($D8,INDIRECT($I$4),6,FALSE)),0,INT(VLOOKUP($D8,INDIRECT($I$4),2,FALSE)+VLOOKUP($D8,INDIRECT($I$4),3,FALSE)*E8*86400+VLOOKUP($D8,INDIRECT($I$4),4,FALSE)*E8*86400*E8*86400)) -> 0 | J8: Navn: | K8: Rasmus Høier Sieverts | M8: 00:01:31.560
D9: 1000m | G9: =IF(OR(ISBLANK(E9), E9>VLOOKUP($D9,INDIRECT($I$4),6,FALSE)),0,INT(VLOOKUP($D9,INDIRECT($I$4),2,FALSE)+VLOOKUP($D9,INDIRECT($I$4),3,FALSE)*E9*86400+VLOOKUP($D9,INDIRECT($I$4),4,FALSE)*E9*86400*E9*86400)) -> 0 | J9: Klub: | K9: =IF(Info!D29=0," ",Info!D29) -> Vejle IF | M9: 00:02:34.190
D10: 80mH | G10: =IF(OR(ISBLANK(E10),E10>VLOOKUP($D10,INDIRECT($I$4),6,FALSE)),0,INT(VLOOKUP($D10,INDIRECT($I$4),2,FALSE)+VLOOKUP($D10,INDIRECT($I$4),3,FALSE)*I10+VLOOKUP($D10,INDIRECT($I$4),4,FALSE)*I10*I10)) -> 0 | I10: =IF(F10="[Man]",ROUND(E10,1)+VLOOKUP($D10,INDIRECT($I$4),5,FALSE)/100,E10) -> 0 | J10: (klub indtastes i Info skemaet) | M10: 10.69
D11: 4x80m | G11: =IF(OR(ISBLANK(E11),E11>VLOOKUP($D11,INDIRECT($I$4),6,FALSE)),0,INT(VLOOKUP($D11,INDIRECT($I$4),2,FALSE)+VLOOKUP($D11,INDIRECT($I$4),3,FALSE)*I11+VLOOKUP($D11,INDIRECT($I$4),4,FALSE)*I11*I11)) -> 0 | I11: =IF(F11="[Man]",ROUND(E11,1)+VLOOKUP($D11,INDIRECT($I$4),5,FALSE)/100,E11) -> 0 | K11: =Info!G28 -> På diplom | M11: 38.9
D12: højde | G12: =IF(OR(ISBLANK(E12), E12<VLOOKUP($D12,INDIRECT($I$4),6,FALSE)),0,INT(VLOOKUP($D12,INDIRECT($I$4),2,FALSE)+VLOOKUP($D12,INDIRECT($I$4),3,FALSE)*E12+VLOOKUP($D12,INDIRECT($I$4),4,FALSE)*E12*E12)) -> 0 | M12: 1.89
D13: længde | G13: =IF(OR(ISBLANK(E13), E13<VLOOKUP($D13,INDIRECT($I$4),6,FALSE)),0,INT(VLOOKUP($D13,INDIRECT($I$4),2,FALSE)+VLOOKUP($D13,INDIRECT($I$4),3,FALSE)*E13+VLOOKUP($D13,INDIRECT($I$4),4,FALSE)*E13*E13)) -> 0 | M13: 6.41
D14: stang | G14: 0 | M14: 3.78
D15: kugle | G15: =IF(OR(ISBLANK(E15), E15<VLOOKUP($D15,INDIRECT($I$4),6,FALSE)),0,INT(VLOOKUP($D15,INDIRECT($I$4),2,FALSE)+VLOOKUP($D15,INDIRECT($I$4),3,FALSE)*E15+VLOOKUP($D15,INDIRECT($I$4),4,FALSE)*E15*E15)) -> 0 | M15: 16.44
D16: diskos | G16: =IF(OR(ISBLANK(E16), E16<VLOOKUP($D16,INDIRECT($I$4),6,FALSE)),0,INT(VLOOKUP($D16,INDIRECT($I$4),2,FALSE)+VLOOKUP($D16,INDIRECT($I$4),3,FALSE)*E16+VLOOKUP($D16,INDIRECT($I$4),4,FALSE)*E16*E16)) -> 0 | M16: 54.88
D17: hammer | G17: 0 | M17: 54.88
D18: spyd | G18: 0 | M18: 54.9
D19: bold | G19: 0 | M19: 84.29
D20: Point | G20: =LARGE(G6:G11,1)+LARGE(G12:G14,1)+LARGE(G15:G19,1)+LARGE(I20:I22,1) -> 0 | I20: =LARGE(G6:G11,2) -> 0
D21: Mærke | G21: =IF(G20>=G24,D24,IF(G20>=G23,D23,IF(G20>=G22,D22,"ingen"))) -> ingen | I21: =LARGE(G12:G14,2) -> 0
D22: Bronze | G22: 1100 | I22: =LARGE(G15:G19,2) -> 0
D23: Sølv | G23: 2200
D24: Guld | G24: 3200

Sheet P14_Resultater
D3: Køn | E3: Alder
D4: P | E4: 14 | G4: år | I4: =CONCATENATE("DAF_",D4,E4) -> DAF_P14
E5: Res. | G5: Point
D6: 60m | G6: =IF(OR(ISBLANK(E6),E6>VLOOKUP($D6,INDIRECT($I$4),6,FALSE)),0,INT(VLOOKUP($D6,INDIRECT($I$4),2,FALSE)+VLOOKUP($D6,INDIRECT($I$4),3,FALSE)*I6+VLOOKUP($D6,INDIRECT($I$4),4,FALSE)*I6*I6)) -> 0 | I6: =IF(F6="[Man]",ROUND(E6,1)+VLOOKUP($D6,INDIRECT($I$4),5,FALSE)/100,E6) -> 0 | M6: =VLOOKUP($D6,INDIRECT($I$4),7,FALSE) -> 7.55
D7: 100m | G7: =IF(OR(ISBLANK(E7),E7>VLOOKUP($D7,INDIRECT($I$4),6,FALSE)),0,INT(VLOOKUP($D7,INDIRECT($I$4),2,FALSE)+VLOOKUP($D7,INDIRECT($I$4),3,FALSE)*I7+VLOOKUP($D7,INDIRECT($I$4),4,FALSE)*I7*I7)) -> 0 | I7: =IF(F7="[Man]",ROUND(E7,1)+VLOOKUP($D7,INDIRECT($I$4),5,FALSE)/100,E7) -> 0 | M7: =VLOOKUP($D7,INDIRECT($I$4),7,FALSE) -> 11.35
D8: 200m | G8: 0 | I8: =IF(F8="[Man]",ROUND(E8,1)+VLOOKUP($D8,INDIRECT($I$4),5,FALSE)/100,E8) -> 0 | J8: Navn: | M8: 22.74
D9: 300m | G9: 0 | I9: =IF(F9="[Man]",ROUND(E9,1)+VLOOKUP($D9,INDIRECT($I$4),5,FALSE)/100,E9) -> 0 | J9: Klub: | K9: =IF(Info!D29=0," ",Info!D29) -> Vejle IF | M9: 36.35
D10: 800m | G10: =IF(OR(ISBLANK(E10), E10>VLOOKUP($D10,INDIRECT($I$4),6,FALSE)),0,INT(VLOOKUP($D10,INDIRECT($I$4),2,FALSE)+VLOOKUP($D10,INDIRECT($I$4),3,FALSE)*E10*86400+VLOOKUP($D10,INDIRECT($I$4),4,FALSE)*E10*86400*E10*86400)) -> 0 | J10: (klub indtastes i Info skemaet) | M10: 00:02:01.950
D11: 1000m | G11: =IF(OR(ISBLANK(E11), E11>VLOOKUP($D11,INDIRECT($I$4),6,FALSE)),0,INT(VLOOKUP($D11,INDIRECT($I$4),2,FALSE)+VLOOKUP($D11,INDIRECT($I$4),3,FALSE)*E11*86400+VLOOKUP($D11,INDIRECT($I$4),4,FALSE)*E11*86400*E11*86400)) -> 0 | K11: =Info!G28 -> På diplom | M11: 00:02:37.940
D12: 1500m | G12: 0 | M12: 00:04:09.930
D13: 3000m | G13: 0 | M13: 00:08:54.800
D14: 60mH | G14: =IF(OR(ISBLANK(E14),E14>VLOOKUP($D14,INDIRECT($I$4),6,FALSE)),0,INT(VLOOKUP($D14,INDIRECT($I$4),2,FALSE)+VLOOKUP($D14,INDIRECT($I$4),3,FALSE)*I14+VLOOKUP($D14,INDIRECT($I$4),4,FALSE)*I14*I14)) -> 0 | I14: =IF(F14="[Man]",ROUND(E14,1)+VLOOKUP($D14,INDIRECT($I$4),5,FALSE)/100,E14) -> 0 | M14: 8.29
D15: 80mH | G15: 0 | I15: =IF(F15="[Man]",ROUND(E15,1)+VLOOKUP($D15,INDIRECT($I$4),5,FALSE)/100,E15) -> 0 | M15: 10.69
D16: 300mH | G16: 0 | I16: =IF(F16="[Man]",ROUND(E16,1)+VLOOKUP($D16,INDIRECT($I$4),5,FALSE)/100,E16) -> 0 | M16: 39.93
D17: 4x100m | G17: 0 | I17: =IF(F17="[Man]",ROUND(E17,1)+VLOOKUP($D17,INDIRECT($I$4),5,FALSE)/100,E17) -> 0 | M17: 45.09
D18: højde | G18: =IF(OR(ISBLANK(E18), E18<VLOOKUP($D18,INDIRECT($I$4),6,FALSE)),0,INT(VLOOKUP($D18,INDIRECT($I$4),2,FALSE)+VLOOKUP($D18,INDIRECT($I$4),3,FALSE)*E18+VLOOKUP($D18,INDIRECT($I$4),4,FALSE)*E18*E18)) -> 0 | M18: 1.89
D19: længde | G19: =IF(OR(ISBLANK(E19), E19<VLOOKUP($D19,INDIRECT($I$4),6,FALSE)),0,INT(VLOOKUP($D19,INDIRECT($I$4),2,FALSE)+VLOOKUP($D19,INDIRECT($I$4),3,FALSE)*E19+VLOOKUP($D19,INDIRECT($I$4),4,FALSE)*E19*E19)) -> 0 | M19: 6.48
D20: stang | G20: =IF(OR(ISBLANK(E20), E20<VLOOKUP($D20,INDIRECT($I$4),6,FALSE)),0,INT(VLOOKUP($D20,INDIRECT($I$4),2,FALSE)+VLOOKUP($D20,INDIRECT($I$4),3,FALSE)*E20+VLOOKUP($D20,INDIRECT($I$4),4,FALSE)*E20*E20)) -> 0 | M20: 3.78
D21: kugle | G21: 0 | M21: 17.56
D22: diskos | G22: 0 | M22: 56.46
D23: hammer | G23: =IF(OR(ISBLANK(E23), E23<VLOOKUP($D23,INDIRECT($I$4),6,FALSE)),0,INT(VLOOKUP($D23,INDIRECT($I$4),2,FALSE)+VLOOKUP($D23,INDIRECT($I$4),3,FALSE)*E23+VLOOKUP($D23,INDIRECT($I$4),4,FALSE)*E23*E23)) -> 0 | M23: 56.27
D24: spyd | G24: 0 | M24: 69.6
D25: Point | G25: =LARGE(G6:G17,1)+LARGE(G18:G20,1)+LARGE(G21:G24,1)+LARGE(I26:I28,1) -> 0
D26: Mærke | G26: =IF(G25>=G29,D29,IF(G25>=G28,D28,IF(G25>=G27,D27,"ingen"))) -> ingen | I26: =LARGE(G6:G17,2) -> 0
D27: Bronze | G27: 1000 | I27: =LARGE(G18:G20,2) -> 0
D28: Sølv | G28: 2000 | I28: =LARGE(G21:G24,2) -> 0
D29: Guld | G29: 2800

Sheet D14_Resultater
D3: Køn | E3: Alder
D4: D | E4: 14 | G4: år | I4: =CONCATENATE("DAF_",D4,E4) -> DAF_D14
E5: Res. | G5: Point
D6: 60m | G6: =IF(OR(ISBLANK(E6),E6>VLOOKUP($D6,INDIRECT($I$4),6,FALSE)),0,INT(VLOOKUP($D6,INDIRECT($I$4),2,FALSE)+VLOOKUP($D6,INDIRECT($I$4),3,FALSE)*I6+VLOOKUP($D6,INDIRECT($I$4),4,FALSE)*I6*I6)) -> 0 | I6: =IF(F6="[Man]",ROUND(E6,1)+VLOOKUP($D6,INDIRECT($I$4),5,FALSE)/100,E6) -> 0 | M6: =VLOOKUP($D6,INDIRECT($I$4),7,FALSE) -> 7.05
D7: 100m | G7: =IF(OR(ISBLANK(E7),E7>VLOOKUP($D7,INDIRECT($I$4),6,FALSE)),0,INT(VLOOKUP($D7,INDIRECT($I$4),2,FALSE)+VLOOKUP($D7,INDIRECT($I$4),3,FALSE)*I7+VLOOKUP($D7,INDIRECT($I$4),4,FALSE)*I7*I7)) -> 0 | I7: =IF(F7="[Man]",ROUND(E7,1)+VLOOKUP($D7,INDIRECT($I$4),5,FALSE)/100,E7) -> 0 | M7: =VLOOKUP($D7,INDIRECT($I$4),7,FALSE) -> 10.38
D8: 200m | G8: 0 | I8: =IF(F8="[Man]",ROUND(E8,1)+VLOOKUP($D8,INDIRECT($I$4),5,FALSE)/100,E8) -> 0 | J8: Navn: | M8: 20.78
D9: 300m | G9: 0 | I9: =IF(F9="[Man]",ROUND(E9,1)+VLOOKUP($D9,INDIRECT($I$4),5,FALSE)/100,E9) -> 0 | J9: Klub: | K9: =IF(Info!D29=0," ",Info!D29) -> Vejle IF | M9: 34.23
D10: 800m | G10: =IF(OR(ISBLANK(E10), E10>VLOOKUP($D10,INDIRECT($I$4),6,FALSE)),0,INT(VLOOKUP($D10,INDIRECT($I$4),2,FALSE)+VLOOKUP($D10,INDIRECT($I$4),3,FALSE)*E10*86400+VLOOKUP($D10,INDIRECT($I$4),4,FALSE)*E10*86400*E10*86400)) -> 0 | J10: (klub indtastes i Info skemaet) | M10: 00:01:48.980
D11: 1000m | G11: =IF(OR(ISBLANK(E11), E11>VLOOKUP($D11,INDIRECT($I$4),6,FALSE)),0,INT(VLOOKUP($D11,INDIRECT($I$4),2,FALSE)+VLOOKUP($D11,INDIRECT($I$4),3,FALSE)*E11*86400+VLOOKUP($D11,INDIRECT($I$4),4,FALSE)*E11*86400*E11*86400)) -> 0 | K11: =Info!G28 -> På diplom | M11: 00:02:20.750
D12: 1500m | G12: 0 | M12: 00:03:43.970
D13: 3000m | G13: 0 | M13: 00:08:05.020
D14: 60mH | G14: =IF(OR(ISBLANK(E14),E14>VLOOKUP($D14,INDIRECT($I$4),6,FALSE)),0,INT(VLOOKUP($D14,INDIRECT($I$4),2,FALSE)+VLOOKUP($D14,INDIRECT($I$4),3,FALSE)*I14+VLOOKUP($D14,INDIRECT($I$4),4,FALSE)*I14*I14)) -> 0 | I14: =IF(F14="[Man]",ROUND(E14,1)+VLOOKUP($D14,INDIRECT($I$4),5,FALSE)/100,E14) -> 0 | M14: 8.07
D15: 100mH | G15: 0 | I15: =IF(F15="[Man]",ROUND(E15,1)+VLOOKUP($D15,INDIRECT($I$4),5,FALSE)/100,E15) -> 0 | M15: 12.92
D16: 300mH | G16: 0 | I16: =IF(F16="[Man]",ROUND(E16,1)+VLOOKUP($D16,INDIRECT($I$4),5,FALSE)/100,E16) -> 0 | M16: 35.97
D17: 1500mFH | G17: =IF(OR(ISBLANK(E17), E17>VLOOKUP($D17,INDIRECT($I$4),6,FALSE)),0,INT(VLOOKUP($D17,INDIRECT($I$4),2,FALSE)+VLOOKUP($D17,INDIRECT($I$4),3,FALSE)*E17*86400+VLOOKUP($D17,INDIRECT($I$4),4,FALSE)*E17*86400*E17*86400)) -> 0 | M17: 00:04:04.830
D18: 4x100m | G18: 0 | I18: =IF(F18="[Man]",ROUND(E18,1)+VLOOKUP($D18,INDIRECT($I$4),5,FALSE)/100,E18) -> 0 | M18: 42.85
D19: højde | G19: =IF(OR(ISBLANK(E19), E19<VLOOKUP($D19,INDIRECT($I$4),6,FALSE)),0,INT(VLOOKUP($D19,INDIRECT($I$4),2,FALSE)+VLOOKUP($D19,INDIRECT($I$4),3,FALSE)*E19+VLOOKUP($D19,INDIRECT($I$4),4,FALSE)*E19*E19)) -> 0 | M19: 2.21
D20: længde | G20: =IF(OR(ISBLANK(E20), E20<VLOOKUP($D20,INDIRECT($I$4),6,FALSE)),0,INT(VLOOKUP($D20,INDIRECT($I$4),2,FALSE)+VLOOKUP($D20,INDIRECT($I$4),3,FALSE)*E20+VLOOKUP($D20,INDIRECT($I$4),4,FALSE)*E20*E20)) -> 0 | M20: 7.8
D21: stang | G21: 0 | M21: 5.27
D22: kugle | G22: =IF(OR(ISBLANK(E22), E22<VLOOKUP($D22,INDIRECT($I$4),6,FALSE)),0,INT(VLOOKUP($D22,INDIRECT($I$4),2,FALSE)+VLOOKUP($D22,INDIRECT($I$4),3,FALSE)*E22+VLOOKUP($D22,INDIRECT($I$4),4,FALSE)*E22*E22)) -> 0 | M22: 20.64
D23: diskos | G23: =IF(OR(ISBLANK(E23), E23<VLOOKUP($D23,INDIRECT($I$4),6,FALSE)),0,INT(VLOOKUP($D23,INDIRECT($I$4),2,FALSE)+VLOOKUP($D23,INDIRECT($I$4),3,FALSE)*E23+VLOOKUP($D23,INDIRECT($I$4),4,FALSE)*E23*E23)) -> 0 | M23: 67.83
D24: hammer | G24: =IF(OR(ISBLANK(E24), E24<VLOOKUP($D24,INDIRECT($I$4),6,FALSE)),0,INT(VLOOKUP($D24,INDIRECT($I$4),2,FALSE)+VLOOKUP($D24,INDIRECT($I$4),3,FALSE)*E24+VLOOKUP($D24,INDIRECT($I$4),4,FALSE)*E24*E24)) -> 0 | M24: 67.83
D25: spyd | G25: 0 | M25: 85.29
D26: Point | G26: =LARGE(G6:G18,1)+LARGE(G19:G21,1)+LARGE(G22:G25,1)+LARGE(I26:I28,1) -> 0 | I26: =LARGE(G6:G18,2) -> 0
D27: Mærke | G27: =IF(G26>=G30,D30,IF(G26>=G29,D29,IF(G26>=G28,D28,"ingen"))) -> ingen | I27: =LARGE(G19:G21,2) -> 0
D28: Bronze | G28: 1000 | I28: =LARGE(G22:G25,2) -> 0
D29: Sølv | G29: 2000
D30: Guld | G30: 2800

Sheet P15_Resultater
D3: Køn | E3: Alder
D4: P | E4: 15 | G4: år | I4: =CONCATENATE("DAF_",D4,E4) -> DAF_P15
G5: Point
D6: 60m | G6: =IF(OR(ISBLANK(E6),E6>VLOOKUP($D6,INDIRECT($I$4),6,FALSE)),0,INT(VLOOKUP($D6,INDIRECT($I$4),2,FALSE)+VLOOKUP($D6,INDIRECT($I$4),3,FALSE)*I6+VLOOKUP($D6,INDIRECT($I$4),4,FALSE)*I6*I6)) -> 0 | I6: =IF(F6="[Man]",ROUND(E6,1)+VLOOKUP($D6,INDIRECT($I$4),5,FALSE)/100,E6) -> 0 | M6: =VLOOKUP($D6,INDIRECT($I$4),7,FALSE) -> 7.55
D7: 100m | G7: =IF(OR(ISBLANK(E7),E7>VLOOKUP($D7,INDIRECT($I$4),6,FALSE)),0,INT(VLOOKUP($D7,INDIRECT($I$4),2,FALSE)+VLOOKUP($D7,INDIRECT($I$4),3,FALSE)*I7+VLOOKUP($D7,INDIRECT($I$4),4,FALSE)*I7*I7)) -> 0 | I7: =IF(F7="[Man]",ROUND(E7,1)+VLOOKUP($D7,INDIRECT($I$4),5,FALSE)/100,E7) -> 0 | M7: =VLOOKUP($D7,INDIRECT($I$4),7,FALSE) -> 11.35
D8: 200m | G8: 0 | I8: 0 | J8: Navn: | M8: 22.74
D9: 300m | G9: 0 | I9: 0 | J9: Klub: | K9: =IF(Info!D29=0," ",Info!D29) -> Vejle IF | M9: 36.35
D10: 800m | G10: =IF(OR(ISBLANK(E10), E10>VLOOKUP($D10,INDIRECT($I$4),6,FALSE)),0,INT(VLOOKUP($D10,INDIRECT($I$4),2,FALSE)+VLOOKUP($D10,INDIRECT($I$4),3,FALSE)*E10*86400+VLOOKUP($D10,INDIRECT($I$4),4,FALSE)*E10*86400*E10*86400)) -> 0 | J10: (klub indtastes i Info skemaet) | M10: 00:02:01.950
D11: 1000m | G11: =IF(OR(ISBLANK(E11), E11>VLOOKUP($D11,INDIRECT($I$4),6,FALSE)),0,INT(VLOOKUP($D11,INDIRECT($I$4),2,FALSE)+VLOOKUP($D11,INDIRECT($I$4),3,FALSE)*E11*86400+VLOOKUP($D11,INDIRECT($I$4),4,FALSE)*E11*86400*E11*86400)) -> 0 | K11: =Info!G28 -> På diplom | M11: 00:02:37.940
D12: 1500m | G12: 0 | M12: 00:04:09.930
D13: 3000m | G13: 0 | M13: 00:08:54.800
D14: 60mH | G14: =IF(OR(ISBLANK(E14),E14>VLOOKUP($D14,INDIRECT($I$4),6,FALSE)),0,INT(VLOOKUP($D14,INDIRECT($I$4),2,FALSE)+VLOOKUP($D14,INDIRECT($I$4),3,FALSE)*I14+VLOOKUP($D14,INDIRECT($I$4),4,FALSE)*I14*I14)) -> 0 | I14: =IF(F14="[Man]",ROUND(E14,1)+VLOOKUP($D14,INDIRECT($I$4),5,FALSE)/100,E14) -> 0 | M14: 8.29
D15: 80mH | G15: 0 | I15: =IF(F15="[Man]",ROUND(E15,1)+VLOOKUP($D15,INDIRECT($I$4),5,FALSE)/100,E15) -> 0 | M15: 10.69
D16: 300mH | G16: 0 | I16: 0 | M16: 39.93
D17: 4x100m | G17: 0 | I17: 0 | M17: 45.09
D18: højde | G18: =IF(OR(ISBLANK(E18), E18<VLOOKUP($D18,INDIRECT($I$4),6,FALSE)),0,INT(VLOOKUP($D18,INDIRECT($I$4),2,FALSE)+VLOOKUP($D18,INDIRECT($I$4),3,FALSE)*E18+VLOOKUP($D18,INDIRECT($I$4),4,FALSE)*E18*E18)) -> 0 | M18: 1.89
D19: længde | G19: =IF(OR(ISBLANK(E19), E19<VLOOKUP($D19,INDIRECT($I$4),6,FALSE)),0,INT(VLOOKUP($D19,INDIRECT($I$4),2,FALSE)+VLOOKUP($D19,INDIRECT($I$4),3,FALSE)*E19+VLOOKUP($D19,INDIRECT($I$4),4,FALSE)*E19*E19)) -> 0 | M19: 6.48
D20: stang | G20: =IF(OR(ISBLANK(E20), E20<VLOOKUP($D20,INDIRECT($I$4),6,FALSE)),0,INT(VLOOKUP($D20,INDIRECT($I$4),2,FALSE)+VLOOKUP($D20,INDIRECT($I$4),3,FALSE)*E20+VLOOKUP($D20,INDIRECT($I$4),4,FALSE)*E20*E20)) -> 0 | M20: 3.78
D21: kugle | G21: =IF(OR(ISBLANK(E21), E21<VLOOKUP($D21,INDIRECT($I$4),6,FALSE)),0,INT(VLOOKUP($D21,INDIRECT($I$4),2,FALSE)+VLOOKUP($D21,INDIRECT($I$4),3,FALSE)*E21+VLOOKUP($D21,INDIRECT($I$4),4,FALSE)*E21*E21)) -> 0 | M21: 17.56
D22: diskos | G22: 0 | M22: 56.46
D23: hammer | G23: =IF(OR(ISBLANK(E23), E23<VLOOKUP($D23,INDIRECT($I$4),6,FALSE)),0,INT(VLOOKUP($D23,INDIRECT($I$4),2,FALSE)+VLOOKUP($D23,INDIRECT($I$4),3,FALSE)*E23+VLOOKUP($D23,INDIRECT($I$4),4,FALSE)*E23*E23)) -> 0 | M23: 56.27
D24: spyd | G24: 0 | M24: 69.6
D25: Point | G25: =LARGE(G6:G17,1)+LARGE(G18:G20,1)+LARGE(G21:G24,1)+LARGE(I26:I28,1) -> 0
D26: Mærke | G26: =IF(G25>=G29,D29,IF(G25>=G28,D28,IF(G25>=G27,D27,"ingen"))) -> ingen | I26: =LARGE(G6:G17,2) -> 0
D27: Bronze | G27: 1100 | I27: =LARGE(G18:G20,2) -> 0
D28: Sølv | G28: 2200 | I28: =LARGE(G21:G24,2) -> 0
D29: Guld | G29: 3000

Sheet D15_Resultater
D3: Køn | E3: Alder
D4: D | E4: 15 | G4: år | I4: =CONCATENATE("DAF_",D4,E4) -> DAF_D15
E5: Res. | G5: Point
D6: 60m | G6: =IF(OR(ISBLANK(E6),E6>VLOOKUP($D6,INDIRECT($I$4),6,FALSE)),0,INT(VLOOKUP($D6,INDIRECT($I$4),2,FALSE)+VLOOKUP($D6,INDIRECT($I$4),3,FALSE)*I6+VLOOKUP($D6,INDIRECT($I$4),4,FALSE)*I6*I6)) -> 0 | I6: =IF(F6="[Man]",ROUND(E6,1)+VLOOKUP($D6,INDIRECT($I$4),5,FALSE)/100,E6) -> 0 | M6: =VLOOKUP($D6,INDIRECT($I$4),7,FALSE) -> 7.05
D7: 100m | G7: =IF(OR(ISBLANK(E7),E7>VLOOKUP($D7,INDIRECT($I$4),6,FALSE)),0,INT(VLOOKUP($D7,INDIRECT($I$4),2,FALSE)+VLOOKUP($D7,INDIRECT($I$4),3,FALSE)*I7+VLOOKUP($D7,INDIRECT($I$4),4,FALSE)*I7*I7)) -> 0 | I7: =IF(F7="[Man]",ROUND(E7,1)+VLOOKUP($D7,INDIRECT($I$4),5,FALSE)/100,E7) -> 0 | M7: =VLOOKUP($D7,INDIRECT($I$4),7,FALSE) -> 10.38
D8: 200m | G8: 0 | I8: 0 | J8: Navn: | M8: 20.78
D9: 300m | G9: 0 | I9: 0 | J9: Klub: | K9: =IF(Info!D29=0," ",Info!D29) -> Vejle IF | M9: 34.23
D10: 800m | G10: =IF(OR(ISBLANK(E10), E10>VLOOKUP($D10,INDIRECT($I$4),6,FALSE)),0,INT(VLOOKUP($D10,INDIRECT($I$4),2,FALSE)+VLOOKUP($D10,INDIRECT($I$4),3,FALSE)*E10*86400+VLOOKUP($D10,INDIRECT($I$4),4,FALSE)*E10*86400*E10*86400)) -> 0 | J10: (klub indtastes i Info skemaet) | M10: 00:01:48.980
D11: 1000m | G11: =IF(OR(ISBLANK(E11), E11>VLOOKUP($D11,INDIRECT($I$4),6,FALSE)),0,INT(VLOOKUP($D11,INDIRECT($I$4),2,FALSE)+VLOOKUP($D11,INDIRECT($I$4),3,FALSE)*E11*86400+VLOOKUP($D11,INDIRECT($I$4),4,FALSE)*E11*86400*E11*86400)) -> 0 | K11: =Info!G28 -> På diplom | M11: 00:02:20.750
D12: 1500m | G12: 0 | M12: 00:03:43.970
D13: 3000m | G13: 0 | M13: 00:08:05.020
D14: 60mH | G14: =IF(OR(ISBLANK(E14),E14>VLOOKUP($D14,INDIRECT($I$4),6,FALSE)),0,INT(VLOOKUP($D14,INDIRECT($I$4),2,FALSE)+VLOOKUP($D14,INDIRECT($I$4),3,FALSE)*I14+VLOOKUP($D14,INDIRECT($I$4),4,FALSE)*I14*I14)) -> 0 | I14: =IF(F14="[Man]",ROUND(E14,1)+VLOOKUP($D14,INDIRECT($I$4),5,FALSE)/100,E14) -> 0 | M14: 8.07
D15: 100mH | G15: 0 | I15: 0 | M15: 12.92
D16: 300mH | G16: 0 | I16: 0 | M16: 35.97
D17: 1500mFH | G17: =IF(OR(ISBLANK(E17), E17>VLOOKUP($D17,INDIRECT($I$4),6,FALSE)),0,INT(VLOOKUP($D17,INDIRECT($I$4),2,FALSE)+VLOOKUP($D17,INDIRECT($I$4),3,FALSE)*E17*86400+VLOOKUP($D17,INDIRECT($I$4),4,FALSE)*E17*86400*E17*86400)) -> 0 | M17: 00:04:04.830
D18: 4x100m | G18: 0 | I18: 0 | M18: 42.85
D19: højde | G19: =IF(OR(ISBLANK(E19), E19<VLOOKUP($D19,INDIRECT($I$4),6,FALSE)),0,INT(VLOOKUP($D19,INDIRECT($I$4),2,FALSE)+VLOOKUP($D19,INDIRECT($I$4),3,FALSE)*E19+VLOOKUP($D19,INDIRECT($I$4),4,FALSE)*E19*E19)) -> 0 | M19: 2.21
D20: længde | G20: =IF(OR(ISBLANK(E20), E20<VLOOKUP($D20,INDIRECT($I$4),6,FALSE)),0,INT(VLOOKUP($D20,INDIRECT($I$4),2,FALSE)+VLOOKUP($D20,INDIRECT($I$4),3,FALSE)*E20+VLOOKUP($D20,INDIRECT($I$4),4,FALSE)*E20*E20)) -> 0 | M20: 7.8
D21: stang | G21: 0 | M21: 5.27
D22: kugle | G22: =IF(OR(ISBLANK(E22), E22<VLOOKUP($D22,INDIRECT($I$4),6,FALSE)),0,INT(VLOOKUP($D22,INDIRECT($I$4),2,FALSE)+VLOOKUP($D22,INDIRECT($I$4),3,FALSE)*E22+VLOOKUP($D22,INDIRECT($I$4),4,FALSE)*E22*E22)) -> 0 | M22: 20.64
D23: diskos | G23: =IF(OR(ISBLANK(E23), E23<VLOOKUP($D23,INDIRECT($I$4),6,FALSE)),0,INT(VLOOKUP($D23,INDIRECT($I$4),2,FALSE)+VLOOKUP($D23,INDIRECT($I$4),3,FALSE)*E23+VLOOKUP($D23,INDIRECT($I$4),4,FALSE)*E23*E23)) -> 0 | M23: 67.83
D24: hammer | G24: =IF(OR(ISBLANK(E24), E24<VLOOKUP($D24,INDIRECT($I$4),6,FALSE)),0,INT(VLOOKUP($D24,INDIRECT($I$4),2,FALSE)+VLOOKUP($D24,INDIRECT($I$4),3,FALSE)*E24+VLOOKUP($D24,INDIRECT($I$4),4,FALSE)*E24*E24)) -> 0 | M24: 67.83
D25: spyd | G25: 0 | M25: 85.29
D26: Point | G26: =LARGE(G6:G18,1)+LARGE(G19:G21,1)+LARGE(G22:G25,1)+LARGE(I26:I28,1) -> 0 | I26: =LARGE(G6:G18,2) -> 0
D27: Mærke | G27: =IF(G26>=G30,D30,IF(G26>=G29,D29,IF(G26>=G28,D28,"ingen"))) -> ingen | I27: =LARGE(G19:G21,2) -> 0
D28: Bronze | G28: 1100 | I28: =LARGE(G22:G25,2) -> 0
D29: Sølv | G29: 2200
D30: Guld | G30: 3000

Sheet P16_Resultater
D3: Køn | E3: Alder
D4: P | E4: 16 | G4: år | I4: =CONCATENATE("DAF_",D4,E4) -> DAF_P16
E5: Res. | G5: Point
D6: 100m | G6: =IF(OR(ISBLANK(E6),E6>VLOOKUP($D6,INDIRECT($I$4),6,FALSE)),0,INT(VLOOKUP($D6,INDIRECT($I$4),2,FALSE)+VLOOKUP($D6,INDIRECT($I$4),3,FALSE)*I6+VLOOKUP($D6,INDIRECT($I$4),4,FALSE)*I6*I6)) -> 0 | I6: =IF(F6="[Man]",ROUND(E6,1)+VLOOKUP($D6,INDIRECT($I$4),5,FALSE)/100,E6) -> 0 | M6: =VLOOKUP($D6,INDIRECT($I$4),7,FALSE) -> 11.35
D7: 200m | G7: =IF(OR(ISBLANK(E7),E7>VLOOKUP($D7,INDIRECT($I$4),6,FALSE)),0,INT(VLOOKUP($D7,INDIRECT($I$4),2,FALSE)+VLOOKUP($D7,INDIRECT($I$4),3,FALSE)*I7+VLOOKUP($D7,INDIRECT($I$4),4,FALSE)*I7*I7)) -> 0 | I7: =IF(F7="[Man]",ROUND(E7,1)+VLOOKUP($D7,INDIRECT($I$4),5,FALSE)/100,E7) -> 0 | M7: =VLOOKUP($D7,INDIRECT($I$4),7,FALSE) -> 22.66
D8: 400m | G8: 0 | I8: =IF(F8="[Man]",ROUND(E8,1)+VLOOKUP($D8,INDIRECT($I$4),5,FALSE)/100,E8) -> 0 | J8: Navn: | M8: 51.44
D9: 800m | G9: =IF(OR(ISBLANK(E9), E9>VLOOKUP($D9,INDIRECT($I$4),6,FALSE)),0,INT(VLOOKUP($D9,INDIRECT($I$4),2,FALSE)+VLOOKUP($D9,INDIRECT($I$4),3,FALSE)*E9*86400+VLOOKUP($D9,INDIRECT($I$4),4,FALSE)*E9*86400*E9*86400)) -> 0 | J9: Klub: | K9: =IF(Info!D29=0," ",Info!D29) -> Vejle IF | M9: 00:02:01.930
D10: 1000m | G10: =IF(OR(ISBLANK(E10), E10>VLOOKUP($D10,INDIRECT($I$4),6,FALSE)),0,INT(VLOOKUP($D10,INDIRECT($I$4),2,FALSE)+VLOOKUP($D10,INDIRECT($I$4),3,FALSE)*E10*86400+VLOOKUP($D10,INDIRECT($I$4),4,FALSE)*E10*86400*E10*86400)) -> 0 | J10: (klub indtastes i Info skemaet) | M10: 00:02:37.930
D11: 1500m | G11: =IF(OR(ISBLANK(E11), E11>VLOOKUP($D11,INDIRECT($I$4),6,FALSE)),0,INT(VLOOKUP($D11,INDIRECT($I$4),2,FALSE)+VLOOKUP($D11,INDIRECT($I$4),3,FALSE)*E11*86400+VLOOKUP($D11,INDIRECT($I$4),4,FALSE)*E11*86400*E11*86400)) -> 0 | K11: =Info!G28 -> På diplom | M11: 00:04:09.840
D12: 3000m | G12: =IF(OR(ISBLANK(E12), E12>VLOOKUP($D12,INDIRECT($I$4),6,FALSE)),0,INT(VLOOKUP($D12,INDIRECT($I$4),2,FALSE)+VLOOKUP($D12,INDIRECT($I$4),3,FALSE)*E12*86400+VLOOKUP($D12,INDIRECT($I$4),4,FALSE)*E12*86400*E12*86400)) -> 0 | M12: 00:08:54.750
D13: 60mH | G13: =IF(OR(ISBLANK(E13),E13>VLOOKUP($D13,INDIRECT($I$4),6,FALSE)),0,INT(VLOOKUP($D13,INDIRECT($I$4),2,FALSE)+VLOOKUP($D13,INDIRECT($I$4),3,FALSE)*I13+VLOOKUP($D13,INDIRECT($I$4),4,FALSE)*I13*I13)) -> 0 | I13: =IF(F13="[Man]",ROUND(E13,1)+VLOOKUP($D13,INDIRECT($I$4),5,FALSE)/100,E13) -> 0 | M13: 7.87
D14: 100mH | G14: =IF(OR(ISBLANK(E14),E14>VLOOKUP($D14,INDIRECT($I$4),6,FALSE)),0,INT(VLOOKUP($D14,INDIRECT($I$4),2,FALSE)+VLOOKUP($D14,INDIRECT($I$4),3,FALSE)*I14+VLOOKUP($D14,INDIRECT($I$4),4,FALSE)*I14*I14)) -> 0 | I14: =IF(F14="[Man]",ROUND(E14,1)+VLOOKUP($D14,INDIRECT($I$4),5,FALSE)/100,E14) -> 0 | M14: 12.96
D15: 4x100m | G15: 0 | I15: =IF(F15="[Man]",ROUND(E15,1)+VLOOKUP($D15,INDIRECT($I$4),5,FALSE)/100,E15) -> 0 | M15: 45.09
D16: højde | G16: =IF(OR(ISBLANK(E16), E16<VLOOKUP($D16,INDIRECT($I$4),6,FALSE)),0,INT(VLOOKUP($D16,INDIRECT($I$4),2,FALSE)+VLOOKUP($D16,INDIRECT($I$4),3,FALSE)*E16+VLOOKUP($D16,INDIRECT($I$4),4,FALSE)*E16*E16)) -> 0 | M16: 1.89
D17: længde | G17: =IF(OR(ISBLANK(E17), E17<VLOOKUP($D17,INDIRECT($I$4),6,FALSE)),0,INT(VLOOKUP($D17,INDIRECT($I$4),2,FALSE)+VLOOKUP($D17,INDIRECT($I$4),3,FALSE)*E17+VLOOKUP($D17,INDIRECT($I$4),4,FALSE)*E17*E17)) -> 0 | M17: 6.48
D18: stang | G18: =IF(OR(ISBLANK(E18), E18<VLOOKUP($D18,INDIRECT($I$4),6,FALSE)),0,INT(VLOOKUP($D18,INDIRECT($I$4),2,FALSE)+VLOOKUP($D18,INDIRECT($I$4),3,FALSE)*E18+VLOOKUP($D18,INDIRECT($I$4),4,FALSE)*E18*E18)) -> 0 | M18: 3.78
D19: trespring | G19: =IF(OR(ISBLANK(E19), E19<VLOOKUP($D19,INDIRECT($I$4),6,FALSE)),0,INT(VLOOKUP($D19,INDIRECT($I$4),2,FALSE)+VLOOKUP($D19,INDIRECT($I$4),3,FALSE)*E19+VLOOKUP($D19,INDIRECT($I$4),4,FALSE)*E19*E19)) -> 0 | M19: 12.98
D20: kugle | G20: 0 | M20: 15.39
D21: diskos | G21: =IF(OR(ISBLANK(E21), E21<VLOOKUP($D21,INDIRECT($I$4),6,FALSE)),0,INT(VLOOKUP($D21,INDIRECT($I$4),2,FALSE)+VLOOKUP($D21,INDIRECT($I$4),3,FALSE)*E21+VLOOKUP($D21,INDIRECT($I$4),4,FALSE)*E21*E21)) -> 0 | M21: 56.49
D22: hammer | G22: 0 | M22: 52.11
D23: spyd | G23: 0 | M23: 65.98
D24: Point | G24: =LARGE(G6:G23,1)+LARGE(G6:G23,2)+LARGE(G6:G23,3) -> 0
D25: Mærke | G25: =IF(G24>=G28,D28,IF(G24>=G27,D27,IF(G24>=G26,D26,"ingen"))) -> ingen
D26: Bronze | G26: 825
D27: Sølv | G27: 1725
D28: Guld | G28: 2325

Sheet D16_Resultater
D3: Køn | E3: Alder
D4: D | E4: 16 | G4: år | I4: =CONCATENATE("DAF_",D4,E4) -> DAF_D16
E5: Res. | G5: Point
D6: 100m | G6: =IF(OR(ISBLANK(E6),E6>VLOOKUP($D6,INDIRECT($I$4),6,FALSE)),0,INT(VLOOKUP($D6,INDIRECT($I$4),2,FALSE)+VLOOKUP($D6,INDIRECT($I$4),3,FALSE)*I6+VLOOKUP($D6,INDIRECT($I$4),4,FALSE)*I6*I6)) -> 0 | I6: =IF(F6="[Man]",ROUND(E6,1)+VLOOKUP($D6,INDIRECT($I$4),5,FALSE)/100,E6) -> 0 | M6: =VLOOKUP($D6,INDIRECT($I$4),7,FALSE) -> 10.39
D7: 200m | G7: =IF(OR(ISBLANK(E7),E7>VLOOKUP($D7,INDIRECT($I$4),6,FALSE)),0,INT(VLOOKUP($D7,INDIRECT($I$4),2,FALSE)+VLOOKUP($D7,INDIRECT($I$4),3,FALSE)*I7+VLOOKUP($D7,INDIRECT($I$4),4,FALSE)*I7*I7)) -> 0 | I7: =IF(F7="[Man]",ROUND(E7,1)+VLOOKUP($D7,INDIRECT($I$4),5,FALSE)/100,E7) -> 0 | M7: =VLOOKUP($D7,INDIRECT($I$4),7,FALSE) -> 20.83
D8: 400m | G8: 0 | I8: =IF(F8="[Man]",ROUND(E8,1)+VLOOKUP($D8,INDIRECT($I$4),5,FALSE)/100,E8) -> 0 | J8: Navn: | M8: 46.48
D9: 800m | G9: =IF(OR(ISBLANK(E9), E9>VLOOKUP($D9,INDIRECT($I$4),6,FALSE)),0,INT(VLOOKUP($D9,INDIRECT($I$4),2,FALSE)+VLOOKUP($D9,INDIRECT($I$4),3,FALSE)*E9*86400+VLOOKUP($D9,INDIRECT($I$4),4,FALSE)*E9*86400*E9*86400)) -> 0 | J9: Klub: | K9: =IF(Info!D29=0," ",Info!D29) -> Vejle IF | M9: 00:01:48.970
D10: 1000m | G10: =IF(OR(ISBLANK(E10), E10>VLOOKUP($D10,INDIRECT($I$4),6,FALSE)),0,INT(VLOOKUP($D10,INDIRECT($I$4),2,FALSE)+VLOOKUP($D10,INDIRECT($I$4),3,FALSE)*E10*86400+VLOOKUP($D10,INDIRECT($I$4),4,FALSE)*E10*86400*E10*86400)) -> 0 | J10: (klub indtastes i Info skemaet) | M10: 00:02:20.680
D11: 1500m | G11: 0 | K11: =Info!G28 -> På diplom | M11: 00:03:43.940
D12: 3000m | G12: 0 | M12: 00:08:04.950
D13: 60mH | G13: =IF(OR(ISBLANK(E13),E13>VLOOKUP($D13,INDIRECT($I$4),6,FALSE)),0,INT(VLOOKUP($D13,INDIRECT($I$4),2,FALSE)+VLOOKUP($D13,INDIRECT($I$4),3,FALSE)*I13+VLOOKUP($D13,INDIRECT($I$4),4,FALSE)*I13*I13)) -> 0 | I13: =IF(F13="[Man]",ROUND(E13,1)+VLOOKUP($D13,INDIRECT($I$4),5,FALSE)/100,E13) -> 0 | M13: 7.58
D14: 110mH | G14: =IF(OR(ISBLANK(E14),E14>VLOOKUP($D14,INDIRECT($I$4),6,FALSE)),0,INT(VLOOKUP($D14,INDIRECT($I$4),2,FALSE)+VLOOKUP($D14,INDIRECT($I$4),3,FALSE)*I14+VLOOKUP($D14,INDIRECT($I$4),4,FALSE)*I14*I14)) -> 0 | I14: =IF(F14="[Man]",ROUND(E14,1)+VLOOKUP($D14,INDIRECT($I$4),5,FALSE)/100,E14) -> 0 | M14: 13.67
D15: 4x100m | G15: 0 | I15: =IF(F15="[Man]",ROUND(E15,1)+VLOOKUP($D15,INDIRECT($I$4),5,FALSE)/100,E15) -> 0 | M15: 41.06
D16: højde | G16: =IF(OR(ISBLANK(E16), E16<VLOOKUP($D16,INDIRECT($I$4),6,FALSE)),0,INT(VLOOKUP($D16,INDIRECT($I$4),2,FALSE)+VLOOKUP($D16,INDIRECT($I$4),3,FALSE)*E16+VLOOKUP($D16,INDIRECT($I$4),4,FALSE)*E16*E16)) -> 0 | M16: 2.26
D17: længde | G17: =IF(OR(ISBLANK(E17), E17<VLOOKUP($D17,INDIRECT($I$4),6,FALSE)),0,INT(VLOOKUP($D17,INDIRECT($I$4),2,FALSE)+VLOOKUP($D17,INDIRECT($I$4),3,FALSE)*E17+VLOOKUP($D17,INDIRECT($I$4),4,FALSE)*E17*E17)) -> 0 | M17: 7.8
D18: stang | G18: =IF(OR(ISBLANK(E18), E18<VLOOKUP($D18,INDIRECT($I$4),6,FALSE)),0,INT(VLOOKUP($D18,INDIRECT($I$4),2,FALSE)+VLOOKUP($D18,INDIRECT($I$4),3,FALSE)*E18+VLOOKUP($D18,INDIRECT($I$4),4,FALSE)*E18*E18)) -> 0 | M18: 5.36
D19: trespring | G19: 0 | M19: 15.97
D20: kugle | G20: =IF(OR(ISBLANK(E20), E20<VLOOKUP($D20,INDIRECT($I$4),6,FALSE)),0,INT(VLOOKUP($D20,INDIRECT($I$4),2,FALSE)+VLOOKUP($D20,INDIRECT($I$4),3,FALSE)*E20+VLOOKUP($D20,INDIRECT($I$4),4,FALSE)*E20*E20)) -> 0 | M20: 20.66
D21: diskos | G21: =IF(OR(ISBLANK(E21), E21<VLOOKUP($D21,INDIRECT($I$4),6,FALSE)),0,INT(VLOOKUP($D21,INDIRECT($I$4),2,FALSE)+VLOOKUP($D21,INDIRECT($I$4),3,FALSE)*E21+VLOOKUP($D21,INDIRECT($I$4),4,FALSE)*E21*E21)) -> 0 | M21: 68.03
D22: hammer | G22: =IF(OR(ISBLANK(E22), E22<VLOOKUP($D22,INDIRECT($I$4),6,FALSE)),0,INT(VLOOKUP($D22,INDIRECT($I$4),2,FALSE)+VLOOKUP($D22,INDIRECT($I$4),3,FALSE)*E22+VLOOKUP($D22,INDIRECT($I$4),4,FALSE)*E22*E22)) -> 0 | M22: 77.55
D23: spyd | G23: 0 | M23: 77.27
D24: vægt | G24: 0 | M24: 20.66
D25: Point | G25: =LARGE(G6:G24,1)+LARGE(G6:G24,2)+LARGE(G6:G24,3) -> 0
D26: Mærke | G26: =IF(G25>=G29,D29,IF(G25>=G28,D28,IF(G25>=G27,D27,"ingen"))) -> ingen
D27: Bronze | G27: 825
D28: Sølv | G28: 1725
D29: Guld | G29: 2325

Sheet P17_Resultater
D3: Køn | E3: Alder
D4: P | E4: 17 | G4: år | I4: =CONCATENATE("DAF_",D4,E4) -> DAF_P17
E5: Res. | G5: Point
D6: 100m | G6: =IF(OR(ISBLANK(E6),E6>VLOOKUP($D6,INDIRECT($I$4),6,FALSE)),0,INT(VLOOKUP($D6,INDIRECT($I$4),2,FALSE)+VLOOKUP($D6,INDIRECT($I$4),3,FALSE)*I6+VLOOKUP($D6,INDIRECT($I$4),4,FALSE)*I6*I6)) -> 0 | I6: =IF(F6="[Man]",ROUND(E6,1)+VLOOKUP($D6,INDIRECT($I$4),5,FALSE)/100,E6) -> 0 | M6: =VLOOKUP($D6,INDIRECT($I$4),7,FALSE) -> 11.35
D7: 200m | G7: =IF(OR(ISBLANK(E7),E7>VLOOKUP($D7,INDIRECT($I$4),6,FALSE)),0,INT(VLOOKUP($D7,INDIRECT($I$4),2,FALSE)+VLOOKUP($D7,INDIRECT($I$4),3,FALSE)*I7+VLOOKUP($D7,INDIRECT($I$4),4,FALSE)*I7*I7)) -> 0 | I7: =IF(F7="[Man]",ROUND(E7,1)+VLOOKUP($D7,INDIRECT($I$4),5,FALSE)/100,E7) -> 0 | M7: =VLOOKUP($D7,INDIRECT($I$4),7,FALSE) -> 22.66
D8: 400m | G8: 0 | I8: =IF(F8="[Man]",ROUND(E8,1)+VLOOKUP($D8,INDIRECT($I$4),5,FALSE)/100,E8) -> 0 | J8: Navn: | K8: Esben Poulsen | M8: 51.44
D9: 800m | G9: =IF(OR(ISBLANK(E9), E9>VLOOKUP($D9,INDIRECT($I$4),6,FALSE)),0,INT(VLOOKUP($D9,INDIRECT($I$4),2,FALSE)+VLOOKUP($D9,INDIRECT($I$4),3,FALSE)*E9*86400+VLOOKUP($D9,INDIRECT($I$4),4,FALSE)*E9*86400*E9*86400)) -> 0 | J9: Klub: | K9: =IF(Info!D29=0," ",Info!D29) -> Vejle IF | M9: 00:02:01.930
D10: 1000m | G10: =IF(OR(ISBLANK(E10), E10>VLOOKUP($D10,INDIRECT($I$4),6,FALSE)),0,INT(VLOOKUP($D10,INDIRECT($I$4),2,FALSE)+VLOOKUP($D10,INDIRECT($I$4),3,FALSE)*E10*86400+VLOOKUP($D10,INDIRECT($I$4),4,FALSE)*E10*86400*E10*86400)) -> 0 | J10: (klub indtastes i Info skemaet) | M10: 00:02:37.930
D11: 1500m | G11: =IF(OR(ISBLANK(E11), E11>VLOOKUP($D11,INDIRECT($I$4),6,FALSE)),0,INT(VLOOKUP($D11,INDIRECT($I$4),2,FALSE)+VLOOKUP($D11,INDIRECT($I$4),3,FALSE)*E11*86400+VLOOKUP($D11,INDIRECT($I$4),4,FALSE)*E11*86400*E11*86400)) -> 0 | K11: =Info!G28 -> På diplom | M11: 00:04:09.840
D12: 3000m | G12: =IF(OR(ISBLANK(E12), E12>VLOOKUP($D12,INDIRECT($I$4),6,FALSE)),0,INT(VLOOKUP($D12,INDIRECT($I$4),2,FALSE)+VLOOKUP($D12,INDIRECT($I$4),3,FALSE)*E12*86400+VLOOKUP($D12,INDIRECT($I$4),4,FALSE)*E12*86400*E12*86400)) -> 0 | M12: 00:08:54.750
D13: 60mH | G13: =IF(OR(ISBLANK(E13),E13>VLOOKUP($D13,INDIRECT($I$4),6,FALSE)),0,INT(VLOOKUP($D13,INDIRECT($I$4),2,FALSE)+VLOOKUP($D13,INDIRECT($I$4),3,FALSE)*I13+VLOOKUP($D13,INDIRECT($I$4),4,FALSE)*I13*I13)) -> 0 | I13: =IF(F13="[Man]",ROUND(E13,1)+VLOOKUP($D13,INDIRECT($I$4),5,FALSE)/100,E13) -> 0 | M13: 7.87
D14: 100mH | G14: =IF(OR(ISBLANK(E14),E14>VLOOKUP($D14,INDIRECT($I$4),6,FALSE)),0,INT(VLOOKUP($D14,INDIRECT($I$4),2,FALSE)+VLOOKUP($D14,INDIRECT($I$4),3,FALSE)*I14+VLOOKUP($D14,INDIRECT($I$4),4,FALSE)*I14*I14)) -> 0 | I14: =IF(F14="[Man]",ROUND(E14,1)+VLOOKUP($D14,INDIRECT($I$4),5,FALSE)/100,E14) -> 0 | M14: 12.96
D15: 4x100m | G15: 0 | I15: =IF(F15="[Man]",ROUND(E15,1)+VLOOKUP($D15,INDIRECT($I$4),5,FALSE)/100,E15) -> 0 | M15: 45.09
D16: højde | G16: =IF(OR(ISBLANK(E16), E16<VLOOKUP($D16,INDIRECT($I$4),6,FALSE)),0,INT(VLOOKUP($D16,INDIRECT($I$4),2,FALSE)+VLOOKUP($D16,INDIRECT($I$4),3,FALSE)*E16+VLOOKUP($D16,INDIRECT($I$4),4,FALSE)*E16*E16)) -> 0 | M16: 1.89
D17: længde | G17: 0 | M17: 6.48
D18: stang | G18: =IF(OR(ISBLANK(E18), E18<VLOOKUP($D18,INDIRECT($I$4),6,FALSE)),0,INT(VLOOKUP($D18,INDIRECT($I$4),2,FALSE)+VLOOKUP($D18,INDIRECT($I$4),3,FALSE)*E18+VLOOKUP($D18,INDIRECT($I$4),4,FALSE)*E18*E18)) -> 0 | M18: 3.78
D19: trespring | G19: =IF(OR(ISBLANK(E19), E19<VLOOKUP($D19,INDIRECT($I$4),6,FALSE)),0,INT(VLOOKUP($D19,INDIRECT($I$4),2,FALSE)+VLOOKUP($D19,INDIRECT($I$4),3,FALSE)*E19+VLOOKUP($D19,INDIRECT($I$4),4,FALSE)*E19*E19)) -> 0 | M19: 12.98
D20: kugle | G20: 0 | M20: 15.39
D21: diskos | G21: 0 | M21: 56.49
D22: hammer | G22: 0 | M22: 52.11
D23: spyd | G23: 0 | M23: 65.98
D24: Point | G24: =LARGE(G6:G23,1)+LARGE(G6:G23,2)+LARGE(G6:G23,3) -> 0
D25: Mærke | G25: =IF(G24>=G28,D28,IF(G24>=G27,D27,IF(G24>=G26,D26,"ingen"))) -> ingen
D26: Bronze | G26: 825
D27: Sølv | G27: 1800
D28: Guld | G28: 2400

Sheet D17_Resultater
D3: Køn | E3: Alder
D4: D | E4: 17 | G4: år | I4: =CONCATENATE("DAF_",D4,E4) -> DAF_D17
E5: Res. | G5: Point
D6: 100m | G6: =IF(OR(ISBLANK(E6),E6>VLOOKUP($D6,INDIRECT($I$4),6,FALSE)),0,INT(VLOOKUP($D6,INDIRECT($I$4),2,FALSE)+VLOOKUP($D6,INDIRECT($I$4),3,FALSE)*I6+VLOOKUP($D6,INDIRECT($I$4),4,FALSE)*I6*I6)) -> 0 | I6: =IF(F6="[Man]",ROUND(E6,1)+VLOOKUP($D6,INDIRECT($I$4),5,FALSE)/100,E6) -> 0 | M6: =VLOOKUP($D6,INDIRECT($I$4),7,FALSE) -> 10.39
D7: 200m | G7: =IF(OR(ISBLANK(E7),E7>VLOOKUP($D7,INDIRECT($I$4),6,FALSE)),0,INT(VLOOKUP($D7,INDIRECT($I$4),2,FALSE)+VLOOKUP($D7,INDIRECT($I$4),3,FALSE)*I7+VLOOKUP($D7,INDIRECT($I$4),4,FALSE)*I7*I7)) -> 0 | I7: =IF(F7="[Man]",ROUND(E7,1)+VLOOKUP($D7,INDIRECT($I$4),5,FALSE)/100,E7) -> 0 | M7: =VLOOKUP($D7,INDIRECT($I$4),7,FALSE) -> 20.83
D8: 400m | G8: 0 | I8: =IF(F8="[Man]",ROUND(E8,1)+VLOOKUP($D8,INDIRECT($I$4),5,FALSE)/100,E8) -> 0 | J8: Navn: | M8: 46.48
D9: 800m | G9: =IF(OR(ISBLANK(E9), E9>VLOOKUP($D9,INDIRECT($I$4),6,FALSE)),0,INT(VLOOKUP($D9,INDIRECT($I$4),2,FALSE)+VLOOKUP($D9,INDIRECT($I$4),3,FALSE)*E9*86400+VLOOKUP($D9,INDIRECT($I$4),4,FALSE)*E9*86400*E9*86400)) -> 0 | J9: Klub: | K9: =IF(Info!D29=0," ",Info!D29) -> Vejle IF | M9: 00:01:48.970
D10: 1000m | G10: =IF(OR(ISBLANK(E10), E10>VLOOKUP($D10,INDIRECT($I$4),6,FALSE)),0,INT(VLOOKUP($D10,INDIRECT($I$4),2,FALSE)+VLOOKUP($D10,INDIRECT($I$4),3,FALSE)*E10*86400+VLOOKUP($D10,INDIRECT($I$4),4,FALSE)*E10*86400*E10*86400)) -> 0 | J10: (klub indtastes i Info skemaet) | M10: 00:02:20.680
D11: 1500m | G11: 0 | K11: =Info!G28 -> På diplom | M11: 00:03:43.940
D12: 3000m | G12: 0 | M12: 00:08:04.950
D13: 60mH | G13: =IF(OR(ISBLANK(E13),E13>VLOOKUP($D13,INDIRECT($I$4),6,FALSE)),0,INT(VLOOKUP($D13,INDIRECT($I$4),2,FALSE)+VLOOKUP($D13,INDIRECT($I$4),3,FALSE)*I13+VLOOKUP($D13,INDIRECT($I$4),4,FALSE)*I13*I13)) -> 0 | I13: =IF(F13="[Man]",ROUND(E13,1)+VLOOKUP($D13,INDIRECT($I$4),5,FALSE)/100,E13) -> 0 | M13: 7.58
D14: 110mH | G14: =IF(OR(ISBLANK(E14),E14>VLOOKUP($D14,INDIRECT($I$4),6,FALSE)),0,INT(VLOOKUP($D14,INDIRECT($I$4),2,FALSE)+VLOOKUP($D14,INDIRECT($I$4),3,FALSE)*I14+VLOOKUP($D14,INDIRECT($I$4),4,FALSE)*I14*I14)) -> 0 | I14: =IF(F14="[Man]",ROUND(E14,1)+VLOOKUP($D14,INDIRECT($I$4),5,FALSE)/100,E14) -> 0 | M14: 13.67
D15: 4x100m | G15: 0 | I15: =IF(F15="[Man]",ROUND(E15,1)+VLOOKUP($D15,INDIRECT($I$4),5,FALSE)/100,E15) -> 0 | M15: 41.06
D16: højde | G16: =IF(OR(ISBLANK(E16), E16<VLOOKUP($D16,INDIRECT($I$4),6,FALSE)),0,INT(VLOOKUP($D16,INDIRECT($I$4),2,FALSE)+VLOOKUP($D16,INDIRECT($I$4),3,FALSE)*E16+VLOOKUP($D16,INDIRECT($I$4),4,FALSE)*E16*E16)) -> 0 | M16: 2.26
D17: længde | G17: =IF(OR(ISBLANK(E17), E17<VLOOKUP($D17,INDIRECT($I$4),6,FALSE)),0,INT(VLOOKUP($D17,INDIRECT($I$4),2,FALSE)+VLOOKUP($D17,INDIRECT($I$4),3,FALSE)*E17+VLOOKUP($D17,INDIRECT($I$4),4,FALSE)*E17*E17)) -> 0 | M17: 7.8
D18: stang | G18: =IF(OR(ISBLANK(E18), E18<VLOOKUP($D18,INDIRECT($I$4),6,FALSE)),0,INT(VLOOKUP($D18,INDIRECT($I$4),2,FALSE)+VLOOKUP($D18,INDIRECT($I$4),3,FALSE)*E18+VLOOKUP($D18,INDIRECT($I$4),4,FALSE)*E18*E18)) -> 0 | M18: 5.36
D19: trespring | G19: 0 | M19: 15.97
D20: kugle | G20: =IF(OR(ISBLANK(E20), E20<VLOOKUP($D20,INDIRECT($I$4),6,FALSE)),0,INT(VLOOKUP($D20,INDIRECT($I$4),2,FALSE)+VLOOKUP($D20,INDIRECT($I$4),3,FALSE)*E20+VLOOKUP($D20,INDIRECT($I$4),4,FALSE)*E20*E20)) -> 0 | M20: 20.66
D21: diskos | G21: =IF(OR(ISBLANK(E21), E21<VLOOKUP($D21,INDIRECT($I$4),6,FALSE)),0,INT(VLOOKUP($D21,INDIRECT($I$4),2,FALSE)+VLOOKUP($D21,INDIRECT($I$4),3,FALSE)*E21+VLOOKUP($D21,INDIRECT($I$4),4,FALSE)*E21*E21)) -> 0 | M21: 68.03
D22: hammer | G22: =IF(OR(ISBLANK(E22), E22<VLOOKUP($D22,INDIRECT($I$4),6,FALSE)),0,INT(VLOOKUP($D22,INDIRECT($I$4),2,FALSE)+VLOOKUP($D22,INDIRECT($I$4),3,FALSE)*E22+VLOOKUP($D22,INDIRECT($I$4),4,FALSE)*E22*E22)) -> 0 | M22: 77.55
D23: spyd | G23: 0 | M23: 77.27
D24: vægt | G24: 0 | M24: 20.66
D25: Point | G25: =LARGE(G6:G24,1)+LARGE(G6:G24,2)+LARGE(G6:G24,3) -> 0
D26: Mærke | G26: =IF(G25>=G29,D29,IF(G25>=G28,D28,IF(G25>=G27,D27,"ingen"))) -> ingen
D27: Bronze | G27: 825
D28: Sølv | G28: 1800
D29: Guld | G29: 2400

Sheet P18_Resultater
D3: Køn | E3: Alder
D4: P | E4: 18 | G4: år | I4: =CONCATENATE("DAF_",D4,E4) -> DAF_P18
E5: Res. | G5: Point
D6: 100m | G6: =IF(OR(ISBLANK(E6),E6>VLOOKUP($D6,INDIRECT($I$4),6,FALSE)),0,INT(VLOOKUP($D6,INDIRECT($I$4),2,FALSE)+VLOOKUP($D6,INDIRECT($I$4),3,FALSE)*I6+VLOOKUP($D6,INDIRECT($I$4),4,FALSE)*I6*I6)) -> 0 | I6: =IF(F6="[Man]",ROUND(E6,1)+VLOOKUP($D6,INDIRECT($I$4),5,FALSE)/100,E6) -> 0 | M6: =VLOOKUP($D6,INDIRECT($I$4),7,FALSE) -> 11.35
D7: 200m | G7: =IF(OR(ISBLANK(E7),E7>VLOOKUP($D7,INDIRECT($I$4),6,FALSE)),0,INT(VLOOKUP($D7,INDIRECT($I$4),2,FALSE)+VLOOKUP($D7,INDIRECT($I$4),3,FALSE)*I7+VLOOKUP($D7,INDIRECT($I$4),4,FALSE)*I7*I7)) -> 0 | I7: =IF(F7="[Man]",ROUND(E7,1)+VLOOKUP($D7,INDIRECT($I$4),5,FALSE)/100,E7) -> 0 | M7: =VLOOKUP($D7,INDIRECT($I$4),7,FALSE) -> 22.66
D8: 400m | G8: 0 | I8: =IF(F8="[Man]",ROUND(E8,1)+VLOOKUP($D8,INDIRECT($I$4),5,FALSE)/100,E8) -> 0 | J8: Navn: | M8: 51.44
D9: 800m | G9: =IF(OR(ISBLANK(E9), E9>VLOOKUP($D9,INDIRECT($I$4),6,FALSE)),0,INT(VLOOKUP($D9,INDIRECT($I$4),2,FALSE)+VLOOKUP($D9,INDIRECT($I$4),3,FALSE)*E9*86400+VLOOKUP($D9,INDIRECT($I$4),4,FALSE)*E9*86400*E9*86400)) -> 0 | J9: Klub: | K9: =IF(Info!D29=0," ",Info!D29) -> Vejle IF | M9: 00:02:01.930
D10: 1000m | G10: =IF(OR(ISBLANK(E10), E10>VLOOKUP($D10,INDIRECT($I$4),6,FALSE)),0,INT(VLOOKUP($D10,INDIRECT($I$4),2,FALSE)+VLOOKUP($D10,INDIRECT($I$4),3,FALSE)*E10*86400+VLOOKUP($D10,INDIRECT($I$4),4,FALSE)*E10*86400*E10*86400)) -> 0 | J10: (klub indtastes i Info skemaet) | M10: 00:02:37.930
D11: 1500m | G11: =IF(OR(ISBLANK(E11), E11>VLOOKUP($D11,INDIRECT($I$4),6,FALSE)),0,INT(VLOOKUP($D11,INDIRECT($I$4),2,FALSE)+VLOOKUP($D11,INDIRECT($I$4),3,FALSE)*E11*86400+VLOOKUP($D11,INDIRECT($I$4),4,FALSE)*E11*86400*E11*86400)) -> 0 | K11: =Info!G28 -> På diplom | M11: 00:04:09.840
D12: 3000m | G12: =IF(OR(ISBLANK(E12), E12>VLOOKUP($D12,INDIRECT($I$4),6,FALSE)),0,INT(VLOOKUP($D12,INDIRECT($I$4),2,FALSE)+VLOOKUP($D12,INDIRECT($I$4),3,FALSE)*E12*86400+VLOOKUP($D12,INDIRECT($I$4),4,FALSE)*E12*86400*E12*86400)) -> 0 | M12: 00:08:54.750
D13: 60mH | G13: =IF(OR(ISBLANK(E13),E13>VLOOKUP($D13,INDIRECT($I$4),6,FALSE)),0,INT(VLOOKUP($D13,INDIRECT($I$4),2,FALSE)+VLOOKUP($D13,INDIRECT($I$4),3,FALSE)*I13+VLOOKUP($D13,INDIRECT($I$4),4,FALSE)*I13*I13)) -> 0 | I13: =IF(F13="[Man]",ROUND(E13,1)+VLOOKUP($D13,INDIRECT($I$4),5,FALSE)/100,E13) -> 0 | M13: 7.87
D14: 100mH | G14: =IF(OR(ISBLANK(E14),E14>VLOOKUP($D14,INDIRECT($I$4),6,FALSE)),0,INT(VLOOKUP($D14,INDIRECT($I$4),2,FALSE)+VLOOKUP($D14,INDIRECT($I$4),3,FALSE)*I14+VLOOKUP($D14,INDIRECT($I$4),4,FALSE)*I14*I14)) -> 0 | I14: =IF(F14="[Man]",ROUND(E14,1)+VLOOKUP($D14,INDIRECT($I$4),5,FALSE)/100,E14) -> 0 | M14: 12.96
D15: 4x100m | G15: 0 | I15: =IF(F15="[Man]",ROUND(E15,1)+VLOOKUP($D15,INDIRECT($I$4),5,FALSE)/100,E15) -> 0 | M15: 45.09
D16: højde | G16: =IF(OR(ISBLANK(E16), E16<VLOOKUP($D16,INDIRECT($I$4),6,FALSE)),0,INT(VLOOKUP($D16,INDIRECT($I$4),2,FALSE)+VLOOKUP($D16,INDIRECT($I$4),3,FALSE)*E16+VLOOKUP($D16,INDIRECT($I$4),4,FALSE)*E16*E16)) -> 0 | M16: 1.89
D17: længde | G17: 0 | M17: 6.48
D18: stang | G18: =IF(OR(ISBLANK(E18), E18<VLOOKUP($D18,INDIRECT($I$4),6,FALSE)),0,INT(VLOOKUP($D18,INDIRECT($I$4),2,FALSE)+VLOOKUP($D18,INDIRECT($I$4),3,FALSE)*E18+VLOOKUP($D18,INDIRECT($I$4),4,FALSE)*E18*E18)) -> 0 | M18: 3.78
D19: trespring | G19: =IF(OR(ISBLANK(E19), E19<VLOOKUP($D19,INDIRECT($I$4),6,FALSE)),0,INT(VLOOKUP($D19,INDIRECT($I$4),2,FALSE)+VLOOKUP($D19,INDIRECT($I$4),3,FALSE)*E19+VLOOKUP($D19,INDIRECT($I$4),4,FALSE)*E19*E19)) -> 0 | M19: 12.98
D20: kugle | G20: 0 | M20: 15.39
D21: diskos | G21: 0 | M21: 56.49
D22: hammer | G22: 0 | M22: 52.11
D23: spyd | G23: 0 | M23: 65.98
D24: Point | G24: =LARGE(G6:G23,1)+LARGE(G6:G23,2)+LARGE(G6:G23,3) -> 0
D25: Mærke | G25: =IF(G24>=G28,D28,IF(G24>=G27,D27,IF(G24>=G26,D26,"ingen"))) -> ingen
D26: Bronze | G26: 825
D27: Sølv | G27: 1900
D28: Guld | G28: 2500

Sheet D18_Resultater
D3: Køn | E3: Alder
D4: D | E4: 18 | G4: år | I4: =CONCATENATE("DAF_",D4,E4) -> DAF_D18
E5: Res. | G5: Point
D6: 100m | G6: =IF(OR(ISBLANK(E6),E6>VLOOKUP($D6,INDIRECT($I$4),6,FALSE)),0,INT(VLOOKUP($D6,INDIRECT($I$4),2,FALSE)+VLOOKUP($D6,INDIRECT($I$4),3,FALSE)*I6+VLOOKUP($D6,INDIRECT($I$4),4,FALSE)*I6*I6)) -> 0 | I6: =IF(F6="[Man]",ROUND(E6,1)+VLOOKUP($D6,INDIRECT($I$4),5,FALSE)/100,E6) -> 0 | M6: =VLOOKUP($D6,INDIRECT($I$4),7,FALSE) -> 10.39
D7: 200m | G7: =IF(OR(ISBLANK(E7),E7>VLOOKUP($D7,INDIRECT($I$4),6,FALSE)),0,INT(VLOOKUP($D7,INDIRECT($I$4),2,FALSE)+VLOOKUP($D7,INDIRECT($I$4),3,FALSE)*I7+VLOOKUP($D7,INDIRECT($I$4),4,FALSE)*I7*I7)) -> 0 | I7: =IF(F7="[Man]",ROUND(E7,1)+VLOOKUP($D7,INDIRECT($I$4),5,FALSE)/100,E7) -> 0 | M7: =VLOOKUP($D7,INDIRECT($I$4),7,FALSE) -> 20.83
D8: 400m | G8: 0 | I8: =IF(F8="[Man]",ROUND(E8,1)+VLOOKUP($D8,INDIRECT($I$4),5,FALSE)/100,E8) -> 0 | J8: Navn: | M8: 46.48
D9: 800m | G9: =IF(ISBLANK(E9),0,IF(INT(VLOOKUP($D9,INDIRECT($I$4),2,FALSE)+VLOOKUP($D9,INDIRECT($I$4),3,FALSE)*E9*86400+VLOOKUP($D9,INDIRECT($I$4),4,FALSE)*E9*86400*E9*86400)<0,0,INT(VLOOKUP($D9,INDIRECT($I$4),2,FALSE)+VLOOKUP($D9,INDIRECT($I$4),3,FALSE)*E9*86400+VLOOKUP($D9,INDIRECT($I$4),4,FALSE)*E9*86400*E9*86400))) -> 0 | J9: Klub: | K9: =IF(Info!D29=0," ",Info!D29) -> Vejle IF | M9: 00:01:48.970
D10: 1000m | G10: =IF(ISBLANK(E10),0,IF(INT(VLOOKUP($D10,INDIRECT($I$4),2,FALSE)+VLOOKUP($D10,INDIRECT($I$4),3,FALSE)*E10*86400+VLOOKUP($D10,INDIRECT($I$4),4,FALSE)*E10*86400*E10*86400)<0,0,INT(VLOOKUP($D10,INDIRECT($I$4),2,FALSE)+VLOOKUP($D10,INDIRECT($I$4),3,FALSE)*E10*86400+VLOOKUP($D10,INDIRECT($I$4),4,FALSE)*E10*86400*E10*86400))) -> 0 | J10: (klub indtastes i Info skemaet) | M10: 00:02:20.680
D11: 1500m | G11: 0 | K11: =Info!G28 -> På diplom | M11: 00:03:43.940
D12: 3000m | G12: 0 | M12: 00:08:04.950
D13: 110mH | G13: =IF(OR(ISBLANK(E13),E13>VLOOKUP($D13,INDIRECT($I$4),6,FALSE)),0,INT(VLOOKUP($D13,INDIRECT($I$4),2,FALSE)+VLOOKUP($D13,INDIRECT($I$4),3,FALSE)*I13+VLOOKUP($D13,INDIRECT($I$4),4,FALSE)*I13*I13)) -> 0 | I13: =IF(F13="[Man]",ROUND(E13,1)+VLOOKUP($D13,INDIRECT($I$4),5,FALSE)/100,E13) -> 0 | M13: 13.67
D14: 4x100m | G14: 0 | I14: =IF(F14="[Man]",ROUND(E14,1)+VLOOKUP($D14,INDIRECT($I$4),5,FALSE)/100,E14) -> 0 | M14: 41.06
D15: højde | G15: =IF(OR(ISBLANK(E15), E15<VLOOKUP($D15,INDIRECT($I$4),6,FALSE)),0,INT(VLOOKUP($D15,INDIRECT($I$4),2,FALSE)+VLOOKUP($D15,INDIRECT($I$4),3,FALSE)*E15+VLOOKUP($D15,INDIRECT($I$4),4,FALSE)*E15*E15)) -> 0 | M15: 2.26
D16: længde | G16: 0 | M16: 7.8
D17: stang | G17: =IF(OR(ISBLANK(E17), E17<VLOOKUP($D17,INDIRECT($I$4),6,FALSE)),0,INT(VLOOKUP($D17,INDIRECT($I$4),2,FALSE)+VLOOKUP($D17,INDIRECT($I$4),3,FALSE)*E17+VLOOKUP($D17,INDIRECT($I$4),4,FALSE)*E17*E17)) -> 0 | M17: 5.36
D18: trespring | G18: =IF(OR(ISBLANK(E18), E18<VLOOKUP($D18,INDIRECT($I$4),6,FALSE)),0,INT(VLOOKUP($D18,INDIRECT($I$4),2,FALSE)+VLOOKUP($D18,INDIRECT($I$4),3,FALSE)*E18+VLOOKUP($D18,INDIRECT($I$4),4,FALSE)*E18*E18)) -> 0 | M18: 15.97
D19: kugle | G19: =IF(OR(ISBLANK(E19), E19<VLOOKUP($D19,INDIRECT($I$4),6,FALSE)),0,INT(VLOOKUP($D19,INDIRECT($I$4),2,FALSE)+VLOOKUP($D19,INDIRECT($I$4),3,FALSE)*E19+VLOOKUP($D19,INDIRECT($I$4),4,FALSE)*E19*E19)) -> 0 | M19: 20.66
D20: diskos | G20: 0 | M20: 68.03
D21: hammer | G21: =IF(OR(ISBLANK(E21), E21<VLOOKUP($D21,INDIRECT($I$4),6,FALSE)),0,INT(VLOOKUP($D21,INDIRECT($I$4),2,FALSE)+VLOOKUP($D21,INDIRECT($I$4),3,FALSE)*E21+VLOOKUP($D21,INDIRECT($I$4),4,FALSE)*E21*E21)) -> 0 | M21: 77.55
D22: spyd | G22: =IF(OR(ISBLANK(E22), E22<VLOOKUP($D22,INDIRECT($I$4),6,FALSE)),0,INT(VLOOKUP($D22,INDIRECT($I$4),2,FALSE)+VLOOKUP($D22,INDIRECT($I$4),3,FALSE)*E22+VLOOKUP($D22,INDIRECT($I$4),4,FALSE)*E22*E22)) -> 0 | M22: 77.27
D23: vægt | G23: 0 | M23: 20.66
D24: Point | G24: =LARGE(G6:G23,1)+LARGE(G6:G23,2)+LARGE(G6:G23,3) -> 0
D25: Mærke | G25: =IF(G24>=G28,D28,IF(G24>=G27,D27,IF(G24>=G26,D26,"ingen"))) -> ingen
D26: Bronze | G26: 825
D27: Sølv | G27: 1900
D28: Guld | G28: 2500

Sheet P19_Resultater
D3: Køn | E3: Alder
D4: P | E4: 19 | G4: år | I4: =CONCATENATE("DAF_",D4,E4) -> DAF_P19
E5: Res. | G5: Point
D6: 100m | G6: =IF(OR(ISBLANK(E6),E6>VLOOKUP($D6,INDIRECT($I$4),6,FALSE)),0,INT(VLOOKUP($D6,INDIRECT($I$4),2,FALSE)+VLOOKUP($D6,INDIRECT($I$4),3,FALSE)*I6+VLOOKUP($D6,INDIRECT($I$4),4,FALSE)*I6*I6)) -> 0 | I6: =IF(F6="[Man]",ROUND(E6,1)+VLOOKUP($D6,INDIRECT($I$4),5,FALSE)/100,E6) -> 0 | M6: =VLOOKUP($D6,INDIRECT($I$4),7,FALSE) -> 11.35
D7: 200m | G7: =IF(OR(ISBLANK(E7),E7>VLOOKUP($D7,INDIRECT($I$4),6,FALSE)),0,INT(VLOOKUP($D7,INDIRECT($I$4),2,FALSE)+VLOOKUP($D7,INDIRECT($I$4),3,FALSE)*I7+VLOOKUP($D7,INDIRECT($I$4),4,FALSE)*I7*I7)) -> 0 | I7: =IF(F7="[Man]",ROUND(E7,1)+VLOOKUP($D7,INDIRECT($I$4),5,FALSE)/100,E7) -> 0 | M7: =VLOOKUP($D7,INDIRECT($I$4),7,FALSE) -> 22.66
D8: 400m | G8: 0 | I8: =IF(F8="[Man]",ROUND(E8,1)+VLOOKUP($D8,INDIRECT($I$4),5,FALSE)/100,E8) -> 0 | J8: Navn: | M8: 51.44
D9: 800m | G9: =IF(OR(ISBLANK(E9), E9>VLOOKUP($D9,INDIRECT($I$4),6,FALSE)),0,INT(VLOOKUP($D9,INDIRECT($I$4),2,FALSE)+VLOOKUP($D9,INDIRECT($I$4),3,FALSE)*E9*86400+VLOOKUP($D9,INDIRECT($I$4),4,FALSE)*E9*86400*E9*86400)) -> 0 | J9: Klub: | K9: =IF(Info!D29=0," ",Info!D29) -> Vejle IF | M9: 00:02:01.930
D10: 1000m | G10: =IF(OR(ISBLANK(E10), E10>VLOOKUP($D10,INDIRECT($I$4),6,FALSE)),0,INT(VLOOKUP($D10,INDIRECT($I$4),2,FALSE)+VLOOKUP($D10,INDIRECT($I$4),3,FALSE)*E10*86400+VLOOKUP($D10,INDIRECT($I$4),4,FALSE)*E10*86400*E10*86400)) -> 0 | J10: (klub indtastes i Info skemaet) | M10: 00:02:37.930
D11: 1500m | G11: =IF(OR(ISBLANK(E11), E11>VLOOKUP($D11,INDIRECT($I$4),6,FALSE)),0,INT(VLOOKUP($D11,INDIRECT($I$4),2,FALSE)+VLOOKUP($D11,INDIRECT($I$4),3,FALSE)*E11*86400+VLOOKUP($D11,INDIRECT($I$4),4,FALSE)*E11*86400*E11*86400)) -> 0 | K11: =Info!G28 -> På diplom | M11: 00:04:09.840
D12: 3000m | G12: =IF(OR(ISBLANK(E12), E12>VLOOKUP($D12,INDIRECT($I$4),6,FALSE)),0,INT(VLOOKUP($D12,INDIRECT($I$4),2,FALSE)+VLOOKUP($D12,INDIRECT($I$4),3,FALSE)*E12*86400+VLOOKUP($D12,INDIRECT($I$4),4,FALSE)*E12*86400*E12*86400)) -> 0 | M12: 00:08:54.750
D13: 60mH | G13: =IF(OR(ISBLANK(E13),E13>VLOOKUP($D13,INDIRECT($I$4),6,FALSE)),0,INT(VLOOKUP($D13,INDIRECT($I$4),2,FALSE)+VLOOKUP($D13,INDIRECT($I$4),3,FALSE)*I13+VLOOKUP($D13,INDIRECT($I$4),4,FALSE)*I13*I13)) -> 0 | I13: =IF(F13="[Man]",ROUND(E13,1)+VLOOKUP($D13,INDIRECT($I$4),5,FALSE)/100,E13) -> 0 | M13: 7.87
D14: 100mH | G14: =IF(OR(ISBLANK(E14),E14>VLOOKUP($D14,INDIRECT($I$4),6,FALSE)),0,INT(VLOOKUP($D14,INDIRECT($I$4),2,FALSE)+VLOOKUP($D14,INDIRECT($I$4),3,FALSE)*I14+VLOOKUP($D14,INDIRECT($I$4),4,FALSE)*I14*I14)) -> 0 | I14: =IF(F14="[Man]",ROUND(E14,1)+VLOOKUP($D14,INDIRECT($I$4),5,FALSE)/100,E14) -> 0 | M14: 12.96
D15: 4x100m | G15: 0 | I15: =IF(F15="[Man]",ROUND(E15,1)+VLOOKUP($D15,INDIRECT($I$4),5,FALSE)/100,E15) -> 0 | M15: 45.09
D16: højde | G16: =IF(OR(ISBLANK(E16), E16<VLOOKUP($D16,INDIRECT($I$4),6,FALSE)),0,INT(VLOOKUP($D16,INDIRECT($I$4),2,FALSE)+VLOOKUP($D16,INDIRECT($I$4),3,FALSE)*E16+VLOOKUP($D16,INDIRECT($I$4),4,FALSE)*E16*E16)) -> 0 | M16: 1.89
D17: længde | G17: 0 | M17: 6.48
D18: stang | G18: =IF(OR(ISBLANK(E18), E18<VLOOKUP($D18,INDIRECT($I$4),6,FALSE)),0,INT(VLOOKUP($D18,INDIRECT($I$4),2,FALSE)+VLOOKUP($D18,INDIRECT($I$4),3,FALSE)*E18+VLOOKUP($D18,INDIRECT($I$4),4,FALSE)*E18*E18)) -> 0 | M18: 3.78
D19: trespring | G19: =IF(OR(ISBLANK(E19), E19<VLOOKUP($D19,INDIRECT($I$4),6,FALSE)),0,INT(VLOOKUP($D19,INDIRECT($I$4),2,FALSE)+VLOOKUP($D19,INDIRECT($I$4),3,FALSE)*E19+VLOOKUP($D19,INDIRECT($I$4),4,FALSE)*E19*E19)) -> 0 | M19: 12.98
D20: kugle | G20: 0 | M20: 15.39
D21: diskos | G21: 0 | M21: 56.49
D22: hammer | G22: 0 | M22: 52.11
D23: spyd | G23: 0 | M23: 65.98
D24: Point | G24: =LARGE(G6:G23,1)+LARGE(G6:G23,2)+LARGE(G6:G23,3) -> 0
D25: Mærke | G25: =IF(G24>=G28,D28,IF(G24>=G27,D27,IF(G24>=G26,D26,"ingen"))) -> ingen
D26: Bronze | G26: 825
D27: Sølv | G27: 1900
D28: Guld | G28: 2500

Sheet D19_Resultater
D3: Køn | E3: Alder
D4: D | E4: 19 | G4: år | I4: =CONCATENATE("DAF_",D4,E4) -> DAF_D19
E5: Res. | G5: Point
D6: 100m | G6: =IF(OR(ISBLANK(E6),E6>VLOOKUP($D6,INDIRECT($I$4),6,FALSE)),0,INT(VLOOKUP($D6,INDIRECT($I$4),2,FALSE)+VLOOKUP($D6,INDIRECT($I$4),3,FALSE)*I6+VLOOKUP($D6,INDIRECT($I$4),4,FALSE)*I6*I6)) -> 0 | I6: =IF(F6="[Man]",ROUND(E6,1)+VLOOKUP($D6,INDIRECT($I$4),5,FALSE)/100,E6) -> 0 | M6: =VLOOKUP($D6,INDIRECT($I$4),7,FALSE) -> 10.39
D7: 200m | G7: =IF(OR(ISBLANK(E7),E7>VLOOKUP($D7,INDIRECT($I$4),6,FALSE)),0,INT(VLOOKUP($D7,INDIRECT($I$4),2,FALSE)+VLOOKUP($D7,INDIRECT($I$4),3,FALSE)*I7+VLOOKUP($D7,INDIRECT($I$4),4,FALSE)*I7*I7)) -> 0 | I7: =IF(F7="[Man]",ROUND(E7,1)+VLOOKUP($D7,INDIRECT($I$4),5,FALSE)/100,E7) -> 0 | M7: =VLOOKUP($D7,INDIRECT($I$4),7,FALSE) -> 20.83
D8: 400m | G8: 0 | I8: =IF(F8="[Man]",ROUND(E8,1)+VLOOKUP($D8,INDIRECT($I$4),5,FALSE)/100,E8) -> 0 | J8: Navn: | M8: 46.48
D9: 800m | G9: =IF(ISBLANK(E9),0,IF(INT(VLOOKUP($D9,INDIRECT($I$4),2,FALSE)+VLOOKUP($D9,INDIRECT($I$4),3,FALSE)*E9*86400+VLOOKUP($D9,INDIRECT($I$4),4,FALSE)*E9*86400*E9*86400)<0,0,INT(VLOOKUP($D9,INDIRECT($I$4),2,FALSE)+VLOOKUP($D9,INDIRECT($I$4),3,FALSE)*E9*86400+VLOOKUP($D9,INDIRECT($I$4),4,FALSE)*E9*86400*E9*86400))) -> 0 | J9: Klub: | K9: =IF(Info!D29=0," ",Info!D29) -> Vejle IF | M9: 00:01:48.970
D10: 1000m | G10: =IF(ISBLANK(E10),0,IF(INT(VLOOKUP($D10,INDIRECT($I$4),2,FALSE)+VLOOKUP($D10,INDIRECT($I$4),3,FALSE)*E10*86400+VLOOKUP($D10,INDIRECT($I$4),4,FALSE)*E10*86400*E10*86400)<0,0,INT(VLOOKUP($D10,INDIRECT($I$4),2,FALSE)+VLOOKUP($D10,INDIRECT($I$4),3,FALSE)*E10*86400+VLOOKUP($D10,INDIRECT($I$4),4,FALSE)*E10*86400*E10*86400))) -> 0 | J10: (klub indtastes i Info skemaet) | M10: 00:02:20.680
D11: 1500m | G11: 0 | K11: =Info!G28 -> På diplom | M11: 00:03:43.940
D12: 3000m | G12: 0 | M12: 00:08:04.950
D13: 110mH | G13: =IF(OR(ISBLANK(E13),E13>VLOOKUP($D13,INDIRECT($I$4),6,FALSE)),0,INT(VLOOKUP($D13,INDIRECT($I$4),2,FALSE)+VLOOKUP($D13,INDIRECT($I$4),3,FALSE)*I13+VLOOKUP($D13,INDIRECT($I$4),4,FALSE)*I13*I13)) -> 0 | I13: =IF(F13="[Man]",ROUND(E13,1)+VLOOKUP($D13,INDIRECT($I$4),5,FALSE)/100,E13) -> 0 | M13: 13.67
D14: 4x100m | G14: 0 | I14: =IF(F14="[Man]",ROUND(E14,1)+VLOOKUP($D14,INDIRECT($I$4),5,FALSE)/100,E14) -> 0 | M14: 41.06
D15: højde | G15: =IF(OR(ISBLANK(E15), E15<VLOOKUP($D15,INDIRECT($I$4),6,FALSE)),0,INT(VLOOKUP($D15,INDIRECT($I$4),2,FALSE)+VLOOKUP($D15,INDIRECT($I$4),3,FALSE)*E15+VLOOKUP($D15,INDIRECT($I$4),4,FALSE)*E15*E15)) -> 0 | M15: 2.26
D16: længde | G16: 0 | M16: 7.8
D17: stang | G17: =IF(OR(ISBLANK(E17), E17<VLOOKUP($D17,INDIRECT($I$4),6,FALSE)),0,INT(VLOOKUP($D17,INDIRECT($I$4),2,FALSE)+VLOOKUP($D17,INDIRECT($I$4),3,FALSE)*E17+VLOOKUP($D17,INDIRECT($I$4),4,FALSE)*E17*E17)) -> 0 | M17: 5.36
D18: trespring | G18: =IF(OR(ISBLANK(E18), E18<VLOOKUP($D18,INDIRECT($I$4),6,FALSE)),0,INT(VLOOKUP($D18,INDIRECT($I$4),2,FALSE)+VLOOKUP($D18,INDIRECT($I$4),3,FALSE)*E18+VLOOKUP($D18,INDIRECT($I$4),4,FALSE)*E18*E18)) -> 0 | M18: 15.97
D19: kugle | G19: =IF(OR(ISBLANK(E19), E19<VLOOKUP($D19,INDIRECT($I$4),6,FALSE)),0,INT(VLOOKUP($D19,INDIRECT($I$4),2,FALSE)+VLOOKUP($D19,INDIRECT($I$4),3,FALSE)*E19+VLOOKUP($D19,INDIRECT($I$4),4,FALSE)*E19*E19)) -> 0 | M19: 20.66
D20: diskos | G20: 0 | M20: 68.03
D21: hammer | G21: =IF(OR(ISBLANK(E21), E21<VLOOKUP($D21,INDIRECT($I$4),6,FALSE)),0,INT(VLOOKUP($D21,INDIRECT($I$4),2,FALSE)+VLOOKUP($D21,INDIRECT($I$4),3,FALSE)*E21+VLOOKUP($D21,INDIRECT($I$4),4,FALSE)*E21*E21)) -> 0 | M21: 77.55
D22: spyd | G22: =IF(OR(ISBLANK(E22), E22<VLOOKUP($D22,INDIRECT($I$4),6,FALSE)),0,INT(VLOOKUP($D22,INDIRECT($I$4),2,FALSE)+VLOOKUP($D22,INDIRECT($I$4),3,FALSE)*E22+VLOOKUP($D22,INDIRECT($I$4),4,FALSE)*E22*E22)) -> 0 | M22: 77.27
D23: vægt | G23: 0 | M23: 20.66
D24: Point | G24: =LARGE(G6:G23,1)+LARGE(G6:G23,2)+LARGE(G6:G23,3) -> 0
D25: Mærke | G25: =IF(G24>=G28,D28,IF(G24>=G27,D27,IF(G24>=G26,D26,"ingen"))) -> ingen
D26: Bronze | G26: 825
D27: Sølv | G27: 1900
D28: Guld | G28: 2500

Sheet Pointformler
B1: A | C1: B | D1: C | N1: A | O1: B | P1: C | AC1: Drenge | AD1: Piger
A2: DAF_D9: | AB2: 4 | AC2: DAF_D9 | AD2: DAF_P9
A3: 40m | B3: 843.56813 | C3: 305.86701 | D3: -39.589349 | E3: 24 | F3: 9.88 | G3: 6.3 | H3: 1199 | AB3: 5 | AC3: DAF_D9 | AD3: DAF_P9
A4: 400m | B4: 3776.7145 | C4: -40.896439 | D4: 0.073921613 | E4: 14 | F4: 117.11 | G4: 72.5 | H4: 1200 | AB4: 6 | AC4: DAF_D9 | AD4: DAF_P9
A5: 800m | B5: 2802.3229 | C5: -10.947062 | D5: 0.002936917 | E5: 0 | F5: 00:04:36.380 | G5: 00:02:32.610 | H5: 1200 | AB5: 7 | AC5: DAF_D9 | AD5: DAF_P9
A6: 4x40m | B6: 998.54263 | C6: 68.068412 | D6: -2.4078562 | E6: 24 | F6: 38.91 | G6: 24.91 | H6: 1200 | AB6: 8 | AC6: DAF_D9 | AD6: DAF_P9
A7: højde | B7: -1266.2929 | C7: 1936.539 | D7: 29.512535 | E7: 0 | F7: 0.65 | G7: 1.25 | H7: 1200 | AB7: 9 | AC7: DAF_D9 | AD7: DAF_P9
A8: længde | B8: -586.3155 | C8: 288.81527 | D8: 38.890897 | E8: 0 | F8: 1.67 | G8: 4.01 | H8: 1197 | AB8: 10 | AC8: DAF_D11 | AD8: DAF_P11
A9: kugle | B9: -448.71 | C9: 231.03 | D9: -6.4152 | E9: 0 | F9: 2.07 | G9: 9.81 | H9: 1200 | AB9: 11 | AC9: DAF_D11 | AD9: DAF_P11
A10: bold | B10: -272.3277 | C10: 32.269203 | D10: -0.077919771 | E10: 0 | F10: 8.66 | G10: 52.21 | H10: 1200 | AB10: 12 | AC10: DAF_D13 | AD10: DAF_P13
AB11: 13 | AC11: DAF_D13 | AD11: DAF_P13
AB12: 14 | AC12: DAF_D15 | AD12: DAF_P15
A13: DAF_D11: | M13: DAF_D10: | AB13: 15 | AC13: DAF_D15 | AD13: DAF_P15
A14: 60m | B14: 6459.6818 | C14: -834.88416 | D14: 25.921111 | E14: 24 | F14: 12.91 | G14: 8.59 | H14: 1200 | M14: 60m | N14: 6459.6818 | O14: -834.88416 | P14: 25.921111 | Q14: 24 | R14: 12.91 | S14: 8.59 | T14: 1200 | AB14: 16 | AC14: DAF_D17 | AD14: DAF_P17
A15: 400m | B15: 5444.653 | C15: -91.77544 | D15: 0.3612378 | E15: 14 | F15: 94.36 | G15: 60.79 | H15: 1200 | M15: 400m | N15: 5444.653 | O15: -91.77544 | P15: 0.3612378 | Q15: 14 | R15: 94.36 | S15: 60.79 | T15: 1200 | AB15: 17 | AC15: DAF_D17 | AD15: DAF_P17
A16: 1000m | B16: 4956.5268 | C16: -26.530196 | D16: 0.033618548 | E16: 0 | F16: 00:05:03.540 | G16: 00:03:04.930 | H16: 1200 | M16: 1000m | N16: 4956.5268 | O16: -26.530196 | P16: 0.033618548 | Q16: 0 | R16: 00:05:03.540 | S16: 00:03:04.930 | T16: 1200 | AB16: 18 | AC16: DAF_D19 | AD16: DAF_P19
A17: 60mH | B17: 4426.1663 | C17: -391.16642 | D17: 8.4556377 | E17: 24 | F17: 19.71 | G17: 10.74 | H17: 1200 | M17: 60mH | N17: 4426.1663 | O17: -391.16642 | P17: 8.4556377 | Q17: 24 | R17: 19.71 | S17: 10.74 | T17: 1200 | AB17: 19 | AC17: DAF_D19 | AD17: DAF_P19
A18: 4x60m | B18: 6315.1771 | C18: -206.64689 | D18: 1.623419 | E18: 24 | F18: 50.94 | G18: 33.64 | H18: 1200 | M18: 4x60m | N18: 6315.1771 | O18: -206.64689 | P18: 1.623419 | Q18: 24 | R18: 50.94 | S18: 33.64 | T18: 1200
A19: højde | B19: -1647.9651 | C19: 2284.2512 | D19: -271.05405 | E19: 0 | F19: 0.8 | G19: 1.52 | H19: 1197 | M19: højde | N19: -1647.9651 | O19: 2284.2512 | P19: -271.05405 | Q19: 0 | R19: 0.8 | S19: 1.52 | T19: 1197
A20: længde | B20: -1402.2554 | C20: 681.70829 | D20: -32.964749 | E20: 0 | F20: 2.32 | G20: 5.05 | H20: 1199 | M20: længde | N20: -1402.2554 | O20: 681.70829 | P20: -32.964749 | Q20: 0 | R20: 2.32 | S20: 5.05 | T20: 1199
A21: kugle | B21: -528.62282 | C21: 230.99576 | D21: -6.4124341 | E21: 0 | F21: 2.47 | G21: 10.61 | H21: 1200 | M21: kugle | N21: -528.62282 | O21: 230.99576 | P21: -6.4124341 | Q21: 0 | R21: 2.47 | S21: 10.61 | T21: 1200
A22: bold | B22: -726.99618 | C22: 51.113221 | D22: -0.31653346 | E22: 0 | F22: 15.79 | G22: 59.98 | H22: 1200 | M22: bold | N22: -726.99618 | O22: 51.113221 | P22: -0.31653346 | Q22: 0 | R22: 15.79 | S22: 59.98 | T22: 1200
A25: DAF_D13: | M25: DAF_D12:
A26: 80m | B26: 6349.3365 | C26: -774.24543 | D26: 23.397963 | E26: 24 | F26: 14.98 | G26: 9.22 | H26: 1199 | M26: 80m | N26: 6349.3365 | O26: -774.24543 | P26: 23.397963 | Q26: 24 | R26: 14.98 | S26: 9.22 | T26: 1199
A27: 200m | B27: 5674.7852 | C27: -271.51764 | D27: 3.2485489 | E27: 24 | F27: 42.24 | G27: 22.58 | H27: 1200 | M27: 200m | N27: 5674.7852 | O27: -271.51764 | P27: 3.2485489 | Q27: 24 | R27: 42.24 | S27: 22.58 | T27: 1200
A28: 600m | B28: 4935.0727 | C28: -54.822215 | D28: 0.15326878 | E28: 0 | F28: 00:02:58.840 | G28: 00:01:31.560 | H28: 1200 | M28: 600m | N28: 4935.0727 | O28: -54.822215 | P28: 0.15326878 | Q28: 0 | R28: 00:02:58.840 | S28: 00:01:31.560 | T28: 1200
A29: 1000m | B29: 6280.0046 | C29: -45.898487 | D29: 0.084016554 | E29: 0 | F29: 00:04:33.140 | G29: 00:02:34.190 | H29: 1200 | M29: 1000m | N29: 6280.0046 | O29: -45.898487 | P29: 0.084016554 | Q29: 0 | R29: 00:04:33.140 | S29: 00:02:34.190 | T29: 1200
A30: 60mH | B30: 3927.1691 | C30: -410.25169 | D30: 10.764613 | E30: 24 | H30: 1200 | M30: 60mH | N30: 3927.1691 | O30: -410.25169 | P30: 10.764613 | Q30: 24 | T30: 1200
A31: 80mH | B31: 4136.577 | C31: -358.36139 | D31: 7.8180447 | E31: 24 | F31: 22.93 | G31: 10.69 | H31: 1199 | M31: 80mH | N31: 4136.577 | O31: -358.36139 | P31: 7.8180447 | Q31: 24 | R31: 22.93 | S31: 10.69 | T31: 1199
A32: 4x80m | B32: 5005.3236 | C32: -130.27444 | D32: 0.83439189 | E32: 24 | F32: 68.23 | G32: 38.9 | H32: 1200 | M32: 4x80m | N32: 5005.3236 | O32: -130.27444 | P32: 0.83439189 | Q32: 24 | R32: 68.23 | S32: 38.9 | T32: 1200
A33: højde | B33: -1034.9979 | C33: 842.14126 | D33: 177.84027 | E33: 0 | F33: 1.02 | G33: 1.89 | H33: 1191 | M33: højde | N33: -1034.9979 | O33: 842.14126 | P33: 177.84027 | Q33: 0 | R33: 1.02 | S33: 1.89 | T33: 1191
A34: stang | B34: -187.56187 | C34: 124.36828 | D34: 64.000816 | E34: 0 | F34: 1.01 | G34: 3.78 | H34: 1197 | M34: stang | N34: -187.56187 | O34: 124.36828 | P34: 64.000816 | Q34: 0 | R34: 1.01 | S34: 3.78 | T34: 1197
A35: længde | B35: -621.05265 | C35: 226.52164 | D35: 8.9429072 | E35: 0 | F35: 2.5 | G35: 6.41 | H35: 1198 | M35: længde | N35: -621.05265 | O35: 226.52164 | P35: 8.9429072 | Q35: 0 | R35: 2.5 | S35: 6.41 | T35: 1198
A36: kugle | B36: -603.87947 | C36: 151.47984 | D36: -2.5379156 | E36: 0 | F36: 4.31 | G36: 16.44 | H36: 1200 | M36: kugle | N36: -603.87947 | O36: 151.47984 | P36: -2.5379156 | Q36: 0 | R36: 4.31 | S36: 16.44 | T36: 1200
A37: diskos | B37: -338.67333 | C37: 37.990535 | D37: -0.18134615 | E37: 0 | F37: 9.36 | G37: 54.88 | H37: 1200 | M37: diskos | N37: -338.67333 | O37: 37.990535 | P37: -0.18134615 | Q37: 0 | R37: 9.36 | S37: 54.88 | T37: 1200
A38: hammer | B38: -338.67333 | C38: 37.990535 | D38: -0.18134615 | E38: 0 | F38: 9.36 | G38: 54.88 | H38: 1200 | M38: hammer | N38: -338.67333 | O38: 37.990535 | P38: -0.18134615 | Q38: 0 | R38: 9.36 | S38: 54.88 | T38: 1200
A39: spyd | B39: -225.52621 | C39: 39.213041 | D39: -0.24128667 | E39: 0 | F39: 6 | G39: 54.9 | H39: 1200 | M39: spyd | N39: -225.52621 | O39: 39.213041 | P39: -0.24128667 | Q39: 0 | R39: 6 | S39: 54.9 | T39: 1200
A40: bold | B40: -594.95876 | C40: 33.930087 | D40: -0.14989394 | E40: 0 | F40: 19.2 | G40: 84.29 | H40: 1200 | M40: bold | N40: -594.95876 | O40: 33.930087 | P40: -0.14989394 | Q40: 0 | R40: 19.2 | S40: 84.29 | T40: 1200
A43: DAF_D15: | M43: DAF_D14:
A44: 60m | B44: 6748.1738 | C44: -1107.966 | D44: 45.524318 | E44: 24 | F44: 12.16 | G44: 7.05 | H44: 1199 | M44: 60m | N44: 6748.1738 | O44: -1107.966 | P44: 45.524318 | Q44: 24 | R44: 12.16 | S44: 7.05 | T44: 1199
A45: 100m | B45: 5965.4769 | C45: -634.37722 | D45: 16.890471 | E45: 24 | F45: 18.77 | G45: 10.38 | H45: 1200 | M45: 100m | N45: 5965.4769 | O45: -634.37722 | P45: 16.890471 | Q45: 24 | R45: 18.77 | S45: 10.38 | T45: 1200
A46: 200m | B46: 5319.4613 | C46: -269.34601 | D46: 3.4225433 | E46: 24 | F46: 39.34 | G46: 20.78 | H46: 1200 | M46: 200m | N46: 5319.4613 | O46: -269.34601 | P46: 3.4225433 | Q46: 24 | R46: 39.34 | S46: 20.78 | T46: 1200
A47: 300m | B47: 5858.7645 | C47: -187.82006 | D47: 1.5115816 | E47: 24 | F47: 62.12 | G47: 34.23 | H47: 1200 | M47: 300m | N47: 5858.7645 | O47: -187.82006 | P47: 1.5115816 | Q47: 24 | R47: 62.12 | S47: 34.23 | T47: 1200
A48: 800m | B48: 6055.6577 | C48: -61.835473 | D48: 0.15857415 | E48: 0 | F48: 00:03:14.960 | G48: 00:01:48.980 | H48: 1200 | M48: 800m | N48: 6055.6577 | O48: -61.835473 | P48: 0.15857415 | Q48: 0 | R48: 00:03:14.960 | S48: 00:01:48.980 | T48: 1200
A49: 1000m | B49: 5785.4262 | C49: -44.893303 | D49: 0.087503598 | E49: 0 | F49: 00:04:16.500 | G49: 00:02:20.750 | H49: 1200 | M49: 1000m | N49: 5785.4262 | O49: -44.893303 | P49: 0.087503598 | Q49: 0 | R49: 00:04:16.500 | S49: 00:02:20.750 | T49: 1200
A50: 1500m | B50: 5628.8827 | C50: -27.131259 | D50: 0.032850903 | E50: 0 | F50: 00:06:52.940 | G50: 00:03:43.970 | H50: 1200 | M50: 1500m | N50: 5628.8827 | O50: -27.131259 | P50: 0.032850903 | Q50: 0 | R50: 00:06:52.940 | S50: 00:03:43.970 | T50: 1200
A51: 3000m | B51: 5368.3725 | C51: -11.703417 | D51: 0.006410726 | E51: 0 | F51: 00:15:12.780 | G51: 00:08:05.020 | H51: 1200 | M51: 3000m | N51: 5368.3725 | O51: -11.703417 | P51: 0.006410726 | Q51: 0 | R51: 00:15:12.780 | S51: 00:08:05.020 | T51: 1200
A52: 60mH | B52: 3922.216 | C52: -434.71448 | D52: 12.076257 | E52: 24 | F52: 18 | G52: 8.07 | H52: 1200 | M52: 60mH | N52: 3922.216 | O52: -434.71448 | P52: 12.076257 | Q52: 24 | R52: 18 | S52: 8.07 | T52: 1200
A53: 100mH | B53: 4706.5403 | C53: -362.68795 | D53: 7.0615893 | E53: 24 | F53: 25.68 | G53: 12.92 | H53: 1199 | M53: 100mH | N53: 4706.5403 | O53: -362.68795 | P53: 7.0615893 | Q53: 24 | R53: 25.68 | S53: 12.92 | T53: 1199
A54: 300mH | B54: 4101.2444 | C54: -104.84749 | D54: 0.672554 | E54: 24 | F54: 77.95 | G54: 35.97 | H54: 1200 | M54: 300mH | N54: 4101.2444 | O54: -104.84749 | P54: 0.672554 | Q54: 24 | R54: 77.95 | S54: 35.97 | T54: 1200
A55: 1500mFH | B55: 6376.4089 | C55: -29.597344 | D55: 0.034533901 | E55: 0 | F55: 00:07:08.510 | G55: 00:04:04.830 | H55: 1200 | M55: 1500mFH | N55: 6376.4089 | O55: -29.597344 | P55: 0.034533901 | Q55: 0 | R55: 00:07:08.510 | S55: 00:04:04.830 | T55: 1200
A56: 4x100m | B56: 5472.7402 | C56: -136.21556 | D56: 0.85184964 | E56: 14 | F56: 79.94 | G56: 42.85 | H56: 1200 | M56: 4x100m | N56: 5472.7402 | O56: -136.21556 | P56: 0.85184964 | Q56: 14 | R56: 79.94 | S56: 42.85 | T56: 1200
A57: højde | B57: -1665.7484 | C57: 1762.1932 | D57: -210.73725 | E57: 0 | F57: 1.09 | G57: 2.21 | H57: 1199 | M57: højde | N57: -1665.7484 | O57: 1762.1932 | P57: -210.73725 | Q57: 0 | R57: 1.09 | S57: 2.21 | T57: 1199
A58: stang | B58: -346.16188 | C58: 335.75269 | D58: -8.091674 | E58: 0 | F58: 1.07 | G58: 5.27 | H58: 1198 | M58: stang | N58: -346.16188 | O58: 335.75269 | P58: -8.091674 | Q58: 0 | R58: 1.07 | S58: 5.27 | T58: 1198
A59: længde | B59: -704.03976 | C59: 242.60769 | D59: 0.19513446 | E59: 0 | F59: 2.9 | G59: 7.8 | H59: 1200 | M59: længde | N59: -704.03976 | O59: 242.60769 | P59: 0.19513446 | Q59: 0 | R59: 2.9 | S59: 7.8 | T59: 1200
A60: kugle | B60: -397.70201 | C60: 117.78298 | D60: -1.9559515 | E60: 0 | F60: 3.61 | G60: 20.64 | H60: 1200 | M60: kugle | N60: -397.70201 | O60: 117.78298 | P60: -1.9559515 | Q60: 0 | R60: 3.61 | S60: 20.64 | T60: 1200
A61: diskos | B61: -350.87492 | C61: 38.099834 | D61: -0.22461477 | E61: 0 | F61: 9.81 | G61: 67.83 | H61: 1200 | M61: diskos | N61: -350.87492 | O61: 38.099834 | P61: -0.22461477 | Q61: 0 | R61: 9.81 | S61: 67.83 | T61: 1200
A62: hammer | B62: -350.87492 | C62: 38.099834 | D62: -0.22461477 | E62: 0 | F62: 9.81 | G62: 67.83 | H62: 1200 | M62: hammer | N62: -350.87492 | O62: 38.099834 | P62: -0.22461477 | Q62: 0 | R62: 9.81 | S62: 67.83 | T62: 1200
A63: spyd | B63: -319.77877 | C63: 26.613139 | D63: -0.10310353 | E63: 0 | F63: 12.68 | G63: 85.29 | H63: 1200 | M63: spyd | N63: -319.77877 | O63: 26.613139 | P63: -0.10310353 | Q63: 0 | R63: 12.68 | S63: 85.29 | T63: 1200
A66: DAF_D17: | M66: DAF_D16:
A67: 60m | B67: 6306.8369 | C67: -1070.3403 | D67: 45.460054 | E67: 24 | H67: 1200 | M67: 60m | N67: 6306.8369 | O67: -1070.3403 | P67: 45.460054 | Q67: 24 | T67: 1200
A68: 100m | B68: 5983.1054 | C68: -636.796 | D68: 16.972057 | E68: 24 | F68: 18.76 | G68: 10.39 | H68: 1198 | M68: 100m | N68: 5983.1054 | O68: -636.796 | P68: 16.972057 | Q68: 24 | R68: 18.76 | S68: 10.39 | T68: 1198
A69: 200m | B69: 5407.6722 | C69: -274.22996 | D69: 3.4697171 | E69: 24 | F69: 37.67 | G69: 20.83 | H69: 1200 | M69: 200m | N69: 5407.6722 | O69: -274.22996 | P69: 3.4697171 | Q69: 24 | R69: 37.67 | S69: 20.83 | T69: 1200
A70: 400m | B70: 5429.9341 | C70: -124.07353 | D70: 0.71151238 | E70: 14 | F70: 87.19 | G70: 46.48 | H70: 1200 | M70: 400m | N70: 5429.9341 | O70: -124.07353 | P70: 0.71151238 | Q70: 14 | R70: 87.19 | S70: 46.48 | T70: 1200
A71: 800m | B71: 6031.2113 | C71: -61.484586 | D71: 0.15738741 | E71: 0 | F71: 00:03:15.330 | G71: 00:01:48.970 | H71: 1200 | M71: 800m | N71: 6031.2113 | O71: -61.484586 | P71: 0.15738741 | Q71: 0 | R71: 00:03:15.330 | S71: 00:01:48.970 | T71: 1200
A72: 1000m | B72: 5762.8779 | C72: -44.665194 | D72: 0.086945821 | E72: 0 | F72: 00:04:16.850 | G72: 00:02:20.680 | H72: 1200 | M72: 1000m | N72: 5762.8779 | O72: -44.665194 | P72: 0.086945821 | Q72: 0 | R72: 00:04:16.850 | S72: 00:02:20.680 | T72: 1200
A73: 1500m | B73: 5619.3985 | C73: -27.068502 | D73: 0.032753479 | E73: 0 | F73: 00:06:53.220 | G73: 00:03:43.940 | H73: 1200 | M73: 1500m | N73: 5619.3985 | O73: -27.068502 | P73: 0.032753479 | Q73: 0 | R73: 00:06:53.220 | S73: 00:03:43.940 | T73: 1200
A74: 3000m | B74: 5360.9132 | C74: -11.68141 | D74: 0.006395572 | E74: 0 | F74: 00:15:13.160 | G74: 00:08:04.950 | H74: 1200 | M74: 3000m | N74: 5360.9132 | O74: -11.68141 | P74: 0.006395572 | Q74: 0 | R74: 00:15:13.160 | S74: 00:08:04.950 | T74: 1200
A75: 60mH | B75: 4336.064 | C75: -543.69014 | D75: 17.142652 | E75: 24 | F75: 15.5 | G75: 7.58 | H75: 1199 | M75: 60mH | N75: 4336.064 | O75: -543.69014 | P75: 17.142652 | Q75: 24 | R75: 15.5 | S75: 7.58 | T75: 1199
A76: 110mH | B76: 4803.2235 | C76: -352.65211 | D76: 6.5159893 | E76: 24 | F76: 26.86 | G76: 13.67 | H76: 1200 | M76: 110mH | N76: 4803.2235 | O76: -352.65211 | P76: 6.5159893 | Q76: 24 | R76: 26.86 | S76: 13.67 | T76: 1200
A77: 4x100m | B77: 5210.7613 | C77: -132.26796 | D77: 0.84244775 | E77: 14 | F77: 78.5 | G77: 41.06 | H77: 1200 | M77: 4x100m | N77: 5210.7613 | O77: -132.26796 | P77: 0.84244775 | Q77: 14 | R77: 78.5 | S77: 41.06 | T77: 1200
A78: højde | B78: -1727.7603 | C78: 1739.9369 | D78: -196.57184 | E78: 0 | F78: 1.15 | G78: 2.26 | H78: 1200 | M78: højde | N78: -1727.7603 | O78: 1739.9369 | P78: -196.57184 | Q78: 0 | R78: 1.15 | S78: 2.26 | T78: 1200
A79: stang | B79: -523.25153 | C79: 424.93533 | D79: -19.322682 | E79: 0 | F79: 1.32 | G79: 5.36 | H79: 1199 | M79: stang | N79: -523.25153 | O79: 424.93533 | P79: -19.322682 | Q79: 0 | R79: 1.32 | S79: 5.36 | T79: 1199
A80: længde | B80: -706.99439 | C80: 244.23994 | D80: 0.04187876 | E80: 0 | F80: 2.9 | G80: 7.8 | H80: 1200 | M80: længde | N80: -706.99439 | O80: 244.23994 | P80: 0.04187876 | Q80: 0 | R80: 2.9 | S80: 7.8 | T80: 1200
A81: trespring | B81: -785.92263 | C81: 88.816361 | D81: 2.2270322 | E81: 0 | F81: 7.47 | G81: 15.97 | H81: 1200 | M81: trespring | N81: -785.92263 | O81: 88.816361 | P81: 2.2270322 | Q81: 0 | R81: 7.47 | S81: 15.97 | T81: 1200
A82: kugle | B82: -405.76653 | C82: 118.79011 | D82: -1.987684 | E82: 0 | F82: 3.65 | G82: 20.66 | H82: 1200 | M82: kugle | N82: -405.76653 | O82: 118.79011 | P82: -1.987684 | Q82: 0 | R82: 3.65 | S82: 20.66 | T82: 1200
A83: diskos | B83: -358.24463 | C83: 38.434398 | D83: -0.22826487 | E83: 0 | F83: 9.94 | G83: 68.03 | H83: 1200 | M83: diskos | N83: -358.24463 | O83: 38.434398 | P83: -0.22826487 | Q83: 0 | R83: 9.94 | S83: 68.03 | T83: 1200
A84: hammer | B84: -347.84833 | C84: 30.38515 | D84: -0.13442967 | E84: 0 | F84: 12.14 | G84: 77.55 | H84: 1200 | M84: hammer | N84: -347.84833 | O84: 30.38515 | P84: -0.13442967 | Q84: 0 | R84: 12.14 | S84: 77.55 | T84: 1200
A85: spyd | B85: -350.6293 | C85: 30.592798 | D85: -0.13619758 | E85: 0 | F85: 12.16 | G85: 77.27 | H85: 1200 | M85: spyd | N85: -350.6293 | O85: 30.592798 | P85: -0.13619758 | Q85: 0 | R85: 12.16 | S85: 77.27 | T85: 1200
A86: vægt | B86: -405.76653 | C86: 118.79011 | D86: -1.987684 | E86: 0 | F86: 3.65 | G86: 20.66 | H86: 1200 | M86: vægt | N86: -405.76653 | O86: 118.79011 | P86: -1.987684 | Q86: 0 | R86: 3.65 | S86: 20.66 | T86: 1200
A89: DAF_D19: | M89: DAF_D18:
A90: 60m | B90: 6306.8369 | C90: -1070.3403 | D90: 45.460054 | E90: 24 | H90: 1200 | M90: 60m | N90: 6306.8369 | O90: -1070.3403 | P90: 45.460054 | Q90: 24 | T90: 1200
A91: 100m | B91: 5983.1054 | C91: -636.796 | D91: 16.972057 | E91: 24 | F91: 18.76 | G91: 10.39 | H91: 1200 | M91: 100m | N91: 5983.113 | O91: -636.79646 | P91: 16.972057 | Q91: 24 | R91: 18.76 | S91: 10.39 | T91: 1200
A92: 200m | B92: 5407.6722 | C92: -274.22996 | D92: 3.4697171 | E92: 24 | F92: 37.67 | G92: 20.83 | H92: 1200 | M92: 200m | N92: 5408.4 | O92: -274.3 | P92: 3.4714 | Q92: 24 | R92: 37.67 | S92: 20.83 | T92: 1200
A93: 400m | B93: 5429.9341 | C93: -124.07353 | D93: 0.71151238 | E93: 14 | F93: 87.19 | G93: 46.48 | H93: 1200 | M93: 400m | N93: 5429.9341 | O93: -124.07353 | P93: 0.71151238 | Q93: 14 | R93: 87.19 | S93: 46.48 | T93: 1200
A94: 800m | B94: 6031.2113 | C94: -61.484586 | D94: 0.15738741 | E94: 0 | F94: 00:03:15.330 | G94: 00:01:48.970 | H94: 1200 | M94: 800m | N94: 6031.2113 | O94: -61.484586 | P94: 0.15738741 | Q94: 0 | R94: 00:03:15.330 | S94: 00:01:48.970 | T94: 1200
A95: 1000m | B95: 5762.8779 | C95: -44.665194 | D95: 0.086945821 | E95: 0 | F95: 00:04:16.850 | G95: 00:02:20.680 | H95: 1200 | M95: 1000m | N95: 5762.8779 | O95: -44.665194 | P95: 0.086945821 | Q95: 0 | R95: 00:04:16.850 | S95: 00:02:20.680 | T95: 1200
A96: 1500m | B96: 5619.3985 | C96: -27.068502 | D96: 0.032753479 | E96: 0 | F96: 00:06:53.220 | G96: 00:03:43.940 | H96: 1200 | M96: 1500m | N96: 5619.3985 | O96: -27.068502 | P96: 0.032753479 | Q96: 0 | R96: 00:06:53.220 | S96: 00:03:43.940 | T96: 1200
A97: 3000m | B97: 5360.9132 | C97: -11.68141 | D97: 0.006395572 | E97: 0 | F97: 00:15:13.160 | G97: 00:08:04.950 | H97: 1200 | M97: 3000m | N97: 5360.9132 | O97: -11.68141 | P97: 0.006395572 | Q97: 0 | R97: 00:15:13.160 | S97: 00:08:04.950 | T97: 1200
A98: 60mH | B98: 4336.064 | C98: -543.69014 | D98: 17.142652 | E98: 24 | H98: 1200 | M98: 60mH | N98: 4336.064 | O98: -543.69014 | P98: 17.142652 | Q98: 24 | T98: 1200
A99: 110mH | B99: 4803.2235 | C99: -352.65211 | D99: 6.5159893 | E99: 24 | F99: 26.86 | G99: 13.67 | H99: 1200 | M99: 110mH | N99: 4803.2235 | O99: -352.65211 | P99: 6.5159893 | Q99: 24 | R99: 26.86 | S99: 13.67 | T99: 1200
A100: 4x100m | B100: 5210.7613 | C100: -132.26796 | D100: 0.84244775 | E100: 14 | F100: 78.5 | G100: 41.06 | H100: 1200 | M100: 4x100m | N100: 5210.7613 | O100: -132.26796 | P100: 0.84244775 | Q100: 14 | R100: 78.5 | S100: 41.06 | T100: 1200
A101: højde | B101: -1727.7603 | C101: 1739.9369 | D101: -196.57184 | E101: 0 | F101: 1.15 | G101: 2.26 | H101: 1200 | M101: højde | N101: -1727.7603 | O101: 1739.9369 | P101: -196.57184 | Q101: 0 | R101: 1.15 | S101: 2.26 | T101: 1200
A102: stang | B102: -523.25153 | C102: 424.93533 | D102: -19.322682 | E102: 0 | F102: 1.32 | G102: 5.36 | H102: 1199 | M102: stang | N102: -523.25153 | O102: 424.93533 | P102: -19.322682 | Q102: 0 | R102: 1.32 | S102: 5.36 | T102: 1199
A103: længde | B103: -706.99439 | C103: 244.23994 | D103: 0.04187876 | E103: 0 | F103: 2.9 | G103: 7.8 | H103: 1200 | M103: længde | N103: -706.99439 | O103: 244.23994 | P103: 0.04187876 | Q103: 0 | R103: 2.9 | S103: 7.8 | T103: 1200
A104: trespring | B104: -785.92263 | C104: 88.816361 | D104: 2.2270322 | E104: 0 | F104: 7.47 | G104: 15.97 | H104: 1200 | M104: trespring | N104: -785.92263 | O104: 88.816361 | P104: 2.2270322 | Q104: 0 | R104: 7.47 | S104: 15.97 | T104: 1200
A105: kugle | B105: -405.76653 | C105: 118.79011 | D105: -1.987684 | E105: 0 | F105: 3.65 | G105: 20.66 | H105: 1200 | M105: kugle | N105: -405.76653 | O105: 118.79011 | P105: -1.987684 | Q105: 0 | R105: 3.65 | S105: 20.66 | T105: 1200
A106: diskos | B106: -358.24463 | C106: 38.434398 | D106: -0.22826487 | E106: 0 | F106: 9.94 | G106: 68.03 | H106: 1200 | M106: diskos | N106: -358.24463 | O106: 38.434398 | P106: -0.22826487 | Q106: 0 | R106: 9.94 | S106: 68.03 | T106: 1200
A107: hammer | B107: -347.84833 | C107: 30.38515 | D107: -0.13442967 | E107: 0 | F107: 12.14 | G107: 77.55 | H107: 1200 | M107: hammer | N107: -347.84833 | O107: 30.38515 | P107: -0.13442967 | Q107: 0 | R107: 12.14 | S107: 77.55 | T107: 1200
A108: spyd | B108: -350.6293 | C108: 30.592798 | D108: -0.13619758 | E108: 0 | F108: 12.16 | G108: 77.27 | H108: 1200 | M108: spyd | N108: -350.6293 | O108: 30.592798 | P108: -0.13619758 | Q108: 0 | R108: 12.16 | S108: 77.27 | T108: 1200
A109: vægt | B109: -405.76653 | C109: 118.79011 | D109: -1.987684 | E109: 0 | F109: 3.65 | G109: 20.66 | H109: 1200 | M109: vægt | N109: -405.76653 | O109: 118.79011 | P109: -1.987684 | Q109: 0 | R109: 3.65 | S109: 20.66 | T109: 1200
A112: DAF_P9:
A113: 40m | B113: 845.41181 | C113: 305.40741 | D113: -39.561617 | E113: 24 | F113: 9.88 | G113: 6.3 | H113: 1199
A114: 400m | B114: 3776.7145 | C114: -40.896439 | D114: 0.073921613 | E114: 14 | F114: 117.11 | G114: 72.5 | H114: 1200
A115: 800m | B115: 2802.3229 | C115: -10.947062 | D115: 0.002936917 | E115: 0 | F115: 00:04:36.380 | G115: 00:02:32.610 | H115: 1200
A116: 4x40m | B116: 998.54263 | C116: 68.068412 | D116: -2.4078562 | E116: 24 | F116: 38.91 | G116: 24.91 | H116: 1200
A117: højde | B117: -1266.5686 | C117: 1937.2737 | D117: 29.072814 | E117: 0 | F117: 0.65 | G117: 1.25 | H117: 1200
A118: længde | B118: -584.2626 | C118: 287.55157 | D118: 39.081554 | E118: 0 | F118: 1.67 | G118: 4.01 | H118: 1197
A119: kugle | B119: -386.09278 | C119: 263.7259 | D119: -8.4215402 | E119: 0 | F119: 1.55 | G119: 8.12 | H119: 1200
A120: bold | B120: -407.69332 | C120: 61.072305 | D120: -0.56264267 | E120: 0 | F120: 7.17 | G120: 44.89 | H120: 1200
A123: DAF_P11: | M123: DAF_P10:
A124: 60m | B124: 5954.4753 | C124: -725.37677 | D124: 21.281367 | E124: 24 | F124: 13.77 | G124: 8.86 | H124: 1198 | M124: 60m | N124: 5954.4753 | O124: -725.37677 | P124: 21.281367 | Q124: 24 | R124: 13.77 | S124: 8.86 | T124: 1198
A125: 400m | B125: 3885.6427 | C125: -51.952774 | D125: 0.14892366 | E125: 14 | F125: 108.54 | G125: 63.1 | H125: 1200 | M125: 400m | N125: 3885.6427 | O125: -51.952774 | P125: 0.14892366 | Q125: 14 | R125: 108.54 | S125: 63.1 | T125: 1200
A126: 1000m | B126: 4688.5131 | C126: -23.46721 | D126: 0.028116952 | E126: 0 | F126: 00:05:31.060 | G126: 00:03:13.520 | H126: 1200 | M126: 1000m | N126: 4688.5131 | O126: -23.46721 | P126: 0.028116952 | Q126: 0 | R126: 00:05:31.060 | S126: 00:03:13.520 | T126: 1200
A127: 60mH | B127: 3885.8637 | C127: -306.0286 | D127: 5.8472672 | E127: 24 | F127: 21.65 | G127: 11.15 | H127: 1200 | M127: 60mH | N127: 3885.8637 | O127: -306.0286 | P127: 5.8472672 | Q127: 24 | R127: 21.65 | S127: 11.15 | T127: 1200
A128: 4x60m | B128: 5828.1892 | C128: -179.57446 | D128: 1.3316707 | E128: 24 | F128: 54.37 | G128: 34.7 | H128: 1200 | M128: 4x60m | N128: 5828.1892 | O128: -179.57446 | P128: 1.3316707 | Q128: 24 | R128: 54.37 | S128: 34.7 | T128: 1200
A129: højde | B129: -1738.0268 | C129: 2778.9674 | D129: -526.77557 | E129: 0 | F129: 0.73 | G129: 1.46 | H129: 1196 | M129: højde | N129: -1738.0268 | O129: 2778.9674 | P129: -526.77557 | Q129: 0 | R129: 0.73 | S129: 1.46 | T129: 1196
A130: længde | B130: -1386.4604 | C130: 777.31596 | D130: -50.314716 | E130: 0 | F130: 2.06 | G130: 4.85 | H130: 1199 | M130: længde | N130: -1386.4604 | O130: 777.31596 | P130: -50.314716 | Q130: 0 | R130: 2.06 | S130: 4.85 | T130: 1199
A131: kugle | B131: -541.44427 | C131: 280.18034 | D131: -10.864544 | E131: 0 | F131: 2.11 | G131: 10.45 | H131: 1200 | M131: kugle | N131: -541.44427 | O131: 280.18034 | P131: -10.864544 | Q131: 0 | R131: 2.11 | S131: 10.45 | T131: 1200
A132: bold | B132: -674.03233 | C132: 58.136996 | D132: -0.44521762 | E132: 0 | F132: 12.89 | G132: 57.97 | H132: 1200 | M132: bold | N132: -674.03233 | O132: 58.136996 | P132: -0.44521762 | Q132: 0 | R132: 12.89 | S132: 57.97 | T132: 1200
A135: DAF_P13: | M135: DAF_P12:
A136: 80m | B136: 7499.4907 | C136: -925.24206 | D136: 28.642089 | E136: 24 | F136: 16.3 | G136: 9.76 | H136: 1197 | M136: 80m | N136: 7499.4907 | O136: -925.24206 | P136: 28.642089 | Q136: 24 | R136: 16.3 | S136: 9.76 | T136: 1197
A137: 200m | B137: 6319.1786 | C137: -292.48434 | D137: 3.3954817 | E137: 24 | F137: 43.07 | G137: 24.43 | H137: 1200 | M137: 200m | N137: 6319.1786 | O137: -292.48434 | P137: 3.3954817 | Q137: 24 | R137: 43.07 | S137: 24.43 | T137: 1200
A138: 600m | B138: 3389.3583 | C138: -29.16377 | D138: 0.063358925 | E138: 0 | F138: 00:03:50.150 | G138: 00:01:34.450 | H138: 1200 | M138: 600m | N138: 3389.3583 | O138: -29.16377 | P138: 0.063358925 | Q138: 0 | R138: 00:03:50.150 | S138: 00:01:34.450 | T138: 1200
A139: 1000m | B139: 6594.1184 | C139: -46.477061 | D139: 0.08223533 | E139: 0 | F139: 00:04:42.580 | G139: 00:02:43.160 | H139: 1200 | M139: 1000m | N139: 6594.1184 | O139: -46.477061 | P139: 0.08223533 | Q139: 0 | R139: 00:04:42.580 | S139: 00:02:43.160 | T139: 1200
A140: 60mH | B140: 4084.1813 | C140: -412.15511 | D140: 10.490657 | E140: 24 | F140: 19.64 | G140: 9.11 | H140: 1200 | M140: 60mH | N140: 4084.1813 | O140: -412.15511 | P140: 10.490657 | Q140: 24 | R140: 19.64 | S140: 9.11 | T140: 1200
A141: 4x80m | B141: 5269.21 | C141: -133.612 | D141: 0.83439189 | E141: 24 | F141: 70.23 | G141: 40.9 | H141: 1200 | M141: 4x80m | N141: 5269.21 | O141: -133.612 | P141: 0.83439189 | Q141: 24 | R141: 70.23 | S141: 40.9 | T141: 1200
A142: højde | B142: -1132.4367 | C142: 1714.8682 | D142: -201.69141 | E142: 0 | F142: 0.73 | G142: 1.7 | H142: 1199 | M142: højde | N142: -1132.4367 | O142: 1714.8682 | P142: -201.69141 | Q142: 0 | R142: 0.73 | S142: 1.7 | T142: 1199
A143: stang | B143: -193.16522 | C143: 113.85171 | D143: 81.901588 | E143: 0 | F143: 1 | G143: 3.48 | H143: 1194 | M143: stang | N143: -193.16522 | O143: 113.85171 | P143: 81.901588 | Q143: 0 | R143: 1 | S143: 3.48 | T143: 1194
A144: længde | B144: -736.66634 | C144: 277.33092 | D144: 6.6662346 | E144: 0 | F144: 2.51 | G144: 6.09 | H144: 1199 | M144: længde | N144: -736.66634 | O144: 277.33092 | P144: 6.6662346 | Q144: 0 | R144: 2.51 | S144: 6.09 | T144: 1199
A145: kugle | B145: -570.65578 | C145: 189.80377 | D145: -4.6524395 | E145: 0 | F145: 3.28 | G145: 14.44 | H145: 1200 | M145: kugle | N145: -570.65578 | O145: 189.80377 | P145: -4.6524395 | Q145: 0 | R145: 3.28 | S145: 14.44 | T145: 1200
A146: diskos | B146: -246.90596 | C146: 37.818117 | D146: -0.12983646 | E146: 0 | F146: 6.71 | G146: 45.31 | H146: 1200 | M146: diskos | N146: -246.90596 | O146: 37.818117 | P146: -0.12983646 | Q146: 0 | R146: 6.71 | S146: 45.31 | T146: 1200
A147: hammer | B147: -312.83279 | C147: 53.087805 | D147: -0.39949066 | E147: 0 | F147: 6.21 | G147: 41.39 | H147: 1200 | M147: hammer | N147: -312.83279 | O147: 53.087805 | P147: -0.39949066 | Q147: 0 | R147: 6.21 | S147: 41.39 | T147: 1200
A148: spyd | B148: -242.77779 | C148: 39.885355 | D148: -0.11423124 | E148: 0 | F148: 6.23 | G148: 40.99 | H148: 1200 | M148: spyd | N148: -242.77779 | O148: 39.885355 | P148: -0.11423124 | Q148: 0 | R148: 6.23 | S148: 40.99 | T148: 1200
A149: bold | B149: -593.02372 | C149: 36.420929 | D149: -0.15063181 | E149: 0 | F149: 17.59 | G149: 68.82 | H149: 1200 | M149: bold | N149: -593.02372 | O149: 36.420929 | P149: -0.15063181 | Q149: 0 | R149: 17.59 | S149: 68.82 | T149: 1200
A152: DAF_P15: | M152: DAF_P14:
A153: 60m | B153: 7309.9645 | C153: -1152.7844 | D153: 45.491022 | E153: 24 | F153: 12.67 | G153: 7.55 | H153: 1199 | M153: 60m | N153: 7309.9645 | O153: -1152.7844 | P153: 45.491022 | Q153: 24 | R153: 12.67 | S153: 7.55 | T153: 1199
A154: 100m | B154: 5700.7297 | C154: -544.70798 | D154: 13.050853 | E154: 24 | F154: 20.87 | G154: 11.35 | H154: 1199 | M154: 100m | N154: 5700.7297 | O154: -544.70798 | P154: 13.050853 | Q154: 24 | R154: 20.87 | S154: 11.35 | T154: 1199
A155: 200m | B155: 4696.3236 | C155: -204.61913 | D155: 2.2378695 | E155: 24 | F155: 45.72 | G155: 22.74 | H155: 1200 | M155: 200m | N155: 4696.3236 | O155: -204.61913 | P155: 2.2378695 | Q155: 24 | R155: 45.72 | S155: 22.74 | T155: 1200
A156: 300m | B156: 5488.4533 | C156: -161.06379 | D156: 1.1858661 | E156: 24 | F156: 67.91 | G156: 36.35 | H156: 1200 | M156: 300m | N156: 5488.4533 | O156: -161.06379 | P156: 1.1858661 | Q156: 24 | R156: 67.91 | S156: 36.35 | T156: 1200
A157: 800m | B157: 5259.1997 | C157: -45.19436 | D157: 0.097661977 | E157: 0 | F157: 00:03:51.380 | G157: 00:02:01.950 | H157: 1200 | M157: 800m | N157: 5259.1997 | O157: -45.19436 | P157: 0.097661977 | Q157: 0 | R157: 00:03:51.380 | S157: 00:02:01.950 | T157: 1200
A158: 1000m | B158: 5562.7186 | C158: -37.843453 | D158: 0.064719343 | E158: 0 | F158: 00:04:52.370 | G158: 00:02:37.940 | H158: 1200 | M158: 1000m | N158: 5562.7186 | O158: -37.843453 | P158: 0.064719343 | Q158: 0 | R158: 00:04:52.370 | S158: 00:02:37.940 | T158: 1200
A159: 1500m | B159: 5116.514 | C159: -21.182618 | D159: 0.022056122 | E159: 0 | F159: 00:08:00.190 | G159: 00:04:09.930 | H159: 1200 | J159: 432.9 | K159: =B159+C159*J159+D159*J159*J159 -> 79.92908585 | M159: 1500m | N159: 5116.514 | O159: -21.182618 | P159: 0.022056122 | Q159: 0 | R159: 00:08:00.190 | S159: 00:04:09.930 | T159: 1200 | W159: 432.9 | X159: =N159+O159*W159+P159*W159*W159 -> 79.92908585
A160: 3000m | B160: 5014.5897 | C160: -9.6100052 | D160: 0.004632432 | E160: 0 | F160: 00:17:17.340 | G160: 00:08:54.800 | H160: 1200 | M160: 3000m | N160: 5014.5897 | O160: -9.6100052 | P160: 0.004632432 | Q160: 0 | R160: 00:17:17.340 | S160: 00:08:54.800 | T160: 1200
A161: 60mH | B161: 4053.7331 | C161: -446.17096 | D161: 12.278927 | E161: 24 | F161: 17.9 | G161: 8.29 | H161: 1198 | M161: 60mH | N161: 4053.7331 | O161: -446.17096 | P161: 12.278927 | Q161: 24 | R161: 17.9 | S161: 8.29 | T161: 1198
A162: 80mH | B162: 4136.577 | C162: -358.36139 | D162: 7.8180447 | E162: 24 | F162: 22.93 | G162: 10.69 | H162: 1199 | M162: 80mH | N162: 4136.577 | O162: -358.36139 | P162: 7.8180447 | Q162: 24 | R162: 22.93 | S162: 10.69 | T162: 1199
A163: 300mH | B163: 4840.7156 | C163: -122.03114 | D163: 0.77300732 | E163: 24 | F163: 78.93 | G163: 39.93 | H163: 1200 | M163: 300mH | N163: 4840.7156 | O163: -122.03114 | P163: 0.77300732 | Q163: 24 | R163: 78.93 | S163: 39.93 | T163: 1200
A164: 4x100m | B164: 4643.0512 | C164: -101.43331 | D164: 0.55609775 | E164: 14 | F164: 91.2 | G164: 45.09 | H164: 1200 | M164: 4x100m | N164: 4643.0512 | O164: -101.43331 | P164: 0.55609775 | Q164: 14 | R164: 91.2 | S164: 45.09 | T164: 1200
A165: højde | B165: -969.72583 | C165: 776.37089 | D165: 194.04038 | E165: 0 | F165: 1.01 | G165: 1.89 | H165: 1190 | M165: højde | N165: -969.72583 | O165: 776.37089 | P165: 194.04038 | Q165: 0 | R165: 1.01 | S165: 1.89 | T165: 1190
A166: stang | B166: -187.34622 | C166: 124.12542 | D166: 64.052745 | E166: 0 | F166: 1.01 | G166: 3.78 | H166: 1197 | M166: stang | N166: -187.34622 | O166: 124.12542 | P166: 64.052745 | Q166: 0 | R166: 1.01 | S166: 3.78 | T166: 1197
A167: længde | B167: -615.49168 | C167: 206.25462 | D167: 11.365662 | E167: 0 | F167: 2.62 | G167: 6.48 | H167: 1198 | M167: længde | N167: -615.49168 | O167: 206.25462 | P167: 11.365662 | Q167: 0 | R167: 2.62 | S167: 6.48 | T167: 1198
A168: kugle | B168: -595.22501 | C168: 168.90319 | D168: -3.7964894 | E168: 0 | F168: 3.87 | G168: 17.56 | H168: 1200 | M168: kugle | N168: -595.22501 | O168: 168.90319 | P168: -3.7964894 | Q168: 0 | R168: 3.87 | S168: 17.56 | T168: 1200
A169: diskos | B169: -246.67088 | C169: 36.900302 | D169: -0.19970907 | E169: 0 | F169: 7 | G169: 56.46 | H169: 1200 | M169: diskos | N169: -246.67088 | O169: 36.900302 | P169: -0.19970907 | Q169: 0 | R169: 7 | S169: 56.46 | T169: 1200
A170: hammer | B170: -227.07261 | C170: 30.531591 | D170: -0.091885782 | E170: 0 | F170: 7.65 | G170: 56.27 | H170: 1200 | M170: hammer | N170: -227.07261 | O170: 30.531591 | P170: -0.091885782 | Q170: 0 | R170: 7.65 | S170: 56.27 | T170: 1200
A171: spyd | B171: -323 | C171: 42.591 | D171: -0.3015 | E171: 0 | F171: 8.07 | G171: 69.6 | H171: 1180 | M171: spyd | N171: -323 | O171: 42.591 | P171: -0.3015 | Q171: 0 | R171: 8.07 | S171: 69.6 | T171: 1180
A174: DAF_P17: | M174: DAF_P16:
A175: 60m | B175: 5953.3854 | C175: -906.86241 | D175: 34.610771 | E175: 24 | H175: 1200 | M175: 60m | N175: 5953.3854 | O175: -906.86241 | P175: 34.610771 | Q175: 24 | T175: 1200
A176: 100m | B176: 5702.014 | C176: -544.87431 | D176: 13.056019 | E176: 24 | F176: 20.87 | G176: 11.35 | H176: 1199 | M176: 100m | N176: 5702.014 | O176: -544.87431 | P176: 13.056019 | Q176: 24 | R176: 20.87 | S176: 11.35 | T176: 1199
A177: 200m | B177: 4569.4968 | C177: -196.70482 | D177: 2.1204752 | E177: 24 | F177: 46.38 | G177: 22.66 | H177: 1200 | M177: 200m | N177: 4569.4968 | O177: -196.70482 | P177: 2.1204752 | Q177: 24 | R177: 46.38 | S177: 22.66 | T177: 1200
A178: 400m | B178: 4848.2417 | C178: -94.932786 | D178: 0.46677201 | E178: 14 | F178: 101.69 | G178: 51.44 | H178: 1200 | M178: 400m | N178: 4848.2417 | O178: -94.932786 | P178: 0.46677201 | Q178: 14 | R178: 101.69 | S178: 51.44 | T178: 1200
A179: 800m | B179: 5259.4402 | C179: -45.20519 | D179: 0.097714644 | E179: 0 | F179: 00:03:51.310 | G179: 00:02:01.930 | H179: 1200 | M179: 800m | N179: 5259.4402 | O179: -45.20519 | P179: 0.097714644 | Q179: 0 | R179: 00:03:51.310 | S179: 00:02:01.930 | T179: 1200
A180: 1000m | B180: 5563.0989 | C180: -37.852451 | D180: 0.064750958 | E180: 0 | F180: 00:04:52.290 | G180: 00:02:37.930 | H180: 1200 | M180: 1000m | N180: 5563.0989 | O180: -37.852451 | P180: 0.064750958 | Q180: 0 | R180: 00:04:52.290 | S180: 00:02:37.930 | T180: 1200
A181: 1500m | B181: 5110.7597 | C181: -21.154766 | D181: 0.022024152 | E181: 0 | F181: 00:08:00.260 | G181: 00:04:09.840 | H181: 1200 | M181: 1500m | N181: 5110.7597 | O181: -21.154766 | P181: 0.022024152 | Q181: 0 | R181: 00:08:00.260 | S181: 00:04:09.840 | T181: 1200
A182: 3000m | B182: 5010.4324 | C182: -9.5992112 | D182: 0.004625944 | E182: 0 | F182: 00:17:17.520 | G182: 00:08:54.750 | H182: 1200 | M182: 3000m | N182: 5010.4324 | O182: -9.5992112 | P182: 0.004625944 | Q182: 0 | R182: 00:17:17.520 | S182: 00:08:54.750 | T182: 1200
A183: 60mH | B183: 3842.6429 | C183: -431.68727 | D183: 12.187831 | E183: 24 | F183: 17.71 | G183: 7.87 | H183: 1200 | M183: 60mH | N183: 3842.6429 | O183: -431.68727 | P183: 12.187831 | Q183: 24 | R183: 17.71 | S183: 7.87 | T183: 1200
A184: 100mH | B184: 3900.5634 | C184: -268.69731 | D184: 4.6536158 | E184: 24 | F184: 28.87 | G184: 12.96 | H184: 1199 | M184: 100mH | N184: 3900.5634 | O184: -268.69731 | P184: 4.6536158 | Q184: 24 | R184: 28.87 | S184: 12.96 | T184: 1199
A185: 4x100m | B185: 4643.0512 | C185: -101.43331 | D185: 0.55609775 | E185: 14 | F185: 91.2 | G185: 45.09 | H185: 1200 | M185: 4x100m | N185: 4643.0512 | O185: -101.43331 | P185: 0.55609775 | Q185: 14 | R185: 91.2 | S185: 45.09 | T185: 1200
A186: højde | B186: -967.07862 | C186: 772.77114 | D186: 195.15521 | E186: 0 | F186: 1.01 | G186: 1.89 | H186: 1190 | M186: højde | N186: -967.07862 | O186: 772.77114 | P186: 195.15521 | Q186: 0 | R186: 1.01 | S186: 1.89 | T186: 1190
A187: stang | B187: -187.34622 | C187: 124.12542 | D187: 64.052745 | E187: 0 | F187: 1.01 | G187: 3.78 | H187: 1197 | M187: stang | N187: -187.34622 | O187: 124.12542 | P187: 64.052745 | Q187: 0 | R187: 1.01 | S187: 3.78 | T187: 1197
A188: længde | B188: -623.518 | C188: 211.63569 | D188: 10.719212 | E188: 0 | F188: 2.61 | G188: 6.48 | H188: 1197 | M188: længde | N188: -623.518 | O188: 211.63569 | P188: 10.719212 | Q188: 0 | R188: 2.61 | S188: 6.48 | T188: 1197
A189: trespring | B189: -789.56368 | C189: 111.99395 | D189: 3.1853303 | E189: 0 | F189: 6.03 | G189: 12.98 | H189: 1200 | M189: trespring | N189: -789.56368 | O189: 111.99395 | P189: 3.1853303 | Q189: 0 | R189: 6.03 | S189: 12.98 | T189: 1200
A190: kugle | B190: -431.22988 | C190: 127.26043 | D190: -1.380315 | E190: 0 | F190: 3.54 | G190: 15.39 | H190: 1200 | M190: kugle | N190: -431.22988 | O190: 127.26043 | P190: -1.380315 | Q190: 0 | R190: 3.54 | S190: 15.39 | T190: 1200
A191: diskos | B191: -254.6173 | C191: 37.302651 | D191: -0.20449598 | E191: 0 | F191: 7.14 | G191: 56.49 | H191: 1200 | M191: diskos | N191: -254.6173 | O191: 37.302651 | P191: -0.20449598 | Q191: 0 | R191: 7.14 | S191: 56.49 | T191: 1200
A192: hammer | B192: -130.2469 | C192: 23.605172 | D192: 0.036900852 | E192: 0 | F192: 5.52 | G192: 52.11 | H192: 1200 | M192: hammer | N192: -130.2469 | O192: 23.605172 | P192: 0.036900852 | Q192: 0 | R192: 5.52 | S192: 52.11 | T192: 1200
A193: spyd | B193: -304.58782 | C193: 38.139748 | D193: -0.23242123 | E193: 0 | F193: 8.45 | G193: 65.98 | H193: 1200 | M193: spyd | N193: -304.58782 | O193: 38.139748 | P193: -0.23242123 | Q193: 0 | R193: 8.45 | S193: 65.98 | T193: 1200
A196: DAF_P19: | M196: DAF_P18:
A197: 60m | B197: 5953.3854 | C197: -906.86241 | D197: 34.610771 | E197: 24 | H197: 1200 | M197: 60m | N197: 5953.3854 | O197: -906.86241 | P197: 34.610771 | Q197: 24 | T197: 1200
A198: 100m | B198: 5702.014 | C198: -544.87431 | D198: 13.056019 | E198: 24 | F198: 20.87 | G198: 11.35 | H198: 1199 | M198: 100m | N198: 5702.014 | O198: -544.87431 | P198: 13.056019 | Q198: 24 | R198: 20.87 | S198: 11.35 | T198: 1199
A199: 200m | B199: 4569.4968 | C199: -196.70482 | D199: 2.1204752 | E199: 24 | F199: 46.38 | G199: 22.66 | H199: 1200 | M199: 200m | N199: 4569.53 | O199: -196.70482 | P199: 2.1204572 | Q199: 24 | R199: 46.38 | S199: 22.66 | T199: 1200
A200: 400m | B200: 4848.2417 | C200: -94.932786 | D200: 0.46677201 | E200: 14 | F200: 101.69 | G200: 51.44 | H200: 1200 | M200: 400m | N200: 4848.2417 | O200: -94.932786 | P200: 0.46677201 | Q200: 14 | R200: 101.69 | S200: 51.44 | T200: 1200
A201: 800m | B201: 5259.4402 | C201: -45.20519 | D201: 0.097714644 | E201: 0 | F201: 00:03:51.310 | G201: 00:02:01.930 | H201: 1200 | M201: 800m | N201: 5259.4402 | O201: -45.20519 | P201: 0.097714644 | Q201: 0 | R201: 00:03:51.310 | S201: 00:02:01.930 | T201: 1200
A202: 1000m | B202: 5563.0989 | C202: -37.852451 | D202: 0.064750958 | E202: 0 | F202: 00:04:52.290 | G202: 00:02:37.930 | H202: 1200 | M202: 1000m | N202: 5563.0989 | O202: -37.852451 | P202: 0.064750958 | Q202: 0 | R202: 00:04:52.290 | S202: 00:02:37.930 | T202: 1200
A203: 1500m | B203: 5110.7597 | C203: -21.154766 | D203: 0.022024152 | E203: 0 | F203: 00:08:00.260 | G203: 00:04:09.840 | H203: 1200 | M203: 1500m | N203: 5110.7597 | O203: -21.154766 | P203: 0.022024152 | Q203: 0 | R203: 00:08:00.260 | S203: 00:04:09.840 | T203: 1200
A204: 3000m | B204: 5010.4324 | C204: -9.5992112 | D204: 0.004625944 | E204: 0 | F204: 00:17:17.520 | G204: 00:08:54.750 | H204: 1200 | M204: 3000m | N204: 5010.4324 | O204: -9.5992112 | P204: 0.004625944 | Q204: 0 | R204: 00:17:17.520 | S204: 00:08:54.750 | T204: 1200
A205: 60mH | B205: 3842.6429 | C205: -431.68727 | D205: 12.187831 | E205: 24 | F205: 17.71 | G205: 7.87 | H205: 1200 | M205: 60mH | N205: 3842.6429 | O205: -431.68727 | P205: 12.187831 | Q205: 24 | R205: 17.71 | S205: 7.87 | T205: 1200
A206: 100mH | B206: 3900.5634 | C206: -268.69731 | D206: 4.6536158 | E206: 24 | F206: 28.87 | G206: 12.96 | H206: 1199 | M206: 100mH | N206: 3900.5634 | O206: -268.69731 | P206: 4.6536158 | Q206: 24 | R206: 28.87 | S206: 12.96 | T206: 1199
A207: 4x100m | B207: 4643.0512 | C207: -101.43331 | D207: 0.55609775 | E207: 14 | F207: 91.2 | G207: 45.09 | H207: 1200 | M207: 4x100m | N207: 4643.0512 | O207: -101.43331 | P207: 0.55609775 | Q207: 14 | R207: 91.2 | S207: 45.09 | T207: 1200
A208: højde | B208: -967.07862 | C208: 772.77114 | D208: 195.15521 | E208: 0 | F208: 1.01 | G208: 1.89 | H208: 1190 | M208: højde | N208: -967.07862 | O208: 772.77114 | P208: 195.15521 | Q208: 0 | R208: 1.01 | S208: 1.89 | T208: 1190
A209: stang | B209: -187.34622 | C209: 124.12542 | D209: 64.052745 | E209: 0 | F209: 1.01 | G209: 3.78 | H209: 1197 | M209: stang | N209: -187.34622 | O209: 124.12542 | P209: 64.052745 | Q209: 0 | R209: 1.01 | S209: 3.78 | T209: 1197
A210: længde | B210: -623.518 | C210: 211.63569 | D210: 10.719212 | E210: 0 | F210: 2.61 | G210: 6.48 | H210: 1197 | M210: længde | N210: -623.518 | O210: 211.63569 | P210: 10.719212 | Q210: 0 | R210: 2.61 | S210: 6.48 | T210: 1197
A211: trespring | B211: -789.56368 | C211: 111.99395 | D211: 3.1853303 | E211: 0 | F211: 6.03 | G211: 12.98 | H211: 1200 | M211: trespring | N211: -789.56368 | O211: 111.99395 | P211: 3.1853303 | Q211: 0 | R211: 6.03 | S211: 12.98 | T211: 1200
A212: kugle | B212: -431.22988 | C212: 127.26043 | D212: -1.380315 | E212: 0 | F212: 3.54 | G212: 15.39 | H212: 1200 | M212: kugle | N212: -431.22988 | O212: 127.26043 | P212: -1.380315 | Q212: 0 | R212: 3.54 | S212: 15.39 | T212: 1200
A213: diskos | B213: -254.6173 | C213: 37.302651 | D213: -0.20449598 | E213: 0 | F213: 7.14 | G213: 56.49 | H213: 1200 | M213: diskos | N213: -254.6173 | O213: 37.302651 | P213: -0.20449598 | Q213: 0 | R213: 7.14 | S213: 56.49 | T213: 1200
A214: hammer | B214: -130.2469 | C214: 23.605172 | D214: 0.036900852 | E214: 0 | F214: 5.52 | G214: 52.11 | H214: 1200 | M214: hammer | N214: -130.2469 | O214: 23.605172 | P214: 0.036900852 | Q214: 0 | R214: 5.52 | S214: 52.11 | T214: 1200
A215: spyd | B215: -304.58782 | C215: 38.139748 | D215: -0.23242123 | E215: 0 | F215: 8.45 | G215: 65.98 | H215: 1200 | M215: spyd | N215: -304.58782 | O215: 38.139748 | P215: -0.23242123 | Q215: 0 | R215: 8.45 | S215: 65.98 | T215: 1200
A218: Point = A + B * R + C * R * R | M218: Point = A + B * R + C * R * R
A220: hvor R er resultat i enten sekunder eller meter | M220: hvor R er resultat i enten sekunder eller meter
A223: Fjerde kolonne er korrektion fra manuel tid til el-tid, | M223: Fjerde kolonne er korrektion fra manuel tid til el-tid,

Sheet Print9_15
H2: Atletikmærket
H3: =IF(Info!D28=0," ",Info!D28) -> 2013
H4: tildelt
E6: Navn: | O6: Oliver R. Hvingel
E8: Klub: | O8: Vejle IF
E10: Pointsum: | O10: 2401
E12: Mærke: | O12: Sølv
E15: Øvelse | Y15: Resultat
J17: 40m | Y17: 7.47 | AE17: / | AF17: 919
J19: længde | Y19: 2.84 | AE19: / | AF19: 547
J21: kugle | Y21: 3.85 | AE21: / | AF21: 345
J23: 400m | Y23: 93.81 | AE23: / | AF23: 590
Z27: /
M29: Underskrift - dato

Sheet Print16_19
E2: Atletikmærket
E3: =IF(Info!D28=0," ",Info!D28) -> 2013
E4: tildelt
D6: Navn: | O6: Victoria Holm Sørensen
D8: Klub: | O8: Vejle IF
D10: Pointsum: | O10: 1481
D12: Mærke: | O12: Bronze
D15: Øvelse | S15: Resultat
D17: 1. | F17: kugle | S17: 9.37 | Z17: / | AA17: 640
D19: 2. | F19: 100m | S19: 15.23 | Z19: / | AA19: 431
D21: 3. | F21: diskos | S21: 20.03 | Z21: / | AA21: 410
T29: /
N31: Underskrift - dato

Sheet Print16_19a
O5: Niels Hansen
O7: Greve IF
O9: 2300
O11: Sølv
F16: 110mH | S16: 16 | Z16: / | AA16: 828
F18: længde | S18: 6 | Z18: / | AA18: 759
F20: 400m | S20: 00:00:56 | Z20: / | AA20: 713

Sheet Print9_15 Diplom
O5: Oliver R. Hvingel
O7: Vejle IF
O9: 2401
O11: Sølv
J16: 40m | Y16: 7.47 | AE16: / | AF16: 919
J18: længde | Y18: 2.84 | AE18: / | AF18: 547
J20: kugle | Y20: 3.85 | AE20: / | AF20: 345
J22: 400m | Y22: 93.81 | AE22: / | AF22: 590

Sheet Print16_19 Diplom
O5: Victoria Holm Sørensen
O7: Vejle IF
O9: 1481
O11: Bronze
F16: kugle | S16: 9.37 | Z16: / | AA16: 640
F18: 100m | S18: 15.23 | Z18: / | AA18: 431
F20: diskos | S20: 20.03 | Z20: / | AA20: 410

Sheet Info
D2: Information i brug af denne fil:
D3: Knapperne til venstre vælger køn- og aldersgruppe.
D4: I det aktuelle skema indtastes bedste resultat for pågældende atlet i diverse discipliner.
D5: Programmet beregner selv pointene og skriver pointene i feltet ved siden af resultatet.
D6: Programmet regner pointene sammen for 9-15 år: 1 løb, 1 spring, 1 kast og 4. disciplin.
D7: Programmet regner pointene sammen for 16-19 år: 3 bedste discipliner.
D8: Programmet fremhæver de point, der er gældende for det samlede resultat.
D9: Programmet tildeler valør på atletikmærke (Guld, Sølv, Bronze).
D10: Ved løb anvendes 2 forskellige tidsformater.
D11: De korte løb er opgivet i sek., tiendedele og hundrededele. (feks. 45,81)
D12: De længere løb er opgivet i min., sek., tiendedele og hundreddele. (feks. 02:13,49)
D13: Skriv 0 og Enter i resultatfeltet og bliv klogere.
D14: Ved hjælp af M-knappen kan vælges [Man] for mauel tidtagning, herved indregnes hhv. 0,24 eller 0,14 sek. tillæg.
D16: Print af Diplom:
D17: Årstal og Klubnavn indtastes nederst på Info-siden (kopieres automatisk til alle andre sider).
D18: Vælg via "Print type", om der skal printes data på diplom eller om der skal printes et diplom på hvidt ark.
D19: Indtast atletens navn på aktuel side.
D20: Læg diplom eller hvidt ark i printeren og tryk på "Print"-knappen.
D22: Jeg håber at dette værktøj hjælper jer med arbejdet omkring Atletikmærket.
D23: MVH
D24: Carsten Rytter
C28: Årstal: | D28: 2013 | G28: På diplom
C29: Klub: | D29: Vejle IF
